Workbook

Sheet Info
A1: Data delimitation: | B1: Metropolitan Region of Guadalajara (MRG) | C1: Poboblación | D1: Superficie (km²) | E1: hab/km²
A2: The MRG is composed by the following municipalities: | B2: Guadalajara | C2: 1495189 | D2: 151.4 | E2: 9874.4
B3: San Pedro Tlaquepaque (Tlaquepaque) | C3: 1243756 | D3: 1163.6 | E3: 1068.9
B4: Tonalá | C4: 608114 | D4: 110.4 | E4: 5506.2
B5: Zapopan | C5: 478689 | D5: 166.1 | E5: 2881.9
B6: Tlajomulco de Zúñiga | C6: 416626 | D6: 714 | E6: 583.5
B7: El Salto | C7: 138226 | D7: 87.9 | E7: 1573.3
B8: Juanacatlán | C8: 41060 | D8: 202.4 | E8: 202.9
B9: Ixtlahuacán de los Membrillos | C9: 13218 | D9: 138.3 | E9: 95.6
C10: 4434878 | D10: 2734.1 | E10: 1622

Sheet CPI Final
B1: NOTE:
B2: CPI Calculated Using Latest Years of Informatiion
C3: Sub Index values
C4: Missing data
C5: Stale level Data (JALISCO)
C6: Country Level Data (MEXICO)
H7: BASIC | I7: EXT
C8: CITIES PROSPERITY INDEX | H8: =GEOMEAN(H14,H44,H108,H162,H196,H226) -> 58.37742015 | I8: =GEOMEAN(I14,I44,I108,I162,I196,I226) -> 57.13760108
A10: DIMENSION | B10: CODE | C10: INDICATOR | D10: NOTES | E10: BASIC | F10: EXTENDED | G10: MISSING | J10: YEAR | K10: 2000 | L10: 2001 | M10: 2002 | N10: 2003 | O10: 2004 | P10: 2005 | Q10: 2006 | R10: 2007 | S10: 2008 | T10: 2009 | U10: 2010 | V10: 2011 | W10: 2012 | X10: 2013 | Y10: 2014 | Z10: Standardization | AA10: MIN | AB10: MAX | AC10: TARGET | AD10: LEVEL | AE10: SOURCE
B11: Demographic | C11: 1. Population | K11: =PRODUCTIVITY!K7 -> 3699136 | L11: =PRODUCTIVITY!L7 -> 3783094.76 | M11: =PRODUCTIVITY!M7 -> 3864745.84 | N11: =PRODUCTIVITY!N7 -> 3944089.24 | O11: =PRODUCTIVITY!O7 -> 4021124.96 | P11: =PRODUCTIVITY!P7 -> 4095853 | Q11: =PRODUCTIVITY!Q7 -> 4168273.36 | R11: =PRODUCTIVITY!R7 -> 4238386.04 | S11: =PRODUCTIVITY!S7 -> 4306191.04 | T11: =PRODUCTIVITY!T7 -> 4371688.36 | U11: =PRODUCTIVITY!U7 -> 4434878 | V11: =PRODUCTIVITY!V7 -> 4495759.96 | W11: =PRODUCTIVITY!W7 -> 4554334.24 | X11: =PRODUCTIVITY!X7 -> 4610600.84 | Y11: =PRODUCTIVITY!Y7 -> 4664559.76
C12: 2. Urban Footprint area | X12: 675.99
A13: PRODUCTIVITY INDEX (P) | C13: PRODUCTIVITY INDEX (geo) | H13: =GEOMEAN(H15,H26,H33) -> 68.20798773 | I13: =GEOMEAN(I15,I26,I33) -> 57.00976175
C14: PRODUCTIVITY INDEX | H14: =[43]PRODUCTIVITY!H13 -> 70.73363453 | I14: =[43]PRODUCTIVITY!I13 -> 66.20226642
C15: 1. Economic Growth Sub Index (EG) | H15: =PRODUCTIVITY!H11 -> 60.05609266 | I15: =PRODUCTIVITY!I11 -> 46.14385379
B16: P_EG_1 | C16: 1. City Product per capita | E16: X | J16: 2010 | S16: =PRODUCTIVITY!S12 -> 16767.51492 | T16: =PRODUCTIVITY!T12 -> 16780.77339 | U16: =PRODUCTIVITY!U12 -> 16435.69857 | V16: =PRODUCTIVITY!V12 -> 16625.01941 | W16: =PRODUCTIVITY!W12 -> 16263.29719 | Z16: 2.1 (ln) | AA16: 6.57 | AB16: 11.6 | AD16: Metropolitan - Guadalajara | AE16: IMCO
C17: Standardized | S17: =PRODUCTIVITY!S13 -> 62.76736895 | T17: =PRODUCTIVITY!T13 -> 62.78308288 | U17: =PRODUCTIVITY!U13 -> 62.36999981 | V17: =PRODUCTIVITY!V13 -> 62.5976945 | W17: =PRODUCTIVITY!W13 -> 62.16036067
B19: P_EG_2 | C19: 2. Old Age Dependency Ratio (reversed) | E19: X | J19: 2010 | U19: =PRODUCTIVITY!U15 -> 8.809820027 | Z19: 2.2 (ln) | AA19: 1.07 | AB19: 3.7 | AD19: Metropolitan - Guadalajara | AE19: Estiamted from INEGI data
C20: Standardized | U20: =PRODUCTIVITY!U16 -> 57.95182466
B22: P_EG_3 | C22: 3. Mean Household Income | D22: Mexican Pesos (MONTHLY) | F22: X | J22: 2010 | S22: =PRODUCTIVITY!S18 -> 6497 | T22: =PRODUCTIVITY!T18 -> 6017 | U22: =PRODUCTIVITY!U18 -> 8518 | AD22: State - Jalisco | AE22: Provided by Regina
C23: Annual MHI (USD PPP) | S23: =PRODUCTIVITY!S19 -> 10437.60186 | T23: =PRODUCTIVITY!T19 -> 9698.851732 | U23: =PRODUCTIVITY!U19 -> 13360.26564 | Z23: 2.1 | AA23: 6315 | AB23: 44773
C24: Standardized | S24: =PRODUCTIVITY!S20 -> 10.71975106 | T24: =PRODUCTIVITY!T20 -> 8.798823996 | U24: =PRODUCTIVITY!U20 -> 18.31937605
C26: 2. Economic Agglomeration (EA) | H26: =PRODUCTIVITY!H22 -> 89.56443097 | I26: =PRODUCTIVITY!I22 -> 63.62761611
B27: P_EA_1 | C27: 1. Economic Density | E27: X | J27: 2010 | S27: =PRODUCTIVITY!S23 -> 29796029.56 | T27: =PRODUCTIVITY!T23 -> 30273147.02 | U27: =PRODUCTIVITY!U23 -> 30079197.62 | V27: =PRODUCTIVITY!V23 -> 30843359.67 | W27: =PRODUCTIVITY!W23 -> 30565387.1 | Z27: 3 | AC27: 526032
C28: Standardized | S28: =PRODUCTIVITY!S24 -> 89.43195502 | T28: =PRODUCTIVITY!T24 -> 89.514507 | U28: =PRODUCTIVITY!U24 -> 89.48110746 | V28: =PRODUCTIVITY!V24 -> 89.61147661 | W28: =PRODUCTIVITY!W24 -> 89.56443097
B30: P_EA_2 | C30: 2. Economic Specialization | D30: MISSING | F30: X | G30: X | W30: =PRODUCTIVITY!W26 -> 0.1174891309 | X30: =PRODUCTIVITY!X26 -> 0.1238980501 | Z30: 3 | AC30: (0.25-(1/N))/(1-(1/N)) | AD30: State - Jalisco
C31: Standardized | W31: =PRODUCTIVITY!W27 -> 34.52404115 | X31: =PRODUCTIVITY!X27 -> 37.69080124
C33: 3. Employment Sub Index (E) | H33: =PRODUCTIVITY!H29 -> 58.99470958 | I33: =PRODUCTIVITY!I29 -> 63.1085444
B34: P_E_1 | C34: 1. Unemployment Rate (reversed) | E34: X | J34: 2012 | S34: =PRODUCTIVITY!S30 -> 4.424464897 | T34: =PRODUCTIVITY!T30 -> 5.295396326 | U34: =PRODUCTIVITY!U30 -> 6.256887389 | V34: =PRODUCTIVITY!V30 -> 5.305834526 | W34: =PRODUCTIVITY!W30 -> 5.55009806 | Z34: 2.2 (fourth root) | AA34: 1 | AB34: 28.2 | AD34: Metropolitan - Guadalajara | AE34: Estiamted from INEGI data
C35: Standardized | S35: =PRODUCTIVITY!S31 -> 65.47712072 | T35: =PRODUCTIVITY!T31 -> 60.36856559 | U35: =PRODUCTIVITY!U31 -> 55.4152244 | V35: =PRODUCTIVITY!V31 -> 60.31129885 | W35: =PRODUCTIVITY!W31 -> 58.99470958 | AE35: Census Calculated(Projected)
B37: P_E_2 | C37: 2. Employment to Population Ratio | F37: X | J37: 2012 | S37: =PRODUCTIVITY!S33 -> 0.6531085294 | T37: =PRODUCTIVITY!T33 -> 0.6599871035 | U37: =PRODUCTIVITY!U33 -> 0.6564945728 | V37: =PRODUCTIVITY!V33 -> 0.6612830865 | W37: =PRODUCTIVITY!W33 -> 0.6353769773 | Z37: 2.1 | AA37: 0.305 | AB37: 0.75 | AD37: Metropolitan - Guadalajara | AE37: Estiamted from INEGI data
C38: Standardized | S38: =PRODUCTIVITY!S34 -> 78.22663582 | T38: =PRODUCTIVITY!T34 -> 79.7723828 | U38: =PRODUCTIVITY!U34 -> 78.98754445 | V38: =PRODUCTIVITY!V34 -> 80.06361493 | W38: =PRODUCTIVITY!W34 -> 74.24201736 | AE38: Census Calculated(Projected)
B40: P_E_3 | C40: 3. Informal Employment (reversed) | F40: X | J40: 2012 | P40: =PRODUCTIVITY!P36 -> 47.2388 | Q40: =PRODUCTIVITY!Q36 -> 44.0527 | R40: =PRODUCTIVITY!R36 -> 45.0699 | S40: =PRODUCTIVITY!S36 -> 45.4397 | T40: =PRODUCTIVITY!T36 -> 46.9238 | U40: =PRODUCTIVITY!U36 -> 46.6447 | V40: =PRODUCTIVITY!V36 -> 46.8227 | W40: =PRODUCTIVITY!W36 -> 46.8969 | Z40: 2.2 | AA40: 11 | AB40: 75 | AD40: State - Jalisco | AE40: INEGI | AF40: Jalisco, Áreas más, Trimestre IV
C41: Standardized | P41: =PRODUCTIVITY!P37 -> 56.623125 | Q41: =PRODUCTIVITY!Q37 -> 51.64484375 | R41: =PRODUCTIVITY!R37 -> 53.23421875 | S41: =PRODUCTIVITY!S37 -> 53.81203125 | T41: =PRODUCTIVITY!T37 -> 56.1309375 | U41: =PRODUCTIVITY!U37 -> 55.69484375 | V41: =PRODUCTIVITY!V37 -> 55.97296875 | W41: =PRODUCTIVITY!W37 -> 56.08890625
A43: INFRASTRUCTURE DEVELOPMENT INDEX (ID) | C43: (geo) | H43: =GEOMEAN(H45,H64,H71,H81,H97) -> 52.2437665 | I43: =GEOMEAN(I45,I64,I71,I81,I97) -> 49.25966681
C44: INFRASTRUCTURE DEVELOPMENT INDEX(avg) | H44: =INFRASTRUCTURE!H11 -> 52.2437665 | I44: =INFRASTRUCTURE!I11 -> 49.25966681
C45: 1. Housing Infrastructure Sub Index (HI) | H45: =INFRASTRUCTURE!H17 -> 92.25383637 | I45: =INFRASTRUCTURE!I17 -> 89.22758473
B46: ID_HI_1 | C46: 1. Improved Shelter | D46: % | E46: X | J46: 2010 | U46: =INFRASTRUCTURE!U18 -> 0.973726098 | Z46: 2.1 | AA46: 0.85 | AB46: 0.98 | AD46: Metropolitan - Guadalajara
C47: Standardized | U47: =INFRASTRUCTURE!U19 -> 95.17392152
B49: ID_HI_2 | C49: 2. Access to Improved Water | D49: % | E49: X | J49: 2010 | U49: =INFRASTRUCTURE!U21 -> 0.9466687561 | Z49: 2.1 | AA49: 0.5 | AB49: 1 | AD49: Metropolitan - Guadalajara
C50: Standardized | U50: =INFRASTRUCTURE!U22 -> 89.33375123
B52: ID_HI_3 | C52: 3. Access to Improved Sanitation | D52: % | F52: X | J52: 2010 | U52: =INFRASTRUCTURE!U24 -> 0.9799287635 | Z52: 2.1 | AA52: 0.15 | AB52: 1 | AD52: Metropolitan - Guadalajara
C53: Standardized | U53: =INFRASTRUCTURE!U25 -> 97.63867806
B55: ID_HI_4 | C55: 4. Access to Electricity | D55: % | F55: X | J55: 2010 | U55: =INFRASTRUCTURE!U27 -> 0.9931516931 | Z55: 2.1 | AA55: 0.07 | AB55: 1 | AD55: Metropolitan - Guadalajara
C56: Standardized | U56: =INFRASTRUCTURE!U28 -> 99.26362291
B58: ID_HI_5 | C58: 5. Sufficient Living Area | D58: % | F58: X | J58: 2010 | U58: =INFRASTRUCTURE!U30 -> 0.9675215197 | Z58: 2.1 (fourth root) | AA58: 0.025 | AB58: 0.578 | AD58: Metropolitan - Guadalajara
C59: Standardized | U59: =INFRASTRUCTURE!U31 -> 95.62049147
B61: ID_HI_6 | C61: 6. Residential Density | D61: People/km2 | F61: X | J61: 2013 | X61: =INFRASTRUCTURE!X33 -> 8750.25648 | Z61: 5 | AC61: 15000 | AD61: Metropolitan - Guadalajara
C62: Standardized | X62: =INFRASTRUCTURE!X34 -> 58.3350432
C64: 2. Social Infrastructure (SI) | H64: =INFRASTRUCTURE!H36 -> 23.2707198 | I64: =INFRASTRUCTURE!I36 -> 17.35503487
B65: ID_SI_1 | C65: 1. Physicians Density | D65: # / 1,000 people | E65: X | J65: 2012 | S65: =INFRASTRUCTURE!S37 -> 0.6908657726 | T65: =INFRASTRUCTURE!T37 -> 0.70933693 | U65: =INFRASTRUCTURE!U37 -> 0.5871638408 | V65: =INFRASTRUCTURE!V37 -> 0.6054593715 | W65: =INFRASTRUCTURE!W37 -> 0.5236769798 | Z65: 2.1 (square root) | AA65: 0.1 | AB65: 2.78 | AD65: Metropolitan - Guadalajara | AE65: SSA (SINAIS)
C66: Standardized | S66: =INFRASTRUCTURE!S38 -> 27.28296108 | T66: =INFRASTRUCTURE!T38 -> 27.69482932 | U66: =INFRASTRUCTURE!U38 -> 24.86067792 | V66: =INFRASTRUCTURE!V38 -> 25.30271263 | W66: =INFRASTRUCTURE!W38 -> 23.2707198
B68: ID_SI_2 | C68: 2. Number of Public Libraries | D68: # / 100,000 people | F68: X | J68: 2011 | L68: =INFRASTRUCTURE!L40 -> 0.9780352422 | M68: =INFRASTRUCTURE!M40 -> 0.9314972185 | N68: =INFRASTRUCTURE!N40 -> 0.887403856 | O68: =INFRASTRUCTURE!O40 -> 0.8704031918 | P68: =INFRASTRUCTURE!P40 -> 0.8301079165 | Q68: =INFRASTRUCTURE!Q40 -> 0.8876577135 | R68: =INFRASTRUCTURE!R40 -> 0.8729738077 | S68: =INFRASTRUCTURE!S40 -> 0.8592280198 | T68: =INFRASTRUCTURE!T40 -> 0.8463549309 | U68: =INFRASTRUCTURE!U40 -> 0.83429578 | V68: =INFRASTRUCTURE!V40 -> 0.8007544958 | Z68: 2.1 | AA68: 1 | AB68: 7
C69: Standardized | L69: =INFRASTRUCTURE!L41 -> 13.97193203 | M69: =INFRASTRUCTURE!M41 -> 13.30710312 | N69: =INFRASTRUCTURE!N41 -> 12.67719794 | O69: =INFRASTRUCTURE!O41 -> 12.43433131 | P69: =INFRASTRUCTURE!P41 -> 11.85868452 | Q69: =INFRASTRUCTURE!Q41 -> 12.68082448 | R69: =INFRASTRUCTURE!R41 -> 12.4710544 | S69: =INFRASTRUCTURE!S41 -> 12.274686 | T69: =INFRASTRUCTURE!T41 -> 12.09078473 | U69: =INFRASTRUCTURE!U41 -> 11.91851114 | V69: =INFRASTRUCTURE!V41 -> 11.43934994
C71: 3. ICT Sub Index (ICT) | H71: =INFRASTRUCTURE!H43 -> 34.42745955 | I71: =INFRASTRUCTURE!I43 -> 45.86136065
B72: ID_ICT_1 | C72: 1. Internet Access | D72: % | E72: X | J72: 2012 | U72: =INFRASTRUCTURE!U44 -> 0.3442745955 | Z72: 1.1 | AA72: 0 | AB72: 1 | AD72: Metropolitan - Guadalajara | AE72: Calculated from 2010 Mexico Census
C73: Standardized | U73: =INFRASTRUCTURE!U45 -> 34.42745955
B75: ID_ICT_2 | C75: 2. Home Computer Access | D75: % | F75: X | J75: 2012 | S75: =INFRASTRUCTURE!S47 -> 0.320482403 | T75: =INFRASTRUCTURE!T47 -> 0.3407879248 | U75: =INFRASTRUCTURE!U47 -> 0.3615856833 | V75: =INFRASTRUCTURE!V47 -> 0.3532012069 | W75: =INFRASTRUCTURE!W47 -> 0.4398400986 | Z75: 1.1 | AA75: 0 | AB75: 1 | AD75: Metropolitan - Guadalajara | AE75: Calculated from 2010 Mexico Census | AF75: MCS (CONEVAL)
C76: Standardized | S76: =INFRASTRUCTURE!S48 -> 32.0482403 | T76: =INFRASTRUCTURE!T48 -> 34.07879248 | U76: =INFRASTRUCTURE!U48 -> 36.15856833 | V76: =INFRASTRUCTURE!V48 -> 35.32012069 | W76: =INFRASTRUCTURE!W48 -> 43.98400986
B78: ID_ICT_3 | C78: 3. Average broadband speed | D78: Mbps | F78: X | J78: 2013 | U78: =INFRASTRUCTURE!U50 -> 4.539166667 | V78: =INFRASTRUCTURE!V50 -> 6.078333333 | W78: =INFRASTRUCTURE!W50 -> 7.756666667 | X78: =INFRASTRUCTURE!X50 -> 8.995 | Z78: 2.1 | AA78: 0.6 | AB78: Yearly Global average | AE78: http://explorer.netindex.com/maps
C79: Standardized | U79: =INFRASTRUCTURE!U51 -> 14.51194358 | V79: =INFRASTRUCTURE!V51 -> 25.18529548 | W79: =INFRASTRUCTURE!W51 -> 35.82273333 | X79: =INFRASTRUCTURE!X51 -> 63.86021867
C81: 4. Urban Mobility Index (UM) | H81: =INFRASTRUCTURE!H53 -> 69.88080413 | I81: =INFRASTRUCTURE!I53 -> 54.19640881
B82: ID_UM_1 | C82: 1. Use of Public Transport | D82: % | E82: X | J82: 2007 | R82: =INFRASTRUCTURE!R54 -> 28.3 | Z82: 2.1 | AA82: 0.0595 | AB82: 0.6216 | AD82: State - Jalisco | AF82: Desplazamiento segun modo de transporte
C83: Standardized | R83: =INFRASTRUCTURE!R55 -> 39.76160825
B85: ID_UM_2 | C85: 2. Average Daily Travel Time (reversed) | D85: minutes (min.) | E85: X | J85: 2007 | R85: =INFRASTRUCTURE!R57 -> 28.266 | Z85: 4 | AC85: 30 | AD85: State - Jalisco | AF85: Duración promedio de desplazamientos por motivo y medio de transporte de la “movilidad obligada". Total de desplazamientos
C86: Standardized | R86: =INFRASTRUCTURE!R58 -> 100
B88: ID_UM_3 | C88: 3. Length of Mass Transport Network | D88: km / 1,000,000 people | F88: X | J88: 2013 | K88: =INFRASTRUCTURE!K60 -> 6.488001523 | L88: =INFRASTRUCTURE!L60 -> 6.344012382 | M88: =INFRASTRUCTURE!M60 -> 6.209981456 | N88: =INFRASTRUCTURE!N60 -> 6.085055013 | O88: =INFRASTRUCTURE!O60 -> 5.96847903 | P88: =INFRASTRUCTURE!P60 -> 5.859585293 | Q88: =INFRASTRUCTURE!Q60 -> 5.757779763 | R88: =INFRASTRUCTURE!R60 -> 5.662532807 | S88: =INFRASTRUCTURE!S60 -> 5.573370939 | T88: =INFRASTRUCTURE!T60 -> 9.149783037 | U88: =INFRASTRUCTURE!U60 -> 9.019413837 | V88: =INFRASTRUCTURE!V60 -> 8.897272176 | W88: =INFRASTRUCTURE!W60 -> 8.782842429 | X88: =INFRASTRUCTURE!X60 -> 8.675658854 | Z88: 3 | AC88: 80 | AD88: Metropolitan - Guadalajara
C89: Standardized | K89: =INFRASTRUCTURE!K61 -> 8.110001903 | L89: =INFRASTRUCTURE!L61 -> 7.930015478 | M89: =INFRASTRUCTURE!M61 -> 7.76247682 | N89: =INFRASTRUCTURE!N61 -> 7.606318766 | O89: =INFRASTRUCTURE!O61 -> 7.460598787 | P89: =INFRASTRUCTURE!P61 -> 7.324481616 | Q89: =INFRASTRUCTURE!Q61 -> 7.197224704 | R89: =INFRASTRUCTURE!R61 -> 7.078166009 | S89: =INFRASTRUCTURE!S61 -> 6.966713674 | T89: =INFRASTRUCTURE!T61 -> 11.4372288 | U89: =INFRASTRUCTURE!U61 -> 11.2742673 | V89: =INFRASTRUCTURE!V61 -> 11.12159022 | W89: =INFRASTRUCTURE!W61 -> 10.97855304 | X89: =INFRASTRUCTURE!X61 -> 10.84457357
B91: ID_UM_4 | C91: 4. Traffic Fatalities (reversed) | D91: # / 100,000 people | F91: X | J91: 2012 | S91: =INFRASTRUCTURE!S63 -> 2.972464501 | T91: =INFRASTRUCTURE!T63 -> 2.813558284 | U91: =INFRASTRUCTURE!U63 -> 2.953858032 | V91: =INFRASTRUCTURE!V63 -> 2.669181653 | W91: =INFRASTRUCTURE!W63 -> 2.678766941 | Z91: 2.2 | AA91: 1 | AB91: 31 | AD91: Metropolitan - Guadalajara
C92: Standardized | S92: =INFRASTRUCTURE!S64 -> 93.42511833 | T92: =INFRASTRUCTURE!T64 -> 93.95480572 | U92: =INFRASTRUCTURE!U64 -> 93.48713989 | V92: =INFRASTRUCTURE!V64 -> 94.43606116 | W92: =INFRASTRUCTURE!W64 -> 94.4041102
B94: ID_UM_5 | C94: 5. Affordability of Transport (reversed) | D94: % | F94: X | J94: 2012 | W94: =INFRASTRUCTURE!W66 -> 20.25861591 | Z94: 2.2 | AA94: 0.04 | AB94: 0.26 | AD94: State - Jalisco
C95: Standardized | W95: =INFRASTRUCTURE!W67 -> 26.09720043
C97: 5. Street Connectivity (SC) | H97: =INFRASTRUCTURE!H69 -> 75.35555556 | I97: =INFRASTRUCTURE!I69 -> 75.35555556
B98: ID_SC_1 | C98: 1. Street Intersection Density | D98: # / km2 | E98: X | J98: 2014 | Y98: =INFRASTRUCTURE!Y70 -> 110.87 | Z98: 3 | AC98: 100 | AD98: Metropolitan - Guadalajara
C99: Standardized | Y99: =INFRASTRUCTURE!Y73 -> 100
B101: ID_SC_2 | C101: 2. Street Density | E101: X | J101: 2014 | Y101: =INFRASTRUCTURE!Y75 -> 15.26 | Z101: 5 | AC101: 20 | AD101: Metropolitan - Guadalajara
C102: Standardized | Y102: =INFRASTRUCTURE!Y78 -> 76.3
B104: ID_SC_3 | C104: 3. Land allocated to streets | D104: % | E104: X | J104: 2014 | Y104: =INFRASTRUCTURE!Y80 -> 20.93 | Z104: 2.1 | AA104: 0.06 | AB104: 0.36 | AD104: Metropolitan - Guadalajara
C105: Standardized | Y105: =INFRASTRUCTURE!Y81 -> 49.76666667
A107: Quality of Life Index (QOL) | C107: (geo)
A108: QUALITY OF LIFE INDEX (QOL) | C108: QUALITY OF LIFE INDEX(avg) | H108: =QOL!H12 -> 54.71299886 | I108: =QOL!I12 -> 48.27764946
H109: =QOL!H18 -> 68.04424281 | I109: =QOL!I18 -> 68.1623499
B110: QoL_H_1 | C110: 1. Life Expectancy at Birth | D110: years | E110: X | J110: 2012 | K110: =QOL!K19 -> 74.8 | L110: =QOL!L19 -> - | M110: =QOL!M19 -> - | N110: =QOL!N19 -> - | O110: =QOL!O19 -> - | P110: =QOL!P19 -> 75.93 | Q110: =QOL!Q19 -> 76.18 | R110: =QOL!R19 -> 76.41 | S110: =QOL!S19 -> 76.64 | T110: =QOL!T19 -> 76.86 | U110: =QOL!U19 -> 77.07 | V110: =QOL!V19 -> 77.28 | W110: =QOL!W19 -> 77.28 | Z110: 2.1 | AA110: 54 | AB110: 83.48 | AD110: STATE (Jalisco) | AE110: SEPLAN
C111: Standardised | K111: =QOL!K20 -> 70.55630936 | L111: =QOL!L20 -> - | M111: =QOL!M20 -> - | N111: =QOL!N20 -> - | O111: =QOL!O20 -> - | P111: =QOL!P20 -> 74.38941655 | Q111: =QOL!Q20 -> 75.23744912 | R111: =QOL!R20 -> 76.01763908 | S111: =QOL!S20 -> 76.79782904 | T111: =QOL!T20 -> 77.54409769 | U111: =QOL!U20 -> 78.25644505 | V111: =QOL!V20 -> 78.9687924 | W111: =QOL!W20 -> 78.9687924
B113: QoL_H_2 | C113: 2. Under-Five Mortality Rate (reversed) | D113: # / 1,000 live births | E113: X | J113: 2011 | K113: =QOL!K22 -> 20.7 | L113: =QOL!L22 -> 19.9 | M113: =QOL!M22 -> 19 | N113: =QOL!N22 -> 18.3 | O113: =QOL!O22 -> 17.6 | P113: =QOL!P22 -> 17 | Q113: =QOL!Q22 -> 16.4 | R113: =QOL!R22 -> 15.8 | S113: =QOL!S22 -> 15.3 | T113: =QOL!T22 -> 14.9 | U113: =QOL!U22 -> 14.4 | V113: =QOL!V22 -> 14.6 | Z113: 2.2 (ln) | AA113: 0.79 | AB113: 5.2 | AD113: STATE (Jalisco)
C114: Standardised | K114: =QOL!K24 -> 49.20331745 | L114: =QOL!L24 -> 50.09705824 | M114: =QOL!M24 -> 51.14650841 | N114: =QOL!N24 -> 51.99770839 | O114: =QOL!O24 -> 52.88211106 | P114: =QOL!P24 -> 53.66863165 | Q114: =QOL!Q24 -> 54.48341644 | R114: =QOL!R24 -> 55.32857279 | S114: =QOL!S24 -> 56.05775899 | T114: =QOL!T24 -> 56.6584759 | U114: =QOL!U24 -> 57.43246697 | V114: =QOL!V24 -> 57.11969323
B116: QoL_H_3 | C116: 3. Vaccination Coverage | D116: % | F116: X | J116: 2013 | K116: =QOL!K26 -> 96.8 | L116: =QOL!L26 -> 88 | M116: =QOL!M26 -> 76.7 | N116: =QOL!N26 -> 86.4 | O116: =QOL!O26 -> 79.1 | P116: =QOL!P26 -> 79.8 | Q116: =QOL!Q26 -> 68.6 | R116: =QOL!R26 -> 71.4 | S116: =QOL!S26 -> 80.6 | T116: =QOL!T26 -> 76.2 | U116: =QOL!U26 -> 80.1 | V116: =QOL!V26 -> 79.9 | W116: =QOL!W26 -> 85.4 | X116: =QOL!X26 -> 81.6 | Z116: 1.1 | AA116: 0 | AB116: 100 | AD116: STATE (Jalisco)
C117: Standardised | K117: =QOL!K27 -> 96.8 | L117: =QOL!L27 -> 88 | M117: =QOL!M27 -> 76.7 | N117: =QOL!N27 -> 86.4 | O117: =QOL!O27 -> 79.1 | P117: =QOL!P27 -> 79.8 | Q117: =QOL!Q27 -> 68.6 | R117: =QOL!R27 -> 71.4 | S117: =QOL!S27 -> 80.6 | T117: =QOL!T27 -> 76.2 | U117: =QOL!U27 -> 80.1 | V117: =QOL!V27 -> 79.9 | W117: =QOL!W27 -> 85.4 | X117: =QOL!X27 -> 81.6
B119: QoL_H_4 | C119: 4. Maternal Mortality (reversed) | D119: # / 100,000 live births | F119: X | K119: =QOL!K29 -> 56.4 | L119: =QOL!L29 -> 46.1 | M119: =QOL!M29 -> 33.1 | N119: =QOL!N29 -> 37.1 | O119: =QOL!O29 -> 43.8 | P119: =QOL!P29 -> 34.7 | Q119: =QOL!Q29 -> 51.5 | R119: =QOL!R29 -> 30.7 | S119: =QOL!S29 -> 34.7 | T119: =QOL!T29 -> 54.1 | U119: =QOL!U29 -> 32.3 | V119: =QOL!V29 -> 23.4 | W119: =QOL!W29 -> 23.4 | Z119: 2.2 (ln) | AA119: 0 | AB119: 7 | AD119: STATE (Jalisco)
C120: Standardised | K120: =QOL!K31 -> 42.39329774 | L120: =QOL!L31 -> 45.27410071 | M120: =QOL!M31 -> 50.00666739 | N120: =QOL!N31 -> 48.37690043 | O120: =QOL!O31 -> 46.00523118 | P120: =QOL!P31 -> 49.33229019 | Q120: =QOL!Q31 -> 43.69168846 | R120: =QOL!R31 -> 51.08196208 | S120: =QOL!S31 -> 49.33229019 | T120: =QOL!T31 -> 42.98808306 | U120: =QOL!U31 -> 50.35618243 | V120: =QOL!V31 -> 54.96091397 | W120: =QOL!W31 -> 54.96091397
C122: 2. Education Sub Index (E) | H122: =QOL!H33 -> 80.93350744 | I122: =QOL!I33 -> 64.94952277
B123: QoL_E_1 | C123: 1. Literacy Rate | D123: % | E123: X | J123: 2010 | P123: =QOL!P34 -> 96.82261691 | U123: =QOL!U34 -> 97.37721896 | Z123: 2.1 | AA123: =0.15*100 -> 15 | AB123: =0.999*100 -> 99.9
C124: Standardised | P124: =QOL!P35 -> 96.82261691 | U124: =QOL!U35 -> 97.37721896
B126: QoL_E_2 | C126: 2. Mean Years of Schooling | D126: years | E126: X | J126: 2011 | U126: =QOL!U37 -> 9.028571429 | Z126: 3 | AC126: 14 | AE126: ENOE
U127: =QOL!U38 -> 0.3551020408
U128: =QOL!U39 -> 64.48979592
C129: Standardised(if condition applied) | U129: =QOL!U40 -> 64.48979592
B131: QoL_E_3 | C131: 3. Under-Six Participation on First Stage Development Programs | D131: % | F131: X | J131: 2013 | Q131: =QOL!Q42 -> 69.1 | R131: =QOL!R42 -> 72.6 | S131: =QOL!S42 -> 73.1 | T131: =QOL!T42 -> 71 | U131: =QOL!U42 -> 70.5 | V131: =QOL!V42 -> 70.3 | W131: =QOL!W42 -> 70.7 | X131: =QOL!X42 -> 70.5 | Z131: 1.1 | AA131: 0 | AB131: =1*100 -> 100 | AD131: STATE | AE131: Secretaría de Educación Pública
C132: Standardised | Q132: =QOL!Q43 -> 69.1 | R132: =QOL!R43 -> 72.6 | S132: =QOL!S43 -> 73.1 | T132: =QOL!T43 -> 71 | U132: =QOL!U43 -> 70.5 | V132: =QOL!V43 -> 70.3 | W132: =QOL!W43 -> 70.7 | X132: =QOL!X43 -> 70.5
B135: QoL_E_4 | C135: 4. Net enrollment rate in higher education | D135: % | F135: X | J135: 2013 | R135: =QOL!R46 -> 40.19953202 | S135: =QOL!S46 -> 40.4477966 | T135: =QOL!T46 -> 40.99285947 | U135: =QOL!U46 -> 26.1708 | V135: =QOL!V46 -> 26.72196236 | W135: =QOL!W46 -> 27.83124931 | X135: =QOL!X46 -> 27.43107621 | Z135: 1.1 | AA135: 0 | AB135: =1*100 -> 100 | AE135: Secretaría de Educación Pública
C136: Standardised | R136: =QOL!R47 -> 40.19953202 | S136: =QOL!S47 -> 40.4477966 | T136: =QOL!T47 -> 40.99285947 | U136: =QOL!U47 -> 26.1708 | V136: =QOL!V47 -> 26.72196236 | W136: =QOL!W47 -> 27.83124931 | X136: =QOL!X47 -> 27.43107621
B138: QoL_E_5 | C138: 5. Number of Top Universities | D138: # | F138: X | G138: X | J138: 2013 | Z138: 2.1 | AA138: 0 | AB138: 4
C139: Standardised
C141: 3. Safety and Security Sub Index (SS) | H141: =QOL!H52 -> 42.08334457 | I141: =QOL!I52 -> 38.91007748
B142: QoL_SS_1 | C142: Homicides per year | E142: X | J142: 2012 | S142: =QOL!S53 -> 529 | T142: =QOL!T53 -> 592 | U142: =QOL!U53 -> 909 | Z142: 2.2 (ln) | AA142: 0 | AB142: 7.41 | AD142: Metropolitan - Guadalajara | AE142: INEGI
C143: 1. Homicide rate (reversed) | D143: # / 100,000 people | S143: =QOL!S54 -> 43.48251727 | T143: =QOL!T54 -> 48.07141854 | U143: =QOL!U54 -> 73.08507456
C144: Standardised | S144: =QOL!S55 -> 49.09097226 | T144: =QOL!T55 -> 47.73700687 | U144: =QOL!U55 -> 42.08334457
B146: QoL_SS_2 | C146: Theft offenses recorded in the MP of common law | F146: X | J146: 2010 | S146: =QOL!S57 -> 15433 | T146: =QOL!T57 -> 14911 | U146: =QOL!U57 -> 22123 | Z146: 2.2 (fourth root) | AA146: 2.24 | AB146: 8.86 | AD146: Metropolitan - Guadalajara
C147: 2. Theft rate (reversed) | D147: # / 100,000 people | S147: =QOL!S58 -> 1268.555178 | T147: =QOL!T58 -> 1210.798854 | U147: =QOL!U58 -> 1778.725088
C148: Standardised | S148: =QOL!S59 -> 43.68610655 | T148: =QOL!T59 -> 44.73022967 | U148: =QOL!U59 -> 35.73681039
C150: 4. Public Space (PS) | H150: =QOL!H62 -> 38.66625246 | I150: =QOL!I62 -> 31.53565485
B151: QoL_PS_1 | C151: 1. Accessibility to Open Public Area | D151: % | E151: X | J151: 2013 | Y151: =QOL!Y63 -> 38.66625246 | Z151: 1.1 | AB151: 100 | AD151: Metropolitan - Guadalajara
C152: Urban Area | Y152: =QOL!Y64 -> 675.99
C153: Public Space (with 300m buffer) | Y153: =QOL!Y65 -> 261.38
C154: Standardized | Y154: =QOL!Y66 -> 38.66625246
Y156: =QOL!Y68 -> 17075827.19
B157: QoL_PS_2 | C157: 2. Green area per capita | D157: m2 / inhabitant | F157: X | J157: 2013 | Y157: =QOL!Y69 -> 3.660758586 | Z157: 3 | AC157: 15 | AD157: Metropolitan - Guadalajara
Y158: =QOL!Y70 -> 0.7559494276
C159: Standardised | Y159: =QOL!Y71 -> 24.40505724
A161: EQUITY AND SOCIAL INCLUSION INDEX (ESI) | C161: QUALITY OF LIFE INDEX(geo) | Y161: =QOL!Y73 -> 0
C162: EQUITY AND SOCIAL INCLUSION INDEX(avg) | H162: =[43]EQUITY!H11 -> 75.57432396 | I162: =[43]EQUITY!I11 -> 70.8369551
C163: 1. Economic Equity SubIndex (EE) | H163: =[43]EQUITY!H17 -> 55.26151682 | I163: =[43]EQUITY!I17 -> 55.26151682
B164: ESI_EE_1 | C164: 1. Gini Coefficient (reversed) | D164: dimensionless (0 - 1) | E164: X | J164: 2012 | M164: =EQUITY!M17 -> 0.446 | P164: =EQUITY!P17 -> 0.399 | U164: =EQUITY!U17 -> 0.421 | Z164: 2.2 | AA164: 0.24 | AB164: 0.63 | AD164: Metropolitan - Guadalajara | AE164: GUO, Calculated from Cesnus
C165: Standardized | M165: =EQUITY!M18 -> 0.4717948718 | P165: =EQUITY!P18 -> 0.5923076923 | U165: =EQUITY!U18 -> 0.5358974359
B167: ESI_EE_2 | C167: 2. Poverty Rate (reversed) | D167: % | E167: X | W167: =EQUITY!W20 -> 2.977910047 | Z167: 2.2 (fourth root) | AA167: =0.0038*100 -> 0.38 | AB167: =0.03*100 -> 3 | AD167: Metropolitan - Guadalajara
J168: 2012 | W168: =EQUITY!W21 -> 0.356352911
C169: Standardized | W169: =EQUITY!W22 -> 64.3647089
C171: 2. Social Inclusion Sub Index (SI) | H171: =[43]EQUITY!H25 -> 83.78483252 | I171: =[43]EQUITY!I25 -> 83.78483252
B172: ESI_SI_1 | C172: 1. Slum Households (reversed) | D172: % | E172: X | J172: 2012 | U172: =EQUITY!U25 -> 10.19786588 | Z172: 2.2 | AA172: 0 | AB172: =0.8*100 -> 80 | AD172: Metropolitan - Guadalajara | AE172: GUO, Calculated from Cesnus 2010
C173: Standardized | U173: =EQUITY!U27 -> 87.25266766
B175: ESI_SI_2 | C175: 2. Youth Unemployment (reversed) | D175: % | E175: X | J175: 2010 | U175: =EQUITY!U29 -> 6.8 | Z175: 2.2 (fourth root) | AA175: =0.0128*100 -> 1.28 | AB175: =0.0282*100 -> 2.82 | AD175: STATE (Jalisco)
U176: =EQUITY!U30 -> 0.2174230899
C177: Standardized | U177: =EQUITY!U31 -> 78.25769101
C179: 3. Gender Inclusion Sub Index (GI) | H179: =[43]EQUITY!H34 -> 93.22547519 | I179: =[43]EQUITY!I34 -> 76.76998356
B180: ESI_GI_1 | C180: 1. Equitable Secondary School Enrollment | D180: dimensionless (0-∞) | E180: X | J180: 2013 | R180: =EQUITY!R34 -> 1.073014695 | S180: =EQUITY!S34 -> 1.077270892 | T180: =EQUITY!T34 -> 1.08542829 | U180: =EQUITY!U34 -> 1.062625419 | V180: =EQUITY!V34 -> 1.057174893 | W180: =EQUITY!W34 -> 1.044488447 | X180: =EQUITY!X34 -> 1.052675329
R181: =EQUITY!R35 -> 0.07301469463 | S181: =EQUITY!S35 -> 0.07727089196 | T181: =EQUITY!T35 -> 0.0854282899 | U181: =EQUITY!U35 -> 0.06262541917 | V181: =EQUITY!V35 -> 0.05717489289 | W181: =EQUITY!W35 -> 0.04448844679 | X181: =EQUITY!X35 -> 0.05267532924
C182: Standardized | R182: =EQUITY!R36 -> 92.69853054 | S182: =EQUITY!S36 -> 92.2729108 | T182: =EQUITY!T36 -> 91.45717101 | U182: =EQUITY!U36 -> 93.73745808 | V182: =EQUITY!V36 -> 94.28251071 | W182: =EQUITY!W36 -> 95.55115532 | X182: =EQUITY!X36 -> 94.73246708 | Z182: 5 | AC182: 1 | AD182: Metropolitan - Guadalajara
B184: ESI_GI_2 | C184: 2. Women in Local Government | D184: % | F184: X | J184: 2010 | U184: =EQUITY!U39 -> 0.2990518608 | Z184: 5 | AC184: 0.5 | AD184: Metropolitan - Guadalajara | AE184: INEGI. Anuario estadístico of Jalisco. 2012. 2013
U185: =EQUITY!U40 -> 0.4018962783 | AE185: http://www.inegi.org.mx/prod_serv/contenidos/espanol/bvinegi/productos/integracion/pais/anuario_multi/2012/jal/702825046507.pdf
C186: Standardized | U186: =EQUITY!U41 -> 59.81037217
B188: ESI_GI_3 | C188: 3. Women in the Work Force | D188: % | F188: X | J188: 2012 | W188: =EQUITY!W43 -> 41.13223775 | Z188: 5 | AC188: 0.5 | AD188: STATE (Jalisco)
C189: Standardized | W189: =EQUITY!W44 -> 82.2644755
C191: 4. Urban Diversity (UD)
B192: ESI_UD_1 | C192: 1. Land Use Mix | D192: dimensionless (0 - 1.61) | E192: X | G192: X | Z192: 2.1 | AA192: 0 | AB192: 1.61
C193: Standardized
A195: Environmental Sustainability (ES) | C195: QUALITY OF LIFE INDEX(geo)
A196: ENVIRONMENTAL SUSTAINABILITY INDEX (ES) | C196: ENVIRONMENTAL SUSTAINABILITY INDEX(avg) | H196: =ENVIRONMENT!H12 -> 42.09417942 | I196: =ENVIRONMENT!I12 -> 46.00930048
C197: 1. Air Quality (AQ) | H197: =ENVIRONMENT!H18 -> 33.33333333 | I197: =ENVIRONMENT!I18 -> 43.52607368
B198: ES_AQ_1 | C198: 1. Number of monitoring stations | D198: # | E198: X | J198: 2013 | X198: =ENVIRONMENT!X19 -> 10 | Z198: 2.1 | AA198: 0 | AB198: 10 | AD198: Metropolitan - Guadalajara
C199: Standardized | X199: =ENVIRONMENT!X20 -> 33.33333333
B201: ES_AQ_2 | C201: 2. PM10 Concentration (reversed) | D201: ug/m3 | F201: X | J201: 2011 | R201: =ENVIRONMENT!R22 -> 41.4 | S201: =ENVIRONMENT!S22 -> 41.5 | T201: =ENVIRONMENT!T22 -> 41.7 | U201: =ENVIRONMENT!U22 -> 41.8 | V201: =ENVIRONMENT!V22 -> 62.2 | W201: =ENVIRONMENT!W22 -> 58.29 | X201: =ENVIRONMENT!X22 -> 62.48 | Z201: 4 | AC201: 40 | AD201: Metropolitan - Guadalajara
C202: Abs | R202: =ENVIRONMENT!R23 -> 0.035 | S202: =ENVIRONMENT!S23 -> 0.0375 | T202: =ENVIRONMENT!T23 -> 0.0425 | U202: =ENVIRONMENT!U23 -> 0.045 | V202: =ENVIRONMENT!V23 -> 0.555
C203: Standardized | R203: =ENVIRONMENT!R24 -> 96.5 | S203: =ENVIRONMENT!S24 -> 96.25 | T203: =ENVIRONMENT!T24 -> 95.75 | U203: =ENVIRONMENT!U24 -> 95.5 | V203: =ENVIRONMENT!V24 -> 44.5
B205: ES_AQ_3 | C205: 3. CO2 Emissions (reversed) | D205: metric tonnes per capita | F205: X | J205: 2008 | S205: =ENVIRONMENT!S26 -> 2.42 | Z205: 2.2 (fifth root) | AA205: 0.39 | AB205: 2.09 | AD205: Metropolitan - Guadalajara
S206: =ENVIRONMENT!S27 -> 0.4725511229
C207: Standardized | S207: =ENVIRONMENT!S28 -> 52.74488771
C209: 2. Waste Management Sub Index (WM) | H209: =ENVIRONMENT!H30 -> 63.69099999 | I209: =ENVIRONMENT!I30 -> 63.69099999
B210: ES_WM_1 | C210: 1. Solid waste collection | D210: % | E210: X | J210: 2012 | L210: =ENVIRONMENT!L31 -> 0.8000020487 | M210: =ENVIRONMENT!M31 -> 0.8200014556 | N210: =ENVIRONMENT!N31 -> 0.83 | O210: =ENVIRONMENT!O31 -> 0.9154597033 | P210: =ENVIRONMENT!P31 -> 0.9136882353 | Q210: =ENVIRONMENT!Q31 -> 0.913598754 | R210: =ENVIRONMENT!R31 -> 0.9135795968 | S210: =ENVIRONMENT!S31 -> 0.9220627306 | T210: =ENVIRONMENT!T31 -> 0.9294506686 | U210: =ENVIRONMENT!U31 -> 0.9440315657 | V210: =ENVIRONMENT!V31 -> 0.9456646192 | W210: =ENVIRONMENT!W31 -> 0.951076555 | Z210: 1.1 | AA210: 0 | AB210: 1 | AD210: STATE (Jalisco) | AE210: http://dgeiawf.semarnat.gob.mx:8080/ibi_apps/WFServlet?IBIF_ex=D3_RSM01_05&IBIC_user=dgeia_mce&IBIC_pass=dgeia_mce
C211: Standardized | L211: =ENVIRONMENT!L32 -> 80.00020487 | M211: =ENVIRONMENT!M32 -> 82.00014556 | N211: =ENVIRONMENT!N32 -> 83 | O211: =ENVIRONMENT!O32 -> 91.54597033 | P211: =ENVIRONMENT!P32 -> 91.36882353 | Q211: =ENVIRONMENT!Q32 -> 91.3598754 | R211: =ENVIRONMENT!R32 -> 91.35795968 | S211: =ENVIRONMENT!S32 -> 92.20627306 | T211: =ENVIRONMENT!T32 -> 92.94506686 | U211: =ENVIRONMENT!U32 -> 94.40315657 | V211: =ENVIRONMENT!V32 -> 94.56646192 | W211: =ENVIRONMENT!W32 -> 95.1076555
B213: ES_WM_2 | C213: 2. Waste water treatment | D213: % | E213: X | J213: 2012 | K213: =ENVIRONMENT!K34 -> 9.395698925 | L213: =ENVIRONMENT!L34 -> 11.87335786 | M213: =ENVIRONMENT!M34 -> 11.68891224 | N213: =ENVIRONMENT!N34 -> 13.44666316 | O213: =ENVIRONMENT!O34 -> 13.20825243 | P213: =ENVIRONMENT!P34 -> 15.78037769 | Q213: =ENVIRONMENT!Q34 -> 15.86323793 | R213: =ENVIRONMENT!R34 -> 16.40999564 | S213: =ENVIRONMENT!S34 -> 16.76424013 | T213: =ENVIRONMENT!T34 -> 17.05953416 | U213: =ENVIRONMENT!U34 -> 18.41741568 | V213: =ENVIRONMENT!V34 -> 25.45404358 | W213: =ENVIRONMENT!W34 -> 32.27434447 | Z213: 1.1 | AA213: 0 | AB213: 1 | AD213: STATE (Jalisco) | AE213: SEPLAN
C214: Standardized | K214: =ENVIRONMENT!K35 -> 9.395698925 | L214: =ENVIRONMENT!L35 -> 11.87335786 | M214: =ENVIRONMENT!M35 -> 11.68891224 | N214: =ENVIRONMENT!N35 -> 13.44666316 | O214: =ENVIRONMENT!O35 -> 13.20825243 | P214: =ENVIRONMENT!P35 -> 15.78037769 | Q214: =ENVIRONMENT!Q35 -> 15.86323793 | R214: =ENVIRONMENT!R35 -> 16.40999564 | S214: =ENVIRONMENT!S35 -> 16.76424013 | T214: =ENVIRONMENT!T35 -> 17.05953416 | U214: =ENVIRONMENT!U35 -> 18.41741568 | V214: =ENVIRONMENT!V35 -> 25.45404358 | W214: =ENVIRONMENT!W35 -> 32.27434447
B216: ES_WM_3 | C216: 3. Solid waste recycling share | D216: % | F216: X | G216: X | Z216: 3 | AC216: 0.5
C218: 3. Water and Energy Sub Index (WE) | H218: =ENVIRONMENT!H39 -> 35.1325223 | I218: =ENVIRONMENT!I39 -> 35.1325223
B219: ES_WE_1 | C219: 1. Share of protected area in natural systems that provide basic ecosystem services | D219: % | E219: X | G219: X | Z219: 1.1 | AA219: 0 | AB219: 1
B221: ES_WE_2 | C221: 2. Share of renewable energy consumption | D221: % | E221: X | J221: 2011 | P221: =ENVIRONMENT!P42 -> 8.697292708 | Q221: =ENVIRONMENT!Q42 -> 7.996665384 | R221: =ENVIRONMENT!R42 -> 7.951634907 | S221: =ENVIRONMENT!S42 -> 7.48631251 | T221: =ENVIRONMENT!T42 -> 7.878718229 | U221: =ENVIRONMENT!U42 -> 6.071204575 | V221: =ENVIRONMENT!V42 -> 7.02650446 | Z221: 2.1 | AA221: 0 | AB221: =0.2*100 -> 20 | AD221: Country Level (Mexico)
P222: =ENVIRONMENT!P43 -> 43.48646354 | Q222: =ENVIRONMENT!Q43 -> 39.98332692 | R222: =ENVIRONMENT!R43 -> 39.75817453 | S222: =ENVIRONMENT!S43 -> 37.43156255 | T222: =ENVIRONMENT!T43 -> 39.39359114 | U222: =ENVIRONMENT!U43 -> 30.35602287 | V222: =ENVIRONMENT!V43 -> 35.1325223
C223: Standardized | P223: =ENVIRONMENT!P44 -> 43.48646354 | Q223: =ENVIRONMENT!Q44 -> 39.98332692 | R223: =ENVIRONMENT!R44 -> 39.75817453 | S223: =ENVIRONMENT!S44 -> 37.43156255 | T223: =ENVIRONMENT!T44 -> 39.39359114 | U223: =ENVIRONMENT!U44 -> 30.35602287 | V223: =ENVIRONMENT!V44 -> 35.1325223
A225: Urban Governance and Legislation Index (UGL) | C225: QUALITY OF LIFE INDEX(geo)
A226: URBAN GOVERNANCE AND LEGISLATION (UGL) | C226: URBAN GOVERNANCE AND LEGISLATION(avg) | H226: =GOVERNANCE!H10 -> 61.53498495 | I226: =GOVERNANCE!I10 -> 67.81348376
C227: 1. Participation Sub Index (P) | H227: =GOVERNANCE!H14 -> 52.53125 | I227: =GOVERNANCE!I14 -> 52.53125
B228: UGL_P_1 | C228: 1. Voter turnout | D228: % | E228: X | J228: 2012 | K228: =GOVERNANCE!K15 -> 67.20625 | N228: =GOVERNANCE!N15 -> 54.2925 | Q228: =GOVERNANCE!Q15 -> 62.08875 | T228: =GOVERNANCE!T15 -> 52.53125 | Z228: 1.1 | AA228: 0 | AB228: 1 | AD228: Metropolitan - Guadalajara | AE228: IFE
C229: Standardized | K229: =GOVERNANCE!K16 -> 67.20625 | N229: =GOVERNANCE!N16 -> 54.2925 | Q229: =GOVERNANCE!Q16 -> 62.08875 | T229: =GOVERNANCE!T16 -> 52.53125
B231: UGL_P_2 | C231: 2. Civic participation | D231: % | F231: X | G231: X | Z231: 1.1 | AA231: 0 | AB231: 1
B233: UGL_P_3 | C233: 3. Youth Civic Participation | D233: % | F233: X | G233: X
C235: 2. Accountability and Transparency Sub Index (AT) | H235: =GOVERNANCE!H22 -> 88.75 | I235: =GOVERNANCE!I22 -> 88.75
B236: UGL_AT_1 | C236: 1. AccesstoPublicInformation | D236: Value between 0 - 100 | E236: X | J236: 2014 | K236: =GOVERNANCE!K23 -> 1.75 | L236: =GOVERNANCE!L23 -> 1.75 | M236: =GOVERNANCE!M23 -> 1.75 | N236: =GOVERNANCE!N23 -> 1.75 | O236: =GOVERNANCE!O23 -> 1.875 | P236: =GOVERNANCE!P23 -> 1.875 | Q236: =GOVERNANCE!Q23 -> 1.875 | R236: =GOVERNANCE!R23 -> 2.625 | S236: =GOVERNANCE!S23 -> 3.125 | T236: =GOVERNANCE!T23 -> 3.25 | U236: =GOVERNANCE!U23 -> 4.375 | V236: =GOVERNANCE!V23 -> 5.125 | W236: =GOVERNANCE!W23 -> 6 | X236: =GOVERNANCE!X23 -> 6.5 | Y236: =GOVERNANCE!Y23 -> 7.625 | Z236: 1.1 | AA236: 0 | AB236: 1 | AD236: Metropolitan - Guadalajara
C237: Standardized | K237: =GOVERNANCE!K24 -> 20 | L237: =GOVERNANCE!L24 -> 20 | M237: =GOVERNANCE!M24 -> 20 | N237: =GOVERNANCE!N24 -> 20 | O237: =GOVERNANCE!O24 -> 21.25 | P237: =GOVERNANCE!P24 -> 21.25 | Q237: =GOVERNANCE!Q24 -> 22.5 | R237: =GOVERNANCE!R24 -> 30 | S237: =GOVERNANCE!S24 -> 38.75 | T237: =GOVERNANCE!T24 -> 40 | U237: =GOVERNANCE!U24 -> 53.75 | V237: =GOVERNANCE!V24 -> 62.5 | W237: =GOVERNANCE!W24 -> 72.5 | X237: =GOVERNANCE!X24 -> 77.5 | Y237: =GOVERNANCE!Y24 -> 88.75
C239: 3. Institutional Capacity Sub Index (IC) | H239: =GOVERNANCE!H26 -> 31.0386556 | I239: =GOVERNANCE!I26 -> 45.78031012
B240: UGL_IC_1 | C240: 1. Own Revenue Collection | D240: % | E240: X | J240: 2012 | S240: =GOVERNANCE!S27 -> 0.3205590504 | T240: =GOVERNANCE!T27 -> 0.3351678584 | U240: =GOVERNANCE!U27 -> 0.313326009 | V240: =GOVERNANCE!V27 -> 0.3603206061 | W240: =GOVERNANCE!W27 -> 0.3655435303 | Z240: 2.1 | AA240: 0.17 | AB240: 0.8 | AD240: Metropolitan - Guadalajara
C241: Standardized | S241: =GOVERNANCE!S28 -> 23.89826197 | T241: =GOVERNANCE!T28 -> 26.21712038 | U241: =GOVERNANCE!U28 -> 22.75016016 | V241: =GOVERNANCE!V28 -> 30.20962001 | W241: =GOVERNANCE!W28 -> 31.0386556
B243: UGL_IC_2 | C243: 2. Subnational Debt (reversed) | D243: % | F243: X | U243: 0 | Z243: 4 | AC243: 0.6
U244: =ABS((U243-$Z$32)/$Z$32) -> 
C245: Standardized (with if condition) | U245: =IF(U243<= 0.6, 100, 100*(1-U244)) -> 100
B247: UGL_IC_2 | C247: 2. Investment Capacity | D247: % | F247: X | G247: X
B249: UGL_IC_3 | C249: 3. Days to Start a Business (reversed) | D249: # | F249: X | J249: 2014 | Y249: =GOVERNANCE!Y36 -> 12.5 | Z249: 2.2 (ln) | AA249: 0.69 | AB249: 5.34 | AD249: Metropolitan - Guadalajara | AE249: http://www.doingbusiness.org/data/exploreeconomies/mexico/sub/guadalajara/
Y250: =GOVERNANCE!Y37 -> 0.3947803536
C251: Standardized | Y251: =GOVERNANCE!Y38 -> 60.52196464
C253: 4. Governance of Urbanisation (GU) | H253: =GOVERNANCE!H40 -> 99.0830567 | I253: =GOVERNANCE!I40 -> 99.0830567
B254: UCL_GU_1 | C254: Sprawl Index | D254: # | E254: X | U254: =GOVERNANCE!U41 -> 99.0830567
C255: 2000-2010 | J255: 2010 | U255: =GOVERNANCE!U42 -> 99.0830567 | AD255: Metropolitan - Guadalajara | AE255: SEDESOL | AF255: Mexico, la expansion de las ciudades 2000-2010
B257: UCL_GU_2 | C257: Densities Development Rights | D257: % | F257: X | G257: X

Sheet PRODUCTIVITY
A2: PRODUCTIVITY INDEX
H4: BASIC | I4: EXTENDED
C5: PRODUCTIVITY INDEX | D5: Geo | H5: =GEOMEAN(H11,H22,H29) -> 68.20798773 | I5: =GEOMEAN(I11,I22,I29) -> 57.00976175
A6: DIMENSION | B6: CODE | C6: INDICATOR | D6: NOTES | E6: BASIC | F6: EXTENDED | G6: MISSING | J6: YEAR | K6: 2000 | L6: 2001 | M6: 2002 | N6: 2003 | O6: 2004 | P6: 2005 | Q6: 2006 | R6: 2007 | S6: 2008 | T6: 2009 | U6: 2010 | V6: 2011 | W6: 2012 | X6: 2013 | Y6: 2014 | Z6: Standardization | AA6: MIN | AB6: MAX | AC6: TARGET | AD6: LEVEL | AE6: Source
A7: Productivity Index (P) | B7: Demographic | C7: 1. Population | K7: 3699136 | L7: 3783094.76 | M7: 3864745.84 | N7: 3944089.24 | O7: 4021124.96 | P7: 4095853 | Q7: 4168273.36 | R7: 4238386.04 | S7: 4306191.04 | T7: 4371688.36 | U7: 4434878 | V7: 4495759.96 | W7: 4554334.24 | X7: 4610600.84 | Y7: 4664559.76 | AE7: CONAPO/Basedatos
C8: 2. Homes/Households
C9: 3. Urban Footprint area
C10: 4. Population in households
C11: 1. Economic Growth Sub Index (EG) | H11: =AVERAGE(W13,U16) -> 60.05609266 | I11: =AVERAGE(W13,U16,U20) -> 46.14385379
B12: P_EG_1 | C12: 1.1. City Product per capita | E12: x | J12: 2012 | S12: ='CityProductPerCapita '!N8 -> 16767.51492 | T12: ='CityProductPerCapita '!O8 -> 16780.77339 | U12: ='CityProductPerCapita '!P8 -> 16435.69857 | V12: ='CityProductPerCapita '!Q8 -> 16625.01941 | W12: ='CityProductPerCapita '!R8 -> 16263.29719 | Z12: 2.1 (ln) | AA12: 6.57 | AB12: 11.6 | AD12: Metropolitan Region | AE12: Economic Census
C13: Standardized | S13: ='CityProductPerCapita '!N9 -> 62.76736895 | T13: ='CityProductPerCapita '!O9 -> 62.78308288 | U13: ='CityProductPerCapita '!P9 -> 62.36999981 | V13: ='CityProductPerCapita '!Q9 -> 62.5976945 | W13: ='CityProductPerCapita '!R9 -> 62.16036067
B15: P_EG_2 | C15: 1.2. Old Age Dependency Ratio (reversed) | E15: x | J15: 2010 | U15: =OldAgeDependencyRatio!P98 -> 8.809820027 | Z15: 2.2 (ln) | AA15: 1.07 | AB15: 3.7 | AD15: Metropolitan Region | AE15: Mexico Census 2010 Calculations
C16: Standardized | U16: =OldAgeDependencyRatio!P99 -> 57.95182466
B18: P_EG_3 | C18: 1.3. Mean Household Income(MHI) | D18: Mexican Pesos (MONTHLY) | F18: x | J18: 2010 | S18: =MeanHouseholdIncome!Q11 -> 6497 | T18: 6017 | U18: 8518 | AD18: State - Jalisco
C19: Annual MHI (USD PPP) | D19: USD (ANNUAL) | S19: =MeanHouseholdIncome!Q14 -> 10437.60186 | T19: 9698.851732 | U19: 13360.26564 | Z19: 2.1 | AA19: 6315 | AB19: 44773
C20: Standardized | S20: =MeanHouseholdIncome!Q15 -> 10.71975106 | T20: 8.798823996 | U20: 18.31937605
C22: 2. Economic Agglomeration (EA) | E22: x | H22: =AVERAGE(W24) -> 89.56443097 | I22: =AVERAGE(W24,X27) -> 63.62761611
B23: P_EA_1 | C23: 2.1. Economic Density | J23: 2012 | S23: =EconomicDensity!Q19 -> 29796029.56 | T23: =EconomicDensity!R19 -> 30273147.02 | U23: =EconomicDensity!S19 -> 30079197.62 | V23: =EconomicDensity!T19 -> 30843359.67 | W23: =EconomicDensity!U19 -> 30565387.1 | AD23: Metropolitan Region | AE23: Economic Census Calculations
C24: Standardized | S24: =EconomicDensity!Q21 -> 89.43195502 | T24: =EconomicDensity!R21 -> 89.514507 | U24: =EconomicDensity!S21 -> 89.48110746 | V24: =EconomicDensity!T21 -> 89.61147661 | W24: =EconomicDensity!U21 -> 89.56443097
B26: P_EA_2 | C26: 2.2. Economic Specialization | F26: x | J26: 2013 | W26: ='EconomicSpecialization '!B26 -> 0.1174891309 | X26: ='EconomicSpecialization '!B53 -> 0.1238980501 | AD26: State
C27: Standardized | W27: ='EconomicSpecialization '!B30 -> 34.52404115 | X27: ='EconomicSpecialization '!B57 -> 37.69080124
C29: 3. Employment Sub Index (E) | H29: =AVERAGE(W31) -> 58.99470958 | I29: =AVERAGE(W31,W34,W37) -> 63.1085444
B30: P_E_1 | C30: 3.1. Unemployment Rate (reversed) | E30: x | J30: 2012 | S30: =UnemploymentRate!L3 -> 4.424464897 | T30: =UnemploymentRate!M3 -> 5.295396326 | U30: =UnemploymentRate!N3 -> 6.256887389 | V30: =UnemploymentRate!O3 -> 5.305834526 | W30: =UnemploymentRate!P3 -> 5.55009806 | Z30: 2.2 (fourth root) | AA30: 1 | AB30: 28.2 | AD30: Metropolitan Region
C31: Standardized | S31: =UnemploymentRate!L5 -> 65.47712072 | T31: =UnemploymentRate!M5 -> 60.36856559 | U31: =UnemploymentRate!N5 -> 55.4152244 | V31: =UnemploymentRate!O5 -> 60.31129885 | W31: =UnemploymentRate!P5 -> 58.99470958 | AA31: =AA30^(1/4) -> 1 | AB31: =AB30^(1/4) -> 2.304423403
B33: P_E_2 | C33: 3.2. Employment to Population Ratio | F33: x | J33: 2012 | S33: =UnemploymentRate!L8 -> 0.6531085294 | T33: =UnemploymentRate!M8 -> 0.6599871035 | U33: =UnemploymentRate!N8 -> 0.6564945728 | V33: =UnemploymentRate!O8 -> 0.6612830865 | W33: =UnemploymentRate!P8 -> 0.6353769773 | AD33: Metropolitan Region
C34: Standardized | S34: =UnemploymentRate!L9 -> 78.22663582 | T34: =UnemploymentRate!M9 -> 79.7723828 | U34: =UnemploymentRate!N9 -> 78.98754445 | V34: =UnemploymentRate!O9 -> 80.06361493 | W34: =UnemploymentRate!P9 -> 74.24201736 | Z34: 2.1 | AA34: 0.305 | AB34: 0.75
B36: P_E_3 | C36: 3.3. Informal Employment (reversed) | F36: x | J36: 2012 | P36: 47.2388 | Q36: 44.0527 | R36: 45.0699 | S36: 45.4397 | T36: 46.9238 | U36: 46.6447 | V36: 46.8227 | W36: 46.8969 | Z36: 2.2 | AA36: 11 | AB36: 75 | AD36: State - Jalisco | AE36: INEGI | AF36: Jalisco, Áreas más, Trimestre IV
C37: Standardized | P37: 56.623125 | Q37: 51.64484375 | R37: 53.23421875 | S37: 53.81203125 | T37: 56.1309375 | U37: 55.69484375 | V37: 55.97296875 | W37: 56.08890625

Sheet CityProductPerCapita
A2: P_EG_1_CityProductPerCapita
C3: BASIC | D3: EXTENDED | E3: MISSING | F3: 2000 | G3: 2001 | H3: 2002 | I3: 2003 | J3: 2004 | K3: 2005 | L3: 2006 | M3: 2007 | N3: 2008 | O3: 2009 | P3: 2010 | Q3: 2011 | R3: 2012 | S3: 2013 | T3: 2014 | U3: Standardization | V3: MIN | W3: MAX | X3: TARGET | Y3: SOURCE
A4: Metropolitan Region of Guadalajara | B4: Population | F4: 3699136 | G4: 3783094.76 | H4: 3864745.84 | I4: 3944089.24 | J4: 4021124.96 | K4: 4095853 | L4: 4168273.36 | M4: 4238386.04 | N4: 4306191.04 | O4: 4371688.36 | P4: 4434878 | Q4: 4495759.96 | R4: 4554334.24 | S4: 4610600.84 | T4: 4664559.76 | Y4: Note: Projections
B5: GDP ('000 pesos) | N5: 539330996 | O5: 546137634.9 | P5: 557665314.9 | Q5: 573497086.7 | R5: 591582996.9 | Y5: Economic Census
B6: PPP conversion factor, GDP | L6: 7.169129987 | M6: 7.374892827 | N6: 7.469531893 | O6: 7.444592617 | P6: 7.650746081 | Q6: 7.673013104 | R6: 7.986972422 | S6: 7.996202335
B7: GDP (USD PPP) | N7: =(N5*1000)/N6 -> 7.220412252e+10 | O7: =(O5*1000)/O6 -> 7.33603117e+10 | P7: =(P5*1000)/P6 -> 7.289031801e+10 | Q7: 7.474209661e+10 | R7: 7.406849125e+10
B8: GDP Per Capita (USD PPP) | C8: X | N8: =N7/N4 -> 16767.51492 | O8: =O7/O4 -> 16780.77339 | P8: =P7/P4 -> 16435.69857 | Q8: 16625.01941 | R8: 16263.29719 | U8: 2.1 (ln) | V8: 6.57 | W8: 11.6
B9: Standardized | N9: =100*((LN(N8)-$V$8)/($W$8-$V$8)) -> 62.76736895 | O9: =100*((LN(O8)-$V$8)/($W$8-$V$8)) -> 62.78308288 | P9: =100*((LN(P8)-$V$8)/($W$8-$V$8)) -> 62.36999981 | Q9: =100*((LN(Q8)-$V$8)/($W$8-$V$8)) -> 62.5976945 | R9: =100*((LN(R8)-$V$8)/($W$8-$V$8)) -> 62.16036067

Sheet OldAgeDependencyRatio
A3: Age | B3: Guadalajara | C3: Ixtlahuacan de los Membrillos | D3: Juanacatlan | E3: Salto, El | F3: Tlajomulco de Zuniga | G3: Tlaquepaque | H3: Tonala | I3: Zapopan | J3: Metropolitan Area of Guadlajara | K3: Note:
A4: 15 | B4: 26404 | C4: 761 | D4: 250 | E4: 3333 | F4: 5993 | G4: 12992 | H4: 10046 | I4: 24859 | J4: =SUM(B4:I4) -> 84638 | K4: Data from Census 2010
A5: 16 | B5: 25923 | C5: 802 | D5: 260 | E5: 2847 | F5: 13563 | G5: 10909 | H5: 9769 | I5: 20789 | J5: 84862
A6: 17 | B6: 28143 | C6: 883 | D6: 282 | E6: 2940 | F6: 14555 | G6: 13594 | H6: 9974 | I6: 27135 | J6: 97506
A7: 18 | B7: 29139 | C7: 940 | D7: 296 | E7: 3094 | F7: 6279 | G7: 13004 | H7: 9238 | I7: 26426 | J7: 88416
A8: 19 | B8: 26286 | C8: 811 | D8: 247 | E8: 2822 | F8: 5720 | G8: 15365 | H8: 10305 | I8: 25594 | J8: 87150
A9: 20 | B9: 29973 | C9: 667 | D9: 258 | E9: 2358 | F9: 6760 | G9: 11396 | H9: 7829 | I9: 24428 | J9: 83669
A10: 21 | B10: 26701 | C10: 744 | D10: 268 | E10: 2778 | F10: 13311 | G10: 11796 | H10: 8542 | I10: 22969 | J10: 87109
A11: 22 | B11: 27179 | C11: 720 | D11: 283 | E11: 2533 | F11: 5147 | G11: 11806 | H11: 8225 | I11: 22493 | J11: 78386
A12: 23 | B12: 27346 | C12: 796 | D12: 247 | E12: 2182 | F12: 6106 | G12: 10033 | H12: 7754 | I12: 22984 | J12: 77448
A13: 24 | B13: 26469 | C13: 657 | D13: 215 | E13: 2751 | F13: 5762 | G13: 9821 | H13: 6960 | I13: 21894 | J13: 74529
A14: 25 | B14: 27038 | C14: 787 | D14: 135 | E14: 1934 | F14: 6151 | G14: 10343 | H14: 7517 | I14: 24838 | J14: 78743
A15: 26 | B15: 25280 | C15: 752 | D15: 240 | E15: 1883 | F15: 5869 | G15: 9745 | H15: 6633 | I15: 21829 | J15: 72231
A16: 27 | B16: 25542 | C16: 628 | D16: 191 | E16: 2345 | F16: 6804 | G16: 9308 | H16: 6718 | I16: 22631 | J16: 74167
A17: 28 | B17: 23810 | C17: 616 | D17: 200 | E17: 2291 | F17: 6562 | G17: 9175 | H17: 8226 | I17: 23484 | J17: 74364
A18: 29 | B18: 21220 | C18: 541 | D18: 152 | E18: 2074 | F18: 6761 | G18: 8673 | H18: 6854 | I18: 20740 | J18: 67015
A19: 30 | B19: 25294 | C19: 738 | D19: 235 | E19: 2768 | F19: 9301 | G19: 10446 | H19: 7741 | I19: 21329 | J19: 77852
A20: 31 | B20: 17205 | C20: 579 | D20: 179 | E20: 1455 | F20: 7549 | G20: 8674 | H20: 5164 | I20: 15780 | J20: 56585
A21: 32 | B21: 22593 | C21: 601 | D21: 207 | E21: 2329 | F21: 8131 | G21: 9386 | H21: 6827 | I21: 20255 | J21: 70329
A22: 33 | B22: 21707 | C22: 636 | D22: 229 | E22: 2146 | F22: 6990 | G22: 8734 | H22: 6788 | I22: 16701 | J22: 63931
A23: 34 | B23: 20927 | C23: 573 | D23: 174 | E23: 2068 | F23: 7275 | G23: 7818 | H23: 7889 | I23: 16214 | J23: 62938
A24: 35 | B24: 20520 | C24: 621 | D24: 220 | E24: 2403 | F24: 7062 | G24: 9820 | H24: 7528 | I24: 18373 | J24: 66547
A25: 36 | B25: 20117 | C25: 640 | D25: 201 | E25: 2162 | F25: 13732 | G25: 11853 | H25: 7482 | I25: 18974 | J25: 75161
A26: 37 | B26: 20352 | C26: 602 | D26: 202 | E26: 2303 | F26: 6655 | G26: 9839 | H26: 6787 | I26: 18664 | J26: 65404
A27: 38 | B27: 22648 | C27: 638 | D27: 162 | E27: 1929 | F27: 7073 | G27: 9928 | H27: 8659 | I27: 20399 | J27: 71436
A28: 39 | B28: 22263 | C28: 579 | D28: 185 | E28: 1655 | F28: 4522 | G28: 8173 | H28: 6718 | I28: 18583 | J28: 62678
A29: 40 | B29: 23178 | C29: 540 | D29: 157 | E29: 2162 | F29: 5207 | G29: 10896 | H29: 8074 | I29: 21914 | J29: 72128
A30: 41 | B30: 15985 | C30: 343 | D30: 124 | E30: 1336 | F30: 3740 | G30: 7674 | H30: 5887 | I30: 16267 | J30: 51356
A31: 42 | B31: 21059 | C31: 688 | D31: 143 | E31: 1860 | F31: 4955 | G31: 9078 | H31: 7450 | I31: 19489 | J31: 64722
A32: 43 | B32: 20008 | C32: 440 | D32: 122 | E32: 1485 | F32: 10136 | G32: 6088 | H32: 4494 | I32: 15174 | J32: 57947
A33: 44 | B33: 17025 | C33: 361 | D33: 137 | E33: 1430 | F33: 2943 | G33: 5714 | H33: 4609 | I33: 13888 | J33: 46107
A34: 45 | B34: 18855 | C34: 504 | D34: 139 | E34: 1639 | F34: 3567 | G34: 7544 | H34: 5567 | I34: 16484 | J34: 54299
A35: 46 | B35: 15858 | C35: 332 | D35: 99 | E35: 1304 | F35: 3049 | G35: 5924 | H35: 4454 | I35: 16718 | J35: 47738
A36: 47 | B36: 17059 | C36: 317 | D36: 112 | E36: 1178 | F36: 2326 | G36: 4631 | H36: 4155 | I36: 14392 | J36: 44170
A37: 48 | B37: 18775 | C37: 309 | D37: 143 | E37: 1394 | F37: 3653 | G37: 5068 | H37: 4894 | I37: 13105 | J37: 47341
A38: 49 | B38: 15361 | C38: 391 | D38: 128 | E38: 1002 | F38: 2097 | G38: 5797 | H38: 3960 | I38: 11533 | J38: 40269
A39: 50 | B39: 20284 | C39: 426 | D39: 153 | E39: 1576 | F39: 3162 | G39: 6760 | H39: 5081 | I39: 13541 | J39: 50983
A40: 51 | B40: 11896 | C40: 195 | D40: 57 | E40: 662 | F40: 1526 | G40: 4694 | H40: 3187 | I40: 12217 | J40: 34434
A41: 52 | B41: 18278 | C41: 397 | D41: 170 | E41: 1194 | F41: 2353 | G41: 4536 | H41: 3311 | I41: 11901 | J41: 42140
A42: 53 | B42: 15364 | C42: 268 | D42: 105 | E42: 817 | F42: 2458 | G42: 3527 | H42: 4520 | I42: 10619 | J42: 37678
A43: 54 | B43: 14280 | C43: 297 | D43: 99 | E43: 1002 | F43: 1753 | G43: 4812 | H43: 3256 | I43: 11263 | J43: 36762
A44: 55 | B44: 15894 | C44: 241 | D44: 130 | E44: 1080 | F44: 2075 | G44: 4839 | H44: 2829 | I44: 10891 | J44: 37979
A45: 56 | B45: 12056 | C45: 325 | D45: 107 | E45: 679 | F45: 1699 | G45: 3299 | H45: 2991 | I45: 10673 | J45: 31829
A46: 57 | B46: 12730 | C46: 218 | D46: 89 | E46: 740 | F46: 1251 | G46: 3594 | H46: 2279 | I46: 6990 | J46: 27891
A47: 58 | B47: 13545 | C47: 194 | D47: 80 | E47: 448 | F47: 1777 | G47: 2800 | H47: 1885 | I47: 7389 | J47: 28118
A48: 59 | B48: 10173 | C48: 189 | D48: 125 | E48: 675 | F48: 1786 | G48: 2827 | H48: 1935 | I48: 8744 | J48: 26454
A49: 60 | B49: 16072 | C49: 337 | D49: 97 | E49: 680 | F49: 1920 | G49: 4157 | H49: 2108 | I49: 9366 | J49: 34737
A50: 61 | B50: 8883 | C50: 200 | D50: 71 | E50: 485 | F50: 952 | G50: 2837 | H50: 1095 | I50: 6165 | J50: 20688
A51: 62 | B51: 11628 | C51: 201 | D51: 86 | E51: 433 | F51: 986 | G51: 2580 | H51: 1841 | I51: 6869 | J51: 24624
A52: 63 | B52: 12145 | C52: 233 | D52: 109 | E52: 493 | F52: 687 | G52: 3455 | H52: 1320 | I52: 6506 | J52: 24948
A53: 64 | B53: 8934 | C53: 218 | D53: 61 | E53: 404 | F53: 1215 | G53: 2789 | H53: 1271 | I53: 6277 | J53: 21169
A54: 65 | B54: 10404 | C54: 306 | D54: 51 | E54: 638 | F54: 897 | G54: 2280 | H54: 2592 | I54: 8059 | J54: =SUM(B54:I54) -> 25227
A55: 66 | B55: 7959 | C55: 167 | D55: 58 | E55: 345 | F55: 489 | G55: 5086 | H55: 1046 | I55: 4752 | J55: 19902
A56: 67 | B56: 8262 | C56: 192 | D56: 42 | E56: 271 | F56: 600 | G56: 1810 | H56: 899 | I56: 5194 | J56: 17270
A57: 68 | B57: 8115 | C57: 145 | D57: 67 | E57: 388 | F57: 1223 | G57: 1656 | H57: 859 | I57: 4554 | J57: 17007
A58: 69 | B58: 6693 | C58: 189 | D58: 66 | E58: 287 | F58: 1028 | G58: 1556 | H58: 1841 | I58: 3041 | J58: 14701
A59: 70 | B59: 9339 | C59: 179 | D59: 36 | E59: 605 | F59: 1215 | G59: 2107 | H59: 1108 | I59: 4882 | J59: 19471
A60: 71 | B60: 5407 | C60: 125 | D60: 28 | E60: 122 | F60: 420 | G60: 826 | H60: 301 | I60: 2274 | J60: 9503
A61: 72 | B61: 7227 | C61: 76 | D61: 52 | E61: 416 | F61: 1037 | G61: 1835 | H61: 843 | I61: 3272 | J61: 14758
A62: 73 | B62: 6026 | C62: 78 | D62: 47 | E62: 181 | F62: 305 | G62: 1097 | H62: 1093 | I62: 2580 | J62: 11407
A63: 74 | B63: 6007 | C63: 55 | D63: 44 | E63: 303 | F63: 722 | G63: 882 | H63: 576 | I63: 1960 | J63: 10549
A64: 75 | B64: 5744 | C64: 117 | D64: 34 | E64: 308 | F64: 122 | G64: 1107 | H64: 771 | I64: 2512 | J64: 10715
A65: 76 | B65: 5066 | C65: 65 | D65: 39 | E65: 303 | F65: 183 | G65: 1126 | H65: 278 | I65: 2343 | J65: 9403
A66: 77 | B66: 5443 | C66: 69 | D66: 34 | E66: 91 | F66: 431 | G66: 510 | H66: 324 | I66: 1330 | J66: 8232
A67: 78 | B67: 4241 | C67: 56 | D67: 40 | E67: 121 | F67: 258 | G67: 626 | H67: 544 | I67: 2818 | J67: 8704
A68: 79 | B68: 2845 | C68: 71 | D68: 44 | E68: 148 | F68: 136 | G68: 927 | H68: 646 | I68: 1318 | J68: 6135
A69: 80 | B69: 4350 | C69: 48 | D69: 42 | E69: 211 | F69: 346 | G69: 1034 | H69: 332 | I69: 1909 | J69: 8272
A70: 81 | B70: 2011 | C70: 36 | D70: 10 | E70: 219 | F70: 68 | G70: 295 | H70: 226 | I70: 826 | J70: 3691
A71: 82 | B71: 2656 | C71: 48 | D71: 14 | E71: 30 | F71: 131 | G71: 323 | H71: 253 | I71: 1468 | J71: 4923
A72: 83 | B72: 3210 | C72: 72 | D72: 16 | E72: 60 | F72: 129 | G72: 169 | H72: 340 | I72: 1176 | J72: 5172
A73: 84 | B73: 2854 | C73: 55 | D73: 25 | E73: 90 | F73: 197 | G73: 440 | H73: 279 | I73: 1285 | J73: 5225
A74: 85 | B74: 2363 | C74: 30 | D74: 26 | E74: 60 | F74: 322 | G74: 191 | H74: 267 | I74: 1137 | J74: 4396
A75: 86 | B75: 2084 | C75: 16 | D75: 30 | E75: 60 | F75: 61 | G75: 379 | H75: 53 | I75: 501 | J75: 3184
A76: 87 | B76: 1525 | C76: 30 | D76: 12 | E76: 146 | F76: 136 | G76: 631 | H76: 345 | I76: 973 | J76: 3798
A77: 88 | B77: 1297 | C77: 0 | D77: 12 | E77: 30 | F77: 61 | G77: 89 | H77: 90 | I77: 657 | J77: 2236
A78: 89 | B78: 1162 | C78: 16 | D78: 21 | E78: 31 | F78: 68 | G78: 115 | H78: 322 | I78: 932 | J78: 2667
A79: 90 | B79: 1025 | C79: 16 | D79: 24 | E79: 0 | F79: 0 | G79: 103 | H79: 25 | I79: 356 | J79: 1549
A80: 91 | B80: 258 | C80: 17 | D80: 4 | E80: 0 | F80: 61 | G80: 16 | H80: 29 | I80: 146 | J80: 531
A81: 92 | B81: 577 | C81: 25 | D81: 7 | E81: 61 | F81: 61 | G81: 114 | H81: 71 | I81: 344 | J81: 1260
A82: 93 | B82: 326 | C82: 8 | D82: 13 | E82: 0 | F82: 0 | G82: 83 | H82: 26 | I82: 213 | J82: 669
A83: 94 | B83: 536 | C83: 0 | D83: 8 | E83: 0 | F83: 68 | G83: 53 | H83: 63 | I83: 61 | J83: 789
A84: 95 | B84: 222 | C84: 0 | D84: 12 | E84: 31 | F84: 68 | G84: 56 | H84: 10 | I84: 184 | J84: 583
A85: 96 | B85: 200 | C85: 8 | D85: 4 | E85: 0 | F85: 70 | G85: 20 | H85: 0 | I85: 151 | J85: 453
A86: 97 | B86: 78 | C86: 6 | D86: 0 | E86: 0 | F86: 0 | G86: 91 | H86: 66 | I86: 61 | J86: 302
A87: 98 | B87: 314 | C87: 14 | D87: 0 | E87: 0 | F87: 61 | G87: 0 | H87: 0 | I87: 201 | J87: 590
A88: 99 | B88: 525 | C88: 0 | D88: 0 | E88: 0 | F88: 61 | G88: 19 | H88: 0 | I88: 66 | J88: 671
A89: 100+ | B89: 508 | C89: 0 | D89: 0 | E89: 0 | F89: 41 | G89: 0 | H89: 0 | I89: 75 | J89: 624
A90: 15-64 | J90: =SUM(J4:J53) -> 2889605
A91: 65+ | J91: =SUM(J54:J89) -> 254569
A94: P_EG_2_OldAgeDependencyRatio (Reversed) | C94: BASIC | D94: EXTENDED | E94: MISSING
F95: 2000 | G95: 2001 | H95: 2002 | I95: 2003 | J95: 2004 | K95: 2005 | L95: 2006 | M95: 2007 | N95: 2008 | O95: 2009 | P95: 2010 | Q95: 2011 | R95: 2012 | S95: 2013 | T95: 2014 | U95: Standardization | V95: MIN | W95: MAX | X95: TARGET
A96: Metropolitan Refion of Guadalajara | B96: People aged 65 and over | P96: =J91 -> 254569 | U96: 2.2 (ln) | V96: 1.07 | W96: 3.7
B97: People aged 15 to 64 | P97: =J90 -> 2889605 | Y97: Source: Mexico Census 2010
B98: Old Age Dependecy Ratio | C98: X | P98: =100*(P96/P97) -> 8.809820027
B99: Standardized | P99: =100*(1-((LN(P98)-$V$96)/($W$96-$V$96))) -> 57.95182466

Sheet MeanHouseholdIncome
D2: MEAN HOUSEHOLD INCOME
A5: DIMENSION | B5: SUB-DIMENSION | C5: CODE | D5: INDICATOR | E5: NOTES | F5: BASIC | G5: EXTENDED | H5: MISSING | I5: 2000 | J5: 2001 | K5: 2002 | L5: 2003 | M5: 2004 | N5: 2005 | O5: 2006 | P5: 2007 | Q5: 2008 | R5: 2009 | S5: 2010 | T5: 2011 | U5: 2012 | V5: 2013 | W5: Standardization | X5: MIN | Y5: MAX | Z5: TARGET
B6: Demographic | D6: 1. Population | I6: 1001020.9 | J6: 1037318.6 | K6: 1070944.1 | L6: 1101897.4 | M6: 1130178.5 | N6: 1155790 | O6: 1178724.1 | P6: 1198988.6 | Q6: 1216580.9 | R6: 1231501 | S6: 1243756 | T6: 1253324.6 | U6: 1260228.1 | V6: 1264459.4
D7: 2. Homes/Households | I7: 234751.26 | J7: 244093.84 | K7: 253055.74 | L7: 261636.96 | M7: 269837.5 | N7: 277657.36 | O7: 285096.54 | P7: 292155.04 | Q7: 298832.86 | R7: 305130 | S7: 311046.46 | T7: 316582.24 | U7: 321737.34 | V7: 326511.76 | AB7: INEGI and GUO ProjectedCalculations
D8: 3. Urban Footprint area | V8: 168.78
D9: 4. Population in households | I9: 987284 | N9: 1107515 | S9: 1220612
AA10: State and Municipal | AB10: PEZ - Zapopan
C11: P_EG_3 | D11: 3. Mean Household Income | E11: Mexican Pesos (MONTHLY) | Q11: 6497 | R11: 6017 | S11: 8518
E12: Mexican Pesos (ANNUAL) | Q12: =Q11*12 -> 77964 | R12: =R11*12 -> 72204 | S12: =S11*12 -> 102216
D13: PPP conversion factor | I13: 7.219588057 | J13: 7.219588057 | K13: 7.219588057 | L13: 7.219588057 | M13: 7.219588057 | N13: 7.126861706 | O13: 7.169129987 | P13: 7.374892827 | Q13: 7.469531893 | R13: 7.444592617 | S13: 7.650746081 | T13: 7.673013104 | U13: 7.986972422 | V13: 7.996202335
D14: Annual MHI (USD PPP) | Q14: =(Q11/Q13)*12 -> 10437.60186 | R14: =(R11/R13)*12 -> 9698.851732 | S14: =(S11/S13)*12 -> 13360.26564 | T14: =(T11/T13)*12 -> 0 | W14: 2.1 | X14: 6315 | Y14: 44773
D15: Standardized | Q15: =100*(Q14-$X$14)/($Y$14-$X$14) -> 10.71975106 | R15: =100*(R14-$X$14)/($Y$14-$X$14) -> 8.798823996 | S15: =100*(S14-$X$14)/($Y$14-$X$14) -> 18.31937605
D17: Trial Calculations
D18: MHI = City Product/ Households
A20: Productivity Index (P) | B20: 1. Economic Growth Sub Index (EG) | C20: P_EG_1 | D20: 1. City Product per capita | Q20: =[44]GDP!L18 -> 17901.93721 | R20: =[44]GDP!M18 -> 17954.11741 | S20: =[44]GDP!N18 -> 17651.45917 | T20: =[44]GDP!O18 -> 17952.25769 | U20: =[44]GDP!P18 -> 17685.78447
D21: City Product
C22: P_EG_3 | D22: 3. Mean Household Income Calc. | Q22: =(Q20*Q6)/Q7 -> 72880.72297 | R22: =(R20*R6)/R7 -> 72462.60135 | S22: =(S20*S6)/S7 -> 70581.44384 | T22: =(T20*T6)/T7 -> 71071.59957 | U22: =(U20*U6)/U7 -> 69274.27994
C23: NOTE:
D24: State Level (Jalisco)Data

Sheet EconomicDensity
D2: ECONOMIC DENSITY
D4: DEFINITION: Economic Density is the City Product divided by the city’s area (square kilometers).
D5: = | E5: City Product/Area
A8: DIMENSION | B8: SUB-DIMENSION | C8: CODE | D8: INDICATOR | E8: NOTES | F8: BASIC | G8: EXTENDED | H8: MISSING | I8: 2000 | J8: 2001 | K8: 2002 | L8: 2003 | M8: 2004 | N8: 2005 | O8: 2006 | P8: 2007 | Q8: 2008 | R8: 2009 | S8: 2010 | T8: 2011 | U8: 2012 | V8: 2013 | W8: 2014 | X8: Standardization | Y8: MIN | Z8: MAX | AA8: TARGET
B9: demographic | D9: 1. Population | I9: 3699136 | J9: 3783094.76 | K9: 3864745.84 | L9: 3944089.24 | M9: 4021124.96 | N9: 4095853 | O9: 4168273.36 | P9: 4238386.04 | Q9: 4306191.04 | R9: 4371688.36 | S9: 4434878 | T9: 4495759.96 | U9: 4554334.24 | V9: 4610600.84 | W9: 4664559.76 | AB9: Red is projected data. Projection by GUO
D10: 2. Homes/Households | AB10: INEGI and GUO ProjectedCalculations
D11: 3. Urban Footprint area | V11: 168.78
A13: Productivity Index (P) | B13: 1. Economic Growth Sub Index (EG) | C13: P_EG_1 | D13: 1. City Product per capita | Q13: 16767.51492 | R13: 16780.77339 | S13: 16435.69857 | T13: 16625.01941 | U13: 16263.29719 | X13: 2.1 (ln) | Y13: 6.57 | Z13: 11.6
D14: Standardized | Q14: =100*((LN(Q13)-$Y$13)/($Z$13-$Y$13)) -> 62.76736895 | R14: 62.78308288 | S14: 62.36999981 | T14: 62.5976945 | U14: 62.16036067
D15: Urban Area(km²) Calculated
D16: Total Area | E16: =E39 -> 2423.28
AB17: http://www.jalisco.gob.mx/es/jalisco/municipios/zapopan
D18: GDP (USD PPP) | Q18: ='CityProductPerCapita '!N7 -> 7.220412252e+10 | R18: ='CityProductPerCapita '!O7 -> 7.33603117e+10 | S18: ='CityProductPerCapita '!P7 -> 7.289031801e+10 | T18: ='CityProductPerCapita '!Q7 -> 7.474209661e+10 | U18: ='CityProductPerCapita '!R7 -> 7.406849125e+10
B19: 2. Economic Agglomeration (EA) | C19: P_EA_1 | D19: 1. Economic Density | Q19: =Q18/$E$16 -> 29796029.56 | R19: =R18/$E$16 -> 30273147.02 | S19: 30079197.62 | T19: 30843359.67 | U19: 30565387.1
C20: Normal | D20: Abs[(X-X*)/X*] | Q20: =ABS((LN(Q19)-$AA$21)/$AA$21) -> 0.1056804498 | R20: 0.10485493 | S20: 0.1051889254 | T20: 0.1038852339 | U20: =ABS((LN(U19)-$AA$21)/$AA$21) -> 0.1043556903 | X20: 3(ln) | AA20: ='[44]Economic Density - Benchmark'!H293 -> 227.703078 | AB20: Benchmark is in Millions
D21: Standardized | Q21: =100*(1-Q20) -> 89.43195502 | R21: 89.514507 | S21: 89.48110746 | T21: 89.61147661 | U21: 89.56443097 | AA21: =LN(AA20*1000000) -> 19.24355305 | AB21: ln(Benchmark)
X24: 3 | AA24: =LN(#REF!) -> 
C25: Natural log | D25: Abs[(ln(X)-X**)/X**] | Q25: =ABS((LN(Q19)-$AA$24)/$AA$24) -> 
D26: Standardized(ln) | Q26: =100*(1-Q25) -> 
E30: Total Area
C31: Guadalajara | E31: 187.91
C32: Tlaquepaque | E32: 270.88
C33: Tonalá | E33: 119.58
C34: Zapopan | E34: 893.15
C35: Tlajomulco de Zúñiga | E35: 636.93
C36: El Salto | E36: 41.5
C37: Juanacatlán | E37: 89.08
C38: Ixtlahuacán de los Membrillos | E38: 184.25
E39: =SUM(E31:E38) -> 2423.28

Sheet UnemploymentRate
B1: P_E_1_UnemploymentRate (Reversed)
D2: 2000 | E2: 2001 | F2: 2002 | G2: 2003 | H2: 2004 | I2: 2005 | J2: 2006 | K2: 2007 | L2: 2008 | M2: 2009 | N2: 2010 | O2: 2011 | P2: 2012 | Q2: 2013 | R2: 2014 | S2: Standardization | T2: MIN | U2: MAX | V2: TARGET | X2: SOURCE
B3: 1. Unemployment Rate (reversed) | L3: =100*L15 -> 4.424464897 | M3: =100*M15 -> 5.295396326 | N3: =100*N15 -> 6.256887389 | O3: 5.305834526 | P3: =100*P15 -> 5.55009806 | S3: 2.2 (fourth root) | T3: 1 | U3: 28.2
L4: =((L3^0.25)-$T$4)/($U$4-$T$4) -> 0.3452287928 | M4: 0.3963143441 | N4: =((N3^0.25)-$T$4)/($U$4-$T$4) -> 0.445847756 | O4: =((O3^0.25)-$T$4)/($U$4-$T$4) -> 0.3968870115 | P4: 0.4100529042 | T4: =T3^(1/4) -> 1 | U4: =U3^(1/4) -> 2.304423403
B5: Standardized | L5: =100*(1-L4) -> 65.47712072 | M5: 60.36856559 | N5: 55.4152244 | O5: 60.31129885 | P5: 58.99470958
S7: 2.1 | T7: 0.305 | U7: 0.75
B8: 2. Employment to Population Ratio | L8: =L17 -> 0.6531085294 | M8: 0.6599871035 | N8: =N17 -> 0.6564945728 | O8: =O17 -> 0.6612830865 | P8: 0.6353769773
B9: Standardized | L9: =100*((L8-$T$7)/($U$7-$T$7)) -> 78.22663582 | M9: 79.7723828 | N9: =100*((N8-$T$7)/($U$7-$T$7)) -> 78.98754445 | O9: =100*((O8-$T$7)/($U$7-$T$7)) -> 80.06361493 | P9: 74.24201736
B12: Unemployed People | C12: People | L12: =L49 -> 84830 | M12: =M49 -> 105116 | N12: =N49 -> 126616 | O12: =O49 -> 108537 | P12: =P49 -> 110793 | X12: BaseDatos - ENOE
B13: Employed population | C13: Inhabitants | L13: =L40 -> 1832464 | M13: =M40 -> 1879929 | N13: 1897010 | O13: 1937079 | P13: 1885442 | X13: BaseDatos - ENOE
B14: Labour Force | L14: =L12+L13 -> 1917294 | M14: =M12+M13 -> 1985045 | N14: 2023626 | O14: 2045616 | P14: 1996235
B15: Unemployment Rate | L15: =L12/L14 -> 0.04424464897 | M15: =M12/M14 -> 0.05295396326 | N15: 0.06256887389 | O15: 0.05305834526 | P15: 0.0555009806
B16: Working Age PopulationPopulation (15-65) | L16: =L27 -> 2805757.263 | M16: 2848432.932 | N16: =N27 -> 2889605 | O16: =O27 -> 2929273.468 | P16: 2967438.336 | X16: Projected from INEGI data
B17: Employment to Population Ratio | L17: =L13/L16 -> 0.6531085294 | M17: =M13/M16 -> 0.6599871035 | N17: =N13/N16 -> 0.6564945728 | O17: 0.6612830865 | P17: 0.6353769773
B21: 0
B22: Working Age Population(15-64)
B23: Year (000's) | D23: 2000 | E23: 2001 | F23: 2002 | G23: 2003 | H23: 2004 | I23: 2005 | J23: 2006 | K23: 2007 | L23: 2008 | M23: 2009 | N23: 2010 | O23: 2011 | P23: 2012 | Q23: 2013 | R23: 2014
B24: Population (Total) | D24: 3699136 | E24: 3783094.76 | F24: 3864745.84 | G24: 3944089.24 | H24: 4021124.96 | I24: 4095853 | J24: 4168273.36 | K24: 4238386.04 | L24: 4306191.04 | M24: 4371688.36 | N24: 4434878 | O24: 4495759.96 | P24: 4554334.24 | Q24: 4610600.84 | R24: 4664559.76
B25: Total growth rate | D25: 1.022696857 | E25: 1.021583144 | F25: 1.020530043 | G25: 1.019531941 | H25: 1.018583864 | I25: 1.017681387 | J25: 1.016820557 | K25: 1.015997835 | L25: 1.015210036 | M25: 1.014454287 | N25: 1.01372799 | O25: 1.013028783 | P25: 1.012354517 | Q25: 1.01170323
B27: Population (15-64) | D27: 2410222.306 | E27: 2464926.777 | F27: 2518127.647 | G27: 2569824.917 | H27: 2620018.587 | I27: 2668708.656 | J27: 2715895.126 | K27: 2761577.995 | L27: 2805757.263 | M27: 2848432.932 | N27: 2889605 | O27: 2929273.468 | P27: 2967438.336 | Q27: 3004099.603 | R27: 3039257.271
B30: Labour Force Numbers
L31: 2008 | M31: 2009 | N31: 2010 | O31: 2011 | P31: 2012
A32: Poblacion ocupada | B32: Guadalajara | L32: 746953 | M32: 804101 | N32: 797733 | O32: 782481 | P32: 761914
B33: Ixtlahuacán de los Membrillos | L33: 16821 | M33: 13975 | N33: 14877 | O33: 16576 | P33: 14950
B34: Juanacatlán
B35: El Salto | L35: 56167 | M35: 62074 | N35: 61438 | O35: 46394 | P35: 40960
B36: Tlajomulco de Zúñiga | L36: 74224 | M36: 65231 | N36: 73821 | O36: 100244 | P36: 82875
B37: Tlaquepaque | L37: 233407 | M37: 211682 | N37: 215453 | O37: 244174 | P37: 229549
B38: Tonalá | L38: 153059 | M38: 160706 | N38: 161027 | O38: 157876 | P38: 159523
B39: Zapopan | L39: 551833 | M39: 562160 | N39: 572661 | O39: 589334 | P39: 595671
B40: Metropolitan Region | L40: =SUM(L32:L39) -> 1832464 | M40: =SUM(M32:M39) -> 1879929 | N40: 1897010 | O40: 1937079 | P40: 1885442
A41: Unemployees | B41: Guadalajara | L41: 36376 | M41: 45711 | N41: 47896 | O41: 41652 | P41: 45348
B42: Ixtlahuacán de los Membrillos | L42: 1869 | M42: 559 | N42: 562 | O42: 499 | P42: 598
B43: Juanacatlán
B44: El Salto | L44: 3421 | M44: 5994 | N44: 10156 | O44: 2426 | P44: 1016
B45: Tlajomulco de Zúñiga | L45: 4263 | M45: 1740 | N45: 5515 | O45: 7148 | P45: 4722
B46: Tlaquepaque | L46: 9675 | M46: 11754 | N46: 17597 | O46: 14110 | P46: 17718
B47: Tonalá | L47: 3831 | M47: 9825 | N47: 8290 | O47: 9224 | P47: 10644
B48: Zapopan | L48: 25395 | M48: 29533 | N48: 36600 | O48: 33478 | P48: 30747
B49: Metropolitan Region | L49: =SUM(L41:L48) -> 84830 | M49: =SUM(M41:M48) -> 105116 | N49: =SUM(N41:N48) -> 126616 | O49: 108537 | P49: 110793

Sheet Working Age
A2: Municipality, Mexico
A4: AGE | B4: Guadalajara | C4: Ixtlahuacan de los Membrillos | D4: Juanacatlan | E4: Salto, El | F4: Tlajomulco de Zuniga | G4: Tlaquepaque | H4: Tonala | I4: Zapopan | J4: Metropolitan Area of Guadlajara
A5: Less than 1 year | B5: 21323 | C5: 861 | D5: 304 | E5: 3091 | F5: 9741 | G5: 11733 | H5: 8692 | I5: 19335 | J5: =SUM(B5:I5) -> 75080 | L5: Working Age Population 2010 (15-64)
A6: 1 year | B6: 22059 | C6: 837 | D6: 261 | E6: 2811 | F6: 9128 | G6: 12878 | H6: 10852 | I6: 19238 | J6: =SUM(B6:I6) -> 78064 | L6: =SUM(J20:J69) -> 2889605
A7: 2 years | B7: 24616 | C7: 1036 | D7: 250 | E7: 3044 | F7: 9500 | G7: 12759 | H7: 8847 | I7: 24508 | J7: 84560
A8: 3 | B8: 23048 | C8: 975 | D8: 303 | E8: 3360 | F8: 9344 | G8: 12489 | H8: 9948 | I8: 21106 | J8: 80573 | L8: Year (000's) | M8: 2000 | N8: 2001 | O8: 2002 | P8: 2003 | Q8: 2004 | R8: 2005 | S8: 2006 | T8: 2007 | U8: 2008 | V8: 2009 | W8: 2010 | X8: 2011 | Y8: 2012 | Z8: 2013 | AA8: 2014
A9: 4 | B9: 24697 | C9: 833 | D9: 280 | E9: 3511 | F9: 8515 | G9: 11950 | H9: 10471 | I9: 21456 | J9: 81713 | L9: Population (Total) | M9: 3699136 | N9: 3783094.76 | O9: 3864745.84 | P9: 3944089.24 | Q9: 4021124.96 | R9: 4095853 | S9: 4168273.36 | T9: 4238386.04 | U9: 4306191.04 | V9: 4371688.36 | W9: 4434878 | X9: 4495759.96 | Y9: 4554334.24 | Z9: 4610600.84 | AA9: 4664559.76
A10: 5 | B10: 24214 | C10: 961 | D10: 331 | E10: 3211 | F10: 9586 | G10: 13052 | H10: 10509 | I10: 24166 | J10: 86030 | L10: Total growth rate | M10: =N9/M9 -> 1.022696857 | N10: 1.021583144 | O10: 1.020530043 | P10: 1.019531941 | Q10: 1.018583864 | R10: 1.017681387 | S10: 1.016820557 | T10: 1.015997835 | U10: 1.015210036 | V10: 1.014454287 | W10: 1.01372799 | X10: 1.013028783 | Y10: 1.012354517 | Z10: 1.01170323
A11: 6 | B11: 25328 | C11: 774 | D11: 265 | E11: 2822 | F11: 9243 | G11: 11877 | H11: 10611 | I11: 23813 | J11: 84733
A12: 7 | B12: 23055 | C12: 884 | D12: 323 | E12: 3410 | F12: 8660 | G12: 12649 | H12: 11554 | I12: 19502 | J12: 80037 | L12: Population (15-64) | M12: =N12/M10 -> 2410222.306 | N12: 2464926.777 | O12: 2518127.647 | P12: 2569824.917 | Q12: 2620018.587 | R12: 2668708.656 | S12: 2715895.126 | T12: 2761577.995 | U12: 2805757.263 | V12: 2848432.932 | W12: =L6 -> 2889605 | X12: =W12*W10 -> 2929273.468 | Y12: =X12*X10 -> 2967438.336 | Z12: =Y12*Y10 -> 3004099.603 | AA12: =Z12*Z10 -> 3039257.271
A13: 8 | B13: 24593 | C13: 829 | D13: 243 | E13: 3125 | F13: 9571 | G13: 12996 | H13: 11640 | I13: 21115 | J13: 84112
A14: 9 | B14: 26355 | C14: 859 | D14: 298 | E14: 2793 | F14: 17203 | G14: 13320 | H14: 11140 | I14: 24490 | J14: 96458
A15: 10 | B15: 26882 | C15: 922 | D15: 290 | E15: 2869 | F15: 8445 | G15: 13305 | H15: 10962 | I15: 23557 | J15: 87232
A16: 11 | B16: 25842 | C16: 955 | D16: 264 | E16: 2707 | F16: 6764 | G16: 12569 | H16: 10404 | I16: 23564 | J16: 83069
A17: 12 | B17: 25016 | C17: 728 | D17: 297 | E17: 2936 | F17: 15193 | G17: 13912 | H17: 11480 | I17: 23956 | J17: 93518
A18: 13 | B18: 23796 | C18: 988 | D18: 239 | E18: 3032 | F18: 7061 | G18: 14289 | H18: 10481 | I18: 24752 | J18: 84638
A19: 14 | B19: 27353 | C19: 921 | D19: 219 | E19: 2818 | F19: 7147 | G19: 11896 | H19: 11127 | I19: 22408 | J19: 83889
A20: 15 | B20: 26404 | C20: 761 | D20: 250 | E20: 3333 | F20: 5993 | G20: 12992 | H20: 10046 | I20: 24859 | J20: 84638
A21: 16 | B21: 25923 | C21: 802 | D21: 260 | E21: 2847 | F21: 13563 | G21: 10909 | H21: 9769 | I21: 20789 | J21: 84862
A22: 17 | B22: 28143 | C22: 883 | D22: 282 | E22: 2940 | F22: 14555 | G22: 13594 | H22: 9974 | I22: 27135 | J22: 97506
A23: 18 | B23: 29139 | C23: 940 | D23: 296 | E23: 3094 | F23: 6279 | G23: 13004 | H23: 9238 | I23: 26426 | J23: 88416
A24: 19 | B24: 26286 | C24: 811 | D24: 247 | E24: 2822 | F24: 5720 | G24: 15365 | H24: 10305 | I24: 25594 | J24: 87150
A25: 20 | B25: 29973 | C25: 667 | D25: 258 | E25: 2358 | F25: 6760 | G25: 11396 | H25: 7829 | I25: 24428 | J25: 83669
A26: 21 | B26: 26701 | C26: 744 | D26: 268 | E26: 2778 | F26: 13311 | G26: 11796 | H26: 8542 | I26: 22969 | J26: 87109
A27: 22 | B27: 27179 | C27: 720 | D27: 283 | E27: 2533 | F27: 5147 | G27: 11806 | H27: 8225 | I27: 22493 | J27: 78386
A28: 23 | B28: 27346 | C28: 796 | D28: 247 | E28: 2182 | F28: 6106 | G28: 10033 | H28: 7754 | I28: 22984 | J28: 77448
A29: 24 | B29: 26469 | C29: 657 | D29: 215 | E29: 2751 | F29: 5762 | G29: 9821 | H29: 6960 | I29: 21894 | J29: 74529
A30: 25 | B30: 27038 | C30: 787 | D30: 135 | E30: 1934 | F30: 6151 | G30: 10343 | H30: 7517 | I30: 24838 | J30: 78743
A31: 26 | B31: 25280 | C31: 752 | D31: 240 | E31: 1883 | F31: 5869 | G31: 9745 | H31: 6633 | I31: 21829 | J31: 72231
A32: 27 | B32: 25542 | C32: 628 | D32: 191 | E32: 2345 | F32: 6804 | G32: 9308 | H32: 6718 | I32: 22631 | J32: 74167
A33: 28 | B33: 23810 | C33: 616 | D33: 200 | E33: 2291 | F33: 6562 | G33: 9175 | H33: 8226 | I33: 23484 | J33: 74364
A34: 29 | B34: 21220 | C34: 541 | D34: 152 | E34: 2074 | F34: 6761 | G34: 8673 | H34: 6854 | I34: 20740 | J34: 67015
A35: 30 | B35: 25294 | C35: 738 | D35: 235 | E35: 2768 | F35: 9301 | G35: 10446 | H35: 7741 | I35: 21329 | J35: 77852
A36: 31 | B36: 17205 | C36: 579 | D36: 179 | E36: 1455 | F36: 7549 | G36: 8674 | H36: 5164 | I36: 15780 | J36: 56585
A37: 32 | B37: 22593 | C37: 601 | D37: 207 | E37: 2329 | F37: 8131 | G37: 9386 | H37: 6827 | I37: 20255 | J37: 70329
A38: 33 | B38: 21707 | C38: 636 | D38: 229 | E38: 2146 | F38: 6990 | G38: 8734 | H38: 6788 | I38: 16701 | J38: 63931
A39: 34 | B39: 20927 | C39: 573 | D39: 174 | E39: 2068 | F39: 7275 | G39: 7818 | H39: 7889 | I39: 16214 | J39: 62938
A40: 35 | B40: 20520 | C40: 621 | D40: 220 | E40: 2403 | F40: 7062 | G40: 9820 | H40: 7528 | I40: 18373 | J40: 66547
A41: 36 | B41: 20117 | C41: 640 | D41: 201 | E41: 2162 | F41: 13732 | G41: 11853 | H41: 7482 | I41: 18974 | J41: 75161
A42: 37 | B42: 20352 | C42: 602 | D42: 202 | E42: 2303 | F42: 6655 | G42: 9839 | H42: 6787 | I42: 18664 | J42: 65404
A43: 38 | B43: 22648 | C43: 638 | D43: 162 | E43: 1929 | F43: 7073 | G43: 9928 | H43: 8659 | I43: 20399 | J43: 71436
A44: 39 | B44: 22263 | C44: 579 | D44: 185 | E44: 1655 | F44: 4522 | G44: 8173 | H44: 6718 | I44: 18583 | J44: 62678
A45: 40 | B45: 23178 | C45: 540 | D45: 157 | E45: 2162 | F45: 5207 | G45: 10896 | H45: 8074 | I45: 21914 | J45: 72128
A46: 41 | B46: 15985 | C46: 343 | D46: 124 | E46: 1336 | F46: 3740 | G46: 7674 | H46: 5887 | I46: 16267 | J46: 51356
A47: 42 | B47: 21059 | C47: 688 | D47: 143 | E47: 1860 | F47: 4955 | G47: 9078 | H47: 7450 | I47: 19489 | J47: 64722
A48: 43 | B48: 20008 | C48: 440 | D48: 122 | E48: 1485 | F48: 10136 | G48: 6088 | H48: 4494 | I48: 15174 | J48: 57947
A49: 44 | B49: 17025 | C49: 361 | D49: 137 | E49: 1430 | F49: 2943 | G49: 5714 | H49: 4609 | I49: 13888 | J49: 46107
A50: 45 | B50: 18855 | C50: 504 | D50: 139 | E50: 1639 | F50: 3567 | G50: 7544 | H50: 5567 | I50: 16484 | J50: 54299
A51: 46 | B51: 15858 | C51: 332 | D51: 99 | E51: 1304 | F51: 3049 | G51: 5924 | H51: 4454 | I51: 16718 | J51: 47738
A52: 47 | B52: 17059 | C52: 317 | D52: 112 | E52: 1178 | F52: 2326 | G52: 4631 | H52: 4155 | I52: 14392 | J52: 44170
A53: 48 | B53: 18775 | C53: 309 | D53: 143 | E53: 1394 | F53: 3653 | G53: 5068 | H53: 4894 | I53: 13105 | J53: 47341
A54: 49 | B54: 15361 | C54: 391 | D54: 128 | E54: 1002 | F54: 2097 | G54: 5797 | H54: 3960 | I54: 11533 | J54: 40269
A55: 50 | B55: 20284 | C55: 426 | D55: 153 | E55: 1576 | F55: 3162 | G55: 6760 | H55: 5081 | I55: 13541 | J55: 50983
A56: 51 | B56: 11896 | C56: 195 | D56: 57 | E56: 662 | F56: 1526 | G56: 4694 | H56: 3187 | I56: 12217 | J56: 34434
A57: 52 | B57: 18278 | C57: 397 | D57: 170 | E57: 1194 | F57: 2353 | G57: 4536 | H57: 3311 | I57: 11901 | J57: 42140
A58: 53 | B58: 15364 | C58: 268 | D58: 105 | E58: 817 | F58: 2458 | G58: 3527 | H58: 4520 | I58: 10619 | J58: 37678
A59: 54 | B59: 14280 | C59: 297 | D59: 99 | E59: 1002 | F59: 1753 | G59: 4812 | H59: 3256 | I59: 11263 | J59: 36762
A60: 55 | B60: 15894 | C60: 241 | D60: 130 | E60: 1080 | F60: 2075 | G60: 4839 | H60: 2829 | I60: 10891 | J60: 37979
A61: 56 | B61: 12056 | C61: 325 | D61: 107 | E61: 679 | F61: 1699 | G61: 3299 | H61: 2991 | I61: 10673 | J61: 31829
A62: 57 | B62: 12730 | C62: 218 | D62: 89 | E62: 740 | F62: 1251 | G62: 3594 | H62: 2279 | I62: 6990 | J62: 27891
A63: 58 | B63: 13545 | C63: 194 | D63: 80 | E63: 448 | F63: 1777 | G63: 2800 | H63: 1885 | I63: 7389 | J63: 28118
A64: 59 | B64: 10173 | C64: 189 | D64: 125 | E64: 675 | F64: 1786 | G64: 2827 | H64: 1935 | I64: 8744 | J64: 26454
A65: 60 | B65: 16072 | C65: 337 | D65: 97 | E65: 680 | F65: 1920 | G65: 4157 | H65: 2108 | I65: 9366 | J65: 34737
A66: 61 | B66: 8883 | C66: 200 | D66: 71 | E66: 485 | F66: 952 | G66: 2837 | H66: 1095 | I66: 6165 | J66: 20688
A67: 62 | B67: 11628 | C67: 201 | D67: 86 | E67: 433 | F67: 986 | G67: 2580 | H67: 1841 | I67: 6869 | J67: 24624
A68: 63 | B68: 12145 | C68: 233 | D68: 109 | E68: 493 | F68: 687 | G68: 3455 | H68: 1320 | I68: 6506 | J68: 24948
A69: 64 | B69: 8934 | C69: 218 | D69: 61 | E69: 404 | F69: 1215 | G69: 2789 | H69: 1271 | I69: 6277 | J69: 21169
A70: 65 | B70: 10404 | C70: 306 | D70: 51 | E70: 638 | F70: 897 | G70: 2280 | H70: 2592 | I70: 8059 | J70: =SUM(B70:I70) -> 25227
A71: 66 | B71: 7959 | C71: 167 | D71: 58 | E71: 345 | F71: 489 | G71: 5086 | H71: 1046 | I71: 4752 | J71: 19902
A72: 67 | B72: 8262 | C72: 192 | D72: 42 | E72: 271 | F72: 600 | G72: 1810 | H72: 899 | I72: 5194 | J72: 17270
A73: 68 | B73: 8115 | C73: 145 | D73: 67 | E73: 388 | F73: 1223 | G73: 1656 | H73: 859 | I73: 4554 | J73: 17007
A74: 69 | B74: 6693 | C74: 189 | D74: 66 | E74: 287 | F74: 1028 | G74: 1556 | H74: 1841 | I74: 3041 | J74: 14701
A75: 70 | B75: 9339 | C75: 179 | D75: 36 | E75: 605 | F75: 1215 | G75: 2107 | H75: 1108 | I75: 4882 | J75: 19471
A76: 71 | B76: 5407 | C76: 125 | D76: 28 | E76: 122 | F76: 420 | G76: 826 | H76: 301 | I76: 2274 | J76: 9503
A77: 72 | B77: 7227 | C77: 76 | D77: 52 | E77: 416 | F77: 1037 | G77: 1835 | H77: 843 | I77: 3272 | J77: 14758
A78: 73 | B78: 6026 | C78: 78 | D78: 47 | E78: 181 | F78: 305 | G78: 1097 | H78: 1093 | I78: 2580 | J78: 11407
A79: 74 | B79: 6007 | C79: 55 | D79: 44 | E79: 303 | F79: 722 | G79: 882 | H79: 576 | I79: 1960 | J79: 10549
A80: 75 | B80: 5744 | C80: 117 | D80: 34 | E80: 308 | F80: 122 | G80: 1107 | H80: 771 | I80: 2512 | J80: 10715
A81: 76 | B81: 5066 | C81: 65 | D81: 39 | E81: 303 | F81: 183 | G81: 1126 | H81: 278 | I81: 2343 | J81: 9403
A82: 77 | B82: 5443 | C82: 69 | D82: 34 | E82: 91 | F82: 431 | G82: 510 | H82: 324 | I82: 1330 | J82: 8232
A83: 78 | B83: 4241 | C83: 56 | D83: 40 | E83: 121 | F83: 258 | G83: 626 | H83: 544 | I83: 2818 | J83: 8704
A84: 79 | B84: 2845 | C84: 71 | D84: 44 | E84: 148 | F84: 136 | G84: 927 | H84: 646 | I84: 1318 | J84: 6135
A85: 80 | B85: 4350 | C85: 48 | D85: 42 | E85: 211 | F85: 346 | G85: 1034 | H85: 332 | I85: 1909 | J85: 8272
A86: 81 | B86: 2011 | C86: 36 | D86: 10 | E86: 219 | F86: 68 | G86: 295 | H86: 226 | I86: 826 | J86: 3691
A87: 82 | B87: 2656 | C87: 48 | D87: 14 | E87: 30 | F87: 131 | G87: 323 | H87: 253 | I87: 1468 | J87: 4923
A88: 83 | B88: 3210 | C88: 72 | D88: 16 | E88: 60 | F88: 129 | G88: 169 | H88: 340 | I88: 1176 | J88: 5172
A89: 84 | B89: 2854 | C89: 55 | D89: 25 | E89: 90 | F89: 197 | G89: 440 | H89: 279 | I89: 1285 | J89: 5225
A90: 85 | B90: 2363 | C90: 30 | D90: 26 | E90: 60 | F90: 322 | G90: 191 | H90: 267 | I90: 1137 | J90: 4396
A91: 86 | B91: 2084 | C91: 16 | D91: 30 | E91: 60 | F91: 61 | G91: 379 | H91: 53 | I91: 501 | J91: 3184
A92: 87 | B92: 1525 | C92: 30 | D92: 12 | E92: 146 | F92: 136 | G92: 631 | H92: 345 | I92: 973 | J92: 3798
A93: 88 | B93: 1297 | C93: 0 | D93: 12 | E93: 30 | F93: 61 | G93: 89 | H93: 90 | I93: 657 | J93: 2236
A94: 89 | B94: 1162 | C94: 16 | D94: 21 | E94: 31 | F94: 68 | G94: 115 | H94: 322 | I94: 932 | J94: 2667
A95: 90 | B95: 1025 | C95: 16 | D95: 24 | E95: 0 | F95: 0 | G95: 103 | H95: 25 | I95: 356 | J95: 1549
A96: 91 | B96: 258 | C96: 17 | D96: 4 | E96: 0 | F96: 61 | G96: 16 | H96: 29 | I96: 146 | J96: 531
A97: 92 | B97: 577 | C97: 25 | D97: 7 | E97: 61 | F97: 61 | G97: 114 | H97: 71 | I97: 344 | J97: 1260
A98: 93 | B98: 326 | C98: 8 | D98: 13 | E98: 0 | F98: 0 | G98: 83 | H98: 26 | I98: 213 | J98: 669
A99: 94 | B99: 536 | C99: 0 | D99: 8 | E99: 0 | F99: 68 | G99: 53 | H99: 63 | I99: 61 | J99: 789
A100: 95 | B100: 222 | C100: 0 | D100: 12 | E100: 31 | F100: 68 | G100: 56 | H100: 10 | I100: 184 | J100: 583
A101: 96 | B101: 200 | C101: 8 | D101: 4 | E101: 0 | F101: 70 | G101: 20 | H101: 0 | I101: 151 | J101: 453
A102: 97 | B102: 78 | C102: 6 | D102: 0 | E102: 0 | F102: 0 | G102: 91 | H102: 66 | I102: 61 | J102: 302
A103: 98 | B103: 314 | C103: 14 | D103: 0 | E103: 0 | F103: 61 | G103: 0 | H103: 0 | I103: 201 | J103: 590
A104: 99 | B104: 525 | C104: 0 | D104: 0 | E104: 0 | F104: 61 | G104: 19 | H104: 0 | I104: 66 | J104: 671
A105: 100+ | B105: 508 | C105: 0 | D105: 0 | E105: 0 | F105: 41 | G105: 0 | H105: 0 | I105: 75 | J105: 624
A106: Not reported/missing | B106: 777 | C106: 6 | D106: 0 | E106: 60 | F106: 122 | G106: 208 | H106: 207 | I106: 1182 | J106: 2562
A107: TOTAL | B107: 1491217 | C107: 41180 | D107: 13490 | E107: 136697 | F107: 417205 | G107: 608085 | H107: 464069 | I107: 1238499 | J107: 4410442

Sheet EconomicSpecialization
A1: P_EA_2_EconomicSpecialization
A2: Jalisco
A3: Ocupación
A4: Employment in the manufacturing sector by sub-sector
A5: ( Number of persons )
A7: Period | B7: Total manufacturing | C7: 311 Food Industry | D7: 312 Beverage industry and snuff | E7: 313 Manufacture of textiles and textile finishing supplies | F7: 314 Manufacture of textiles, except apparel | G7: 315 Manufacture of wearing apparel | H7: 316 Tanning and leather finishing leather and manufacture of leather and leather substitute materials | I7: 321 Timber Industry | J7: 322 Paper Industry | K7: 323 Printing and related industries | L7: 324 Manufacture of petroleum and coal | M7: 325 Chemical Industry | N7: 326 industry Plastic and rubber | O7: 327 Manufacture of products made of non-metallic minerals | P7: 331 Basic metal industries | Q7: 332 Manufacture of metal products | R7: 333 Manufacture of machinery and equipment | S7: 334 Manufacture of computer, communication, and other measurement equipment, electronic components and accessories | T7: 335 Manufacture of accessories, electrical appliances and equipment for generating electricity | U7: 336 Manufacture of transport equipment | V7: 337 Manufacture of furniture, mattresses and blinds | W7: 339 Other manufacturing
A8: 2012
A9: Enero | B9: 193079 | C9: 43176 | D9: 15631 | E9: 1512 | F9: 636 | G9: 2973 | H9: 8104 | I9: 780 | J9: 3980 | K9: 2444 | L9: 1401 | M9: 16530 | N9: 13845 | O9: 3831 | P9: 2794 | Q9: 11058 | R9: 3444 | S9: 37982 | T9: 2003 | U9: 13504 | V9: 3246 | W9: 4205
A10: Febrero | B10: 193385 | C10: 42933 | D10: 15693 | E10: 1530 | F10: 633 | G10: 3085 | H10: 8428 | I10: 786 | J10: 3966 | K10: 2415 | L10: 1353 | M10: 16790 | N10: 14001 | O10: 3912 | P10: 2758 | Q10: 11321 | R10: 3437 | S10: 37119 | T10: 1978 | U10: 13778 | V10: 3252 | W10: 4217
A11: Marzo | B11: 194640 | C11: 42662 | D11: 15743 | E11: 1541 | F11: 627 | G11: 2968 | H11: 8553 | I11: 800 | J11: 3841 | K11: 2445 | L11: 1364 | M11: 16827 | N11: 14054 | O11: 3981 | P11: 2755 | Q11: 11395 | R11: 3407 | S11: 38026 | T11: 2003 | U11: 13943 | V11: 3254 | W11: 4451
A12: Abril | B12: 196472 | C12: 42772 | D12: 15893 | E12: 1545 | F12: 599 | G12: 2939 | H12: 8595 | I12: 854 | J12: 3805 | K12: 2525 | L12: 1378 | M12: 16928 | N12: 14296 | O12: 3926 | P12: 2746 | Q12: 11593 | R12: 3459 | S12: 38183 | T12: 2019 | U12: 15070 | V12: 3203 | W12: 4144
A13: Mayo | B13: 196758 | C13: 42255 | D13: 15894 | E13: 1564 | F13: 611 | G13: 2809 | H13: 8972 | I13: 859 | J13: 3871 | K13: 2272 | L13: 1378 | M13: 17379 | N13: 14281 | O13: 3979 | P13: 2784 | Q13: 11657 | R13: 3473 | S13: 37907 | T13: 2052 | U13: 15337 | V13: 3278 | W13: 4146
A14: Junio | B14: 197153 | C14: 42059 | D14: 15907 | E14: 1608 | F14: 592 | G14: 2844 | H14: 8874 | I14: 909 | J14: 3883 | K14: 2105 | L14: 1379 | M14: 16717 | N14: 14492 | O14: 3996 | P14: 2753 | Q14: 11695 | R14: 3447 | S14: 39121 | T14: 1975 | U14: 15306 | V14: 3306 | W14: 4185
A15: Julio | B15: 195581 | C15: 41554 | D15: 16037 | E15: 1614 | F15: 642 | G15: 2703 | H15: 8838 | I15: 915 | J15: 3960 | K15: 2038 | L15: 1384 | M15: 15864 | N15: 14365 | O15: 4046 | P15: 2698 | Q15: 11779 | R15: 3401 | S15: 38863 | T15: 1998 | U15: 15422 | V15: 3269 | W15: 4191
A16: Agosto | B16: 195274 | C16: 41912 | D16: 16043 | E16: 1606 | F16: 662 | G16: 2752 | H16: 8689 | I16: 880 | J16: 3937 | K16: 2148 | L16: 1387 | M16: 14790 | N16: 14116 | O16: 3999 | P16: 2758 | Q16: 11963 | R16: 3365 | S16: 39232 | T16: 1975 | U16: 15484 | V16: 3362 | W16: 4214
A17: Septiembre | B17: 194989 | C17: 41862 | D17: 16118 | E17: 1601 | F17: 657 | G17: 2745 | H17: 8563 | I17: 882 | J17: 3940 | K17: 2310 | L17: 1389 | M17: 14087 | N17: 14114 | O17: 3966 | P17: 2617 | Q17: 11988 | R17: 3384 | S17: 39692 | T17: 1944 | U17: 15650 | V17: 3348 | W17: 4132
A18: Octubre | B18: 196548 | C18: 41871 | D18: 16135 | E18: 1593 | F18: 659 | G18: 2732 | H18: 8501 | I18: 882 | J18: 3963 | K18: 2246 | L18: 1397 | M18: 14449 | N18: 13951 | O18: 3961 | P18: 2632 | Q18: 11821 | R18: 3388 | S18: 41067 | T18: 1946 | U18: 15838 | V18: 3354 | W18: 4162
A19: Noviembre | B19: 196702 | C19: 42733 | D19: 16001 | E19: 1595 | F19: 678 | G19: 2682 | H19: 8193 | I19: 864 | J19: 3969 | K19: 2343 | L19: 1407 | M19: 14104 | N19: 13906 | O19: 4011 | P19: 2681 | Q19: 11773 | R19: 3421 | S19: 41164 | T19: 1947 | U19: 15628 | V19: 3401 | W19: 4201
A20: Diciembre | B20: 196827 | C20: 43325 | D20: 15915 | E20: 1584 | F20: 652 | G20: 2742 | H20: 8296 | I20: 851 | J20: 3971 | K20: 2063 | L20: 1392 | M20: 13814 | N20: 13909 | O20: 4000 | P20: 2610 | Q20: 11850 | R20: 3416 | S20: 41116 | T20: 1953 | U20: 15867 | V20: 3408 | W20: 4093
A22: calculations for the H index
A23: Average | B23: =AVERAGE(B9:B20) -> 195617.3333 | C23: 42426.16667 | D23: 15917.5 | E23: 1574.416667 | F23: 637.3333333 | G23: 2831.166667 | H23: 8550.5 | I23: 855.1666667 | J23: 3923.833333 | K23: 2279.5 | L23: 1384.083333 | M23: 15689.91667 | N23: 14110.83333 | O23: 3967.333333 | P23: 2715.5 | Q23: 11657.75 | R23: 3420.166667 | S23: 39122.66667 | T23: 1982.75 | U23: 15068.91667 | V23: 3306.75 | W23: 4195.083333
A24: s | C24: =C23/$B$14 -> 0.2151941217 | D24: 0.08073678818 | E24: 0.007985760636 | F24: 0.003232683922 | G24: 0.01436025151 | H24: 0.0433698701 | I24: 0.004337578767 | J24: 0.01990247845 | K24: 0.0115620863 | L24: 0.007020351368 | M24: 0.07958243936 | N24: 0.07157300844 | O24: 0.02012311927 | P24: 0.01377356672 | Q24: 0.05913047227 | R24: 0.01734777897 | S24: 0.1984380997 | T24: 0.01005691012 | U24: 0.07643260141 | V24: 0.01677250663 | W24: 0.02127831346
A25: S^2 | C25: =(C24)^2 -> 0.04630850999 | D25: 0.006518428966 | E25: 6.377237294e-05 | F25: 1.045024534e-05 | G25: 0.0002062168235 | H25: 0.001880945633 | I25: 1.881458956e-05 | J25: 0.0003961086483 | K25: 0.0001336818396 | L25: 4.928533334e-05 | M25: 0.006333364654 | N25: 0.005122695537 | O25: 0.0004049399291 | P25: 0.0001897111403 | Q25: 0.003496412751 | R25: 0.0003009454351 | S25: 0.03937767941 | T25: 0.0001011414411 | U25: 0.005841942559 | V25: 0.0002813169787 | W25: 0.0004527666236
A26: H | B26: =SUM(C25:W25) -> 0.1174891309
A27: H* | B27: =(B26-1/21)/(1-1/21) -> 0.07336358745
A28: X* | B28: =(0.25-1/21)/(1-1/21) -> 0.2125
A29: Abs | B29: =ABS((B27-B28)/B28) -> 0.6547595885
A30: H*s | B30: =100*(1-B29) -> 34.52404115 | C30: 2012
A32: Period | B32: Total manufacturing | C32: 311 Food Industry | D32: 312 Beverage industry and snuff | E32: 313 Manufacture of textiles and textile finishing supplies | F32: 314 Manufacture of textiles, except apparel | G32: 315 Manufacture of wearing apparel | H32: 316 Tanning and leather finishing leather and manufacture of leather and leather substitute materials | I32: 321 Timber Industry | J32: 322 Paper Industry | K32: 323 Printing and related industries | L32: 324 Manufacture of petroleum and coal | M32: 325 Chemical Industry | N32: 326 industry Plastic and rubber | O32: 327 Manufacture of products made of non-metallic minerals | P32: 331 Basic metal industries | Q32: 332 Manufacture of metal products | R32: 333 Manufacture of machinery and equipment | S32: 334 Manufacture of computer, communication, and other measurement equipment, electronic components and accessories | T32: 335 Manufacture of accessories, electrical appliances and equipment for generating electricity | U32: 336 Manufacture of transport equipment | V32: 337 Manufacture of furniture, mattresses and blinds | W32: 339 Other manufacturing
A33: 2013
A34: Enero | B34: 194327 | C34: 42966 | D34: 15860 | E34: 1584 | F34: 692 | G34: 2589 | H34: 8123 | I34: 724 | J34: 3882 | K34: 1555 | L34: 1413 | M34: 14120 | N34: 13960 | O34: 3783 | P34: 2638 | Q34: 11929 | R34: 3348 | S34: 40124 | T34: 1974 | U34: 15776 | V34: 3351 | W34: 3936
A35: Febrero | B35: 193544 | C35: 42708 | D35: 15792 | E35: 1577 | F35: 684 | G35: 2662 | H35: 8147 | I35: 726 | J35: 3873 | K35: 1529 | L35: 1335 | M35: 14065 | N35: 14138 | O35: 3751 | P35: 2648 | Q35: 12020 | R35: 3388 | S35: 39380 | T35: 1995 | U35: 15880 | V35: 3331 | W35: 3915
A36: Marzo | B36: 195696 | C36: 42634 | D36: 15717 | E36: 1585 | F36: 676 | G36: 2593 | H36: 8558 | I36: 717 | J36: 3830 | K36: 1552 | L36: 1326 | M36: 14117 | N36: 13987 | O36: 3660 | P36: 2687 | Q36: 12057 | R36: 3429 | S36: 41076 | T36: 2027 | U36: 16294 | V36: 3238 | W36: 3936
A37: Abril | B37: 195589 | C37: 42454 | D37: 15592 | E37: 1556 | F37: 649 | G37: 2593 | H37: 8146 | I37: 698 | J37: 3816 | K37: 1512 | L37: 1311 | M37: 14161 | N37: 14336 | O37: 3665 | P37: 2694 | Q37: 12096 | R37: 3424 | S37: 40959 | T37: 2023 | U37: 16662 | V37: 3256 | W37: 3986
A38: Mayo | B38: 198021 | C38: 42528 | D38: 15653 | E38: 1559 | F38: 659 | G38: 2503 | H38: 8169 | I38: 691 | J38: 3912 | K38: 1542 | L38: 1354 | M38: 14489 | N38: 14489 | O38: 3681 | P38: 2717 | Q38: 12028 | R38: 3439 | S38: 42510 | T38: 2033 | U38: 16800 | V38: 3251 | W38: 4014
A39: Junio | B39: 198047 | C39: 42011 | D39: 15570 | E39: 1562 | F39: 651 | G39: 2365 | H39: 7975 | I39: 704 | J39: 3929 | K39: 1309 | L39: 1387 | M39: 14349 | N39: 14656 | O39: 3685 | P39: 2717 | Q39: 11806 | R39: 3447 | S39: 43685 | T39: 2059 | U39: 16890 | V39: 3235 | W39: 4055
A40: Julio | B40: 196924 | C40: 41890 | D40: 15446 | E40: 1531 | F40: 655 | G40: 2370 | H40: 7666 | I40: 679 | J40: 3923 | K40: 1349 | L40: 1391 | M40: 14506 | N40: 14496 | O40: 3611 | P40: 2689 | Q40: 11698 | R40: 3505 | S40: 43024 | T40: 2068 | U40: 17119 | V40: 3244 | W40: 4064
A41: Agosto | B41: 196202 | C41: 42486 | D41: 15416 | E41: 1543 | F41: 644 | G41: 2399 | H41: 7789 | I41: 695 | J41: 3972 | K41: 1335 | L41: 1384 | M41: 12455 | N41: 14447 | O41: 3569 | P41: 2691 | Q41: 11673 | R41: 3486 | S41: 43690 | T41: 2057 | U41: 17171 | V41: 3247 | W41: 4053
A42: Septiembre | B42: 196798 | C42: 43019 | D42: 15241 | E42: 1550 | F42: 682 | G42: 1933 | H42: 7623 | I42: 694 | J42: 4051 | K42: 1320 | L42: 1364 | M42: 14767 | N42: 14403 | O42: 3573 | P42: 2676 | Q42: 11452 | R42: 3385 | S42: 41870 | T42: 2112 | U42: 17777 | V42: 3254 | W42: 4052
A43: Octubre | B43: 195586 | C43: 42981 | D43: 14886 | E43: 1565 | F43: 680 | G43: 2153 | H43: 7719 | I43: 701 | J43: 4053 | K43: 1269 | L43: 1364 | M43: 14462 | N43: 14396 | O43: 3640 | P43: 2685 | Q43: 11453 | R43: 3543 | S43: 40629 | T43: 2083 | U43: 18054 | V43: 3269 | W43: 4001
A44: Noviembre | B44: 194720 | C44: 43443 | D44: 14845 | E44: 1550 | F44: 667 | G44: 1790 | H44: 7767 | I44: 696 | J44: 3768 | K44: 1223 | L44: 1462 | M44: 14401 | N44: 14358 | O44: 3699 | P44: 2686 | Q44: 11338 | R44: 3478 | S44: 39679 | T44: 2090 | U44: 18402 | V44: 3356 | W44: 4022
A45: Diciembre | B45: 194907 | C45: 44142 | D45: 14134 | E45: 1591 | F45: 653 | G45: 1821 | H45: 7740 | I45: 634 | J45: 3730 | K45: 1226 | L45: 1447 | M45: 14343 | N45: 14295 | O45: 3692 | P45: 2655 | Q45: 11270 | R45: 3553 | S45: 40077 | T45: 2091 | U45: 18353 | V45: 3332 | W45: 4128
A49: calculations for the H index
A50: Average | B50: =AVERAGE(B34:B45) -> 195863.4167 | C50: 42771.83333 | D50: 15346 | E50: 1562.75 | F50: 666 | G50: 2314.25 | H50: 7951.833333 | I50: 696.5833333 | J50: 3894.916667 | K50: 1393.416667 | L50: 1378.166667 | M50: 14186.25 | N50: 14330.08333 | O50: 3667.416667 | P50: 2681.916667 | Q50: 11735 | R50: 3452.083333 | S50: 41391.91667 | T50: 2051 | U50: 17098.16667 | V50: 3280.333333 | W50: 4013.5
A51: S | C51: =C50/$B$41 -> 0.2179989671 | D51: =D50/$B$41 -> 0.07821530871 | E51: 0.007965005454 | F51: 0.003394460811 | G51: 0.01179524164 | H51: 0.04052880874 | I51: 0.003550337577 | J51: 0.01985156454 | K51: 0.007101949352 | L51: 0.007024223334 | M51: 0.07230430882 | N51: 0.07303739683 | O51: 0.01869204527 | P51: 0.01366916069 | Q51: 0.05981080723 | R51: 0.01759453692 | S51: 0.2109658243 | T51: 0.0104535122 | U51: 0.08714573076 | V51: 0.01671916358 | W51: 0.02045595865
A52: S^2 | C52: =(C51)^2 -> 0.04752354964 | D52: =(D51)^2 -> 0.006117634517 | E52: 6.344131188e-05 | F52: 1.15223642e-05 | G52: 0.0001391277253 | H52: 0.001642584338 | I52: 1.260489691e-05 | J52: 0.0003940846148 | K52: 5.043768459e-05 | L52: 4.933971345e-05 | M52: 0.005227913075 | N52: 0.005334461336 | O52: 0.0003493925565 | P52: 0.0001868459541 | Q52: 0.003577332661 | R52: 0.0003095677295 | S52: 0.04450657904 | T52: 0.0001092759172 | U52: 0.00759437839 | V52: 0.0002795304309 | W52: 0.0004184462445
A53: H | B53: =SUM(C52:W52) -> 0.1238980501
A54: H* | B54: =((B53-1/21)/(1-1/21)) -> 0.08009295264
A55: X* | B55: =(0.25-1/21)/(1-1/21) -> 0.2125
A56: Abs | B56: =ABS((B54-B55)/B55) -> 0.6230919876
A57: H*s | B57: =100*(1-B56) -> 37.69080124 | C57: 2013
A59: 2014
A62: Nota: | B62: Los datos corresponden al tamaño de la muestra (sin expandir) de la Encuesta Mensual de la Industria Manufacturera (EMIM) en la entidad es decir 880 establecimientos que, de acuerdo al año en que fue diseñada (2008) generaron el 84.37 %, aproximadamente del valor de los ingresos. La EMIM ahora incluye las actividades relativas a las maquiladoras de exportación en virtud de que es un estudio integral del sector manufacturero. Estimado usuario: los datos de la anterior Encuesta Industrial Mensual Ampliada (EIMA) por entidad federativa los puede usted seguir consultando en el Banco de Información Económica BIE en el apartado temático: "Series que ya no se actualizan/sector Manufacturero/Encuesta Industrial Mensual Ampliada (SCIAN 2002)".
A63: P | B63: Preliminary figures from the date shown.
A64: R | B64: Revised figures from the date shown.
A65: Fuente: | B65: INEGI. Encuesta Mensual de la Industria Manufacturera.
A67: source: http://www.inegi.org.mx/sistemas/bie/CuadrosEstadisticos/GeneraCuadro.aspx?s=est&nc=1045&e=14&c=29325
A68: Fecha de actualización: Viernes, 17 de octubre de 2014

Sheet INFRASTRUCTURE
B1: NOTE:
B2: CPI Calculated Using Latest Years of Informatiion
C3: Sub Index values
C4: Missing data
C5: Stale level Data (JALISCO)
C6: Country Level Data (MEXICO)
C8: INFRASTRUCTURE INDEX
H10: BASIC | I10: EXTENDED
H11: =GEOMEAN(H17,H36,H43,H53,H69) -> 52.2437665 | I11: =GEOMEAN(I17,I36,I43,I53,I69) -> 49.25966681
A12: DIMENSION | B12: CODE | C12: INDICATOR | D12: NOTES | E12: BASIC | F12: EXTENDED | G12: MISSING | J12: Year | K12: 2000 | L12: 2001 | M12: 2002 | N12: 2003 | O12: 2004 | P12: 2005 | Q12: 2006 | R12: 2007 | S12: 2008 | T12: 2009 | U12: 2010 | V12: 2011 | W12: 2012 | X12: 2013 | Y12: 2014 | Z12: Standardization | AA12: MIN | AB12: MAX | AC12: TARGET | AD12: NOTES/SOURCES
B13: demographic | C13: 1. Population | K13: =Physicians!H5 -> 3699136 | L13: =Physicians!I5 -> 3783094.76 | M13: =Physicians!J5 -> 3864745.84 | N13: =Physicians!K5 -> 3944089.24 | O13: =Physicians!L5 -> 4021124.96 | P13: =Physicians!M5 -> 4095853 | Q13: =Physicians!N5 -> 4168273.36 | R13: =Physicians!O5 -> 4238386.04 | S13: =Physicians!P5 -> 4306191.04 | T13: =Physicians!Q5 -> 4371688.36 | U13: =Physicians!R5 -> 4434878 | V13: =Physicians!S5 -> 4495759.96 | W13: =Physicians!T5 -> 4554334.24 | X13: =Physicians!U5 -> 4610600.84 | Y13: =Physicians!V5 -> 4664559.76 | AD13: RED: Projected data
C14: 2. Homes/Households | AD14: INEGI
C15: 3. Urban Footprint area
C16: 4. Population in households
C17: 1. Housing Infrastructure Sub Index (HI) | H17: =AVERAGE(U19,U22) -> 92.25383637 | I17: =AVERAGE(U19,U22,U25,U28,U31,X34) -> 89.22758473
B18: ID_HI_1 | C18: 1. Improved Shelter | D18: % | E18: X | J18: 2010 | U18: ='Access To Services'!F14 -> 0.973726098 | Z18: 2.1 | AA18: 0.85 | AB18: 0.98
C19: Standardized | U19: =100*((U18-$AA$18)/($AB$18-$AA$18)) -> 95.17392152
B21: ID_HI_2 | C21: 2. Access to Improved Water | D21: % | E21: X | J21: 2010 | U21: ='Access To Services'!D14 -> 0.9466687561 | Z21: 2.1 | AA21: 0.5 | AB21: 1
C22: Standardized | U22: =100*((U21-$AA$21)/($AB$21-$AA$21)) -> 89.33375123
B24: ID_HI_3 | C24: 3. Access to Improved Sanitation | D24: % | F24: X | J24: 2010 | U24: ='Access To Services'!H14 -> 0.9799287635 | Z24: 2.1 | AA24: 0.15 | AB24: 1
C25: Standardized | U25: =100*((U24-$AA$24)/($AB$24-$AA$24)) -> 97.63867806
B27: ID_HI_4 | C27: 4. Access to Electricity | D27: % | F27: X | J27: 2010 | U27: ='Access To Services'!L14 -> 0.9931516931 | Z27: 2.1 | AA27: 0.07 | AB27: 1
C28: Standardized | U28: =100*((U27-$AA$27)/($AB$27-$AA$27)) -> 99.26362291
B30: ID_HI_5 | C30: 5. Sufficient Living Area | D30: % | F30: X | J30: 2010 | U30: ='[45]Sufficient Living Area'!S7 -> 0.9675215197 | Z30: 2.1 (third root) | AA30: 0.025 | AB30: 0.578
C31: Standardized | U31: ='[45]Sufficient Living Area'!S9 -> 95.62049147
B33: ID_HI_6 | C33: 6. Residential Density | D33: People/km2 | F33: X | J33: 2013 | X33: ='[45]Residential Density'!V10 -> 8750.25648 | Z33: 5 | AC33: 15000
C34: Standardized | X34: ='[45]Residential Density'!V14 -> 58.3350432
C36: 2. Social Infrastructure (SI) | H36: =AVERAGE(W38) -> 23.2707198 | I36: =AVERAGE(W38,V41) -> 17.35503487
B37: ID_SI_1 | C37: 1. Physicians Density | D37: # / 1,000 people | E37: X | J37: 2012 | S37: =Physicians!P17 -> 0.6908657726 | T37: =Physicians!Q17 -> 0.70933693 | U37: =Physicians!R17 -> 0.5871638408 | V37: =Physicians!S17 -> 0.6054593715 | W37: =Physicians!T17 -> 0.5236769798 | Z37: 2.1 (square root) | AA37: 0.1 | AB37: 2.78 | AD37: SSA (SINAIS)
C38: Standardized | S38: =Physicians!P18 -> 27.28296108 | T38: =Physicians!Q18 -> 27.69482932 | U38: =Physicians!R18 -> 24.86067792 | V38: =Physicians!S18 -> 25.30271263 | W38: =Physicians!T18 -> 23.2707198
B40: ID_SI_2 | C40: 2. Number of Public Libraries | D40: # / 100,000 people | F40: X | J40: 2011 | L40: =Libraries!D21 -> 0.9780352422 | M40: =Libraries!E21 -> 0.9314972185 | N40: =Libraries!F21 -> 0.887403856 | O40: =Libraries!G21 -> 0.8704031918 | P40: =Libraries!H21 -> 0.8301079165 | Q40: =Libraries!I21 -> 0.8876577135 | R40: =Libraries!J21 -> 0.8729738077 | S40: =Libraries!K21 -> 0.8592280198 | T40: =Libraries!L21 -> 0.8463549309 | U40: =Libraries!M21 -> 0.83429578 | V40: =Libraries!N21 -> 0.8007544958 | Z40: 2.1 | AA40: 0 | AB40: 7 | AD40: https://seplan.app.jalisco.gob.mx/mide/panelCiudadano/index
C41: Standardized | L41: =Libraries!D23 -> 13.97193203 | M41: =Libraries!E23 -> 13.30710312 | N41: =Libraries!F23 -> 12.67719794 | O41: =Libraries!G23 -> 12.43433131 | P41: =Libraries!H23 -> 11.85868452 | Q41: =Libraries!I23 -> 12.68082448 | R41: =Libraries!J23 -> 12.4710544 | S41: =Libraries!K23 -> 12.274686 | T41: =Libraries!L23 -> 12.09078473 | U41: =Libraries!M23 -> 11.91851114 | V41: =Libraries!N23 -> 11.43934994
C43: 3. ICT Sub Index (ICT) | H43: =AVERAGE(U45) -> 34.42745955 | I43: =AVERAGE(U45,W48,Y51) -> 45.86136065
B44: ID_ICT_1 | C44: 1. Internet Access | D44: % | E44: X | J44: 2010 | U44: ='Internet and Computer access'!E8 -> 0.3442745955 | Z44: 1.1 | AA44: 0 | AB44: 1 | AD44: Mexico Census 2010 | AE44: Calculated from 2010 Mexico Census
C45: Standardized | U45: =U44*100 -> 34.42745955
B47: ID_ICT_2 | C47: 2. Home Computer Access | D47: % | F47: X | J47: 2012 | S47: ='Internet and Computer access'!C5 -> 0.320482403 | T47: ='Internet and Computer access'!D5 -> 0.3407879248 | U47: ='Internet and Computer access'!E5 -> 0.3615856833 | V47: ='Internet and Computer access'!F5 -> 0.3532012069 | W47: ='Internet and Computer access'!G5 -> 0.4398400986 | Z47: 1.1 | AA47: 0 | AB47: 1 | AD47: MCS (CONEVAL) | AE47: Calculated from 2010 Mexico Census
C48: Standardized | S48: =S47*100 -> 32.0482403 | T48: =T47*100 -> 34.07879248 | U48: 36.15856833 | V48: 35.32012069 | W48: 43.98400986
B50: ID_ICT_3 | C50: 3. Average broadband speed | D50: Mbps | F50: X | J50: 2014 | U50: ='Broadband speed'!P125 -> 4.539166667 | V50: ='Broadband speed'!Q125 -> 6.078333333 | W50: ='Broadband speed'!R125 -> 7.756666667 | X50: ='Broadband speed'!S125 -> 8.995 | Y50: ='Broadband speed'!T125 -> 11.13833333 | Z50: 2.1 | AA50: 0.6 | AB50: Yearly Global average | AD50: http://explorer.netindex.com/maps
C51: Standardized | U51: ='Broadband speed'!R126 -> 14.51194358 | V51: ='Broadband speed'!S126 -> 25.18529548 | W51: ='Broadband speed'!T126 -> 35.82273333 | X51: ='Broadband speed'!U126 -> 63.86021867 | Y51: ='Broadband speed'!V126 -> 59.17261254 | AD51: NOTE: There is no data available for Ixtlahuacan and Juanacatlan
C53: 4. Urban Mobility Sub Index (UM) | H53: =AVERAGE(R55,R58) -> 69.88080413 | I53: =AVERAGE(R55,R58,Y61,W64,W67) -> 54.19640881
B54: ID_UM_1 | C54: 1. Use of Public Transport | D54: % | E54: X | J54: 2007 | R54: ='Urban Mobility'!P10 -> 28.3 | Z54: 2.1 | AA54: 0.0595 | AB54: 0.6216 | AF54: Desplazamiento segun modo de transporte
C55: Standardized | R55: ='Urban Mobility'!P11 -> 39.76160825
B57: ID_UM_2 | C57: 2. Average Daily Travel Time (reversed) | D57: minutes (min.) | E57: X | J57: 2007 | R57: ='Urban Mobility'!P13 -> 28.266 | Z57: 4 | AC57: 30 | AF57: Duración promedio de desplazamientos por motivo y medio de transporte de la “movilidad obligada". Total de desplazamientos
C58: Standardized | R58: ='Urban Mobility'!P15 -> 100
B60: ID_UM_3 | C60: 3. Length of Mass Transport Network | D60: km / 1,000,000 people | F60: X | J60: 2014 | K60: ='Urban Mobility'!I18 -> 6.488001523 | L60: ='Urban Mobility'!J18 -> 6.344012382 | M60: ='Urban Mobility'!K18 -> 6.209981456 | N60: ='Urban Mobility'!L18 -> 6.085055013 | O60: ='Urban Mobility'!M18 -> 5.96847903 | P60: ='Urban Mobility'!N18 -> 5.859585293 | Q60: ='Urban Mobility'!O18 -> 5.757779763 | R60: ='Urban Mobility'!P18 -> 5.662532807 | S60: ='Urban Mobility'!Q18 -> 5.573370939 | T60: ='Urban Mobility'!R18 -> 9.149783037 | U60: ='Urban Mobility'!S18 -> 9.019413837 | V60: ='Urban Mobility'!T18 -> 8.897272176 | W60: ='Urban Mobility'!U18 -> 8.782842429 | X60: ='Urban Mobility'!V18 -> 8.675658854 | Y60: ='Urban Mobility'!W18 -> 8.575300148 | Z60: 3 | AC60: 80
C61: Standardized | K61: ='Urban Mobility'!I21 -> 8.110001903 | L61: ='Urban Mobility'!J21 -> 7.930015478 | M61: ='Urban Mobility'!K21 -> 7.76247682 | N61: ='Urban Mobility'!L21 -> 7.606318766 | O61: ='Urban Mobility'!M21 -> 7.460598787 | P61: ='Urban Mobility'!N21 -> 7.324481616 | Q61: ='Urban Mobility'!O21 -> 7.197224704 | R61: ='Urban Mobility'!P21 -> 7.078166009 | S61: ='Urban Mobility'!Q21 -> 6.966713674 | T61: ='Urban Mobility'!R21 -> 11.4372288 | U61: ='Urban Mobility'!S21 -> 11.2742673 | V61: ='Urban Mobility'!T21 -> 11.12159022 | W61: ='Urban Mobility'!U21 -> 10.97855304 | X61: ='Urban Mobility'!V21 -> 10.84457357 | Y61: ='Urban Mobility'!W21 -> 10.71912518
B63: ID_UM_4 | C63: 4. Traffic Fatalities (reversed) | D63: # / 100,000 people | F63: X | J63: 2012 | S63: ='Urban Mobility'!Q24 -> 2.972464501 | T63: ='Urban Mobility'!R24 -> 2.813558284 | U63: ='Urban Mobility'!S24 -> 2.953858032 | V63: ='Urban Mobility'!T24 -> 2.669181653 | W63: ='Urban Mobility'!U24 -> 2.678766941 | Z63: 2.2 | AA63: 1 | AB63: 31 | AD63: SINAIS (IMCO Data base)
C64: Standardized | S64: ='Urban Mobility'!Q25 -> 93.42511833 | T64: ='Urban Mobility'!R25 -> 93.95480572 | U64: ='Urban Mobility'!S25 -> 93.48713989 | V64: ='Urban Mobility'!T25 -> 94.43606116 | W64: ='Urban Mobility'!U25 -> 94.4041102
B66: ID_UM_5 | C66: 5. Affordability of Transport (reversed) | D66: % | F66: X | J66: 2012 | W66: ='Affordability Transp.'!U18 -> 20.25861591 | Z66: 2.2 | AA66: 0.04 | AB66: 0.26
C67: Standardized | W67: ='Affordability Transp.'!U20 -> 26.09720043
C69: 5. Street Connectivity (SC) | H69: =AVERAGE(Y73,Y78,Y81) -> 75.35555556 | I69: =AVERAGE(Y73,Y78,Y81) -> 75.35555556
B70: ID_SC_1 | C70: 1. Street Intersection Density | D70: # / km2 | E70: X | J70: 2014 | Y70: ='Street Connectivity'!H18 -> 110.87 | Z70: 3 | AC70: 100
C71: Calculations: | Y71: =ABS((Y70-$AC$70)/$AC$70) -> 0.1087
Y72: =100*(1-Y71) -> 89.13
C73: Standardized (If condition (Stnd 3.0)) | Y73: =IF(0<Y70<AC70,Y72,100) -> 100
B75: ID_SC_2 | C75: 2. Street Density | E75: X | J75: 2014 | Y75: ='Street Connectivity'!G18 -> 15.26 | Z75: 5 | AC75: 20
C76: Calculations: | Y76: =ABS((Y75-$AC$75)/$AC$75) -> 0.237
Y77: =100*(1-Y76) -> 76.3
C78: Standardized (If condition (Stnd 5.0)) | Y78: =IF(Y75<=(2*$AC$75), Y77,IF(Y75=AC75,100,Y77)) -> 76.3
B80: ID_SC_3 | C80: 3. Land allocated to streets | D80: % | E80: X | J80: 2014 | Y80: ='Street Connectivity'!F18 -> 20.93 | Z80: 2.1 | AA80: =0.06*100 -> 6 | AB80: =0.36*100 -> 36
C81: Standardized | Y81: =100*((Y80-$AA$80)/($AB$80-$AA$80)) -> 49.76666667

Sheet Access To Services
B3: CROSSTABS: IMPROVED SERVICES MEXICO 2010 | I3: NOTES:
I4: SPSS Generated
C9: Improved Water | E9: Improved Shelter | G9: Improved toilet | I9: Sufficient living area | K9: Electricity Connection | M9: Computer | O9: Internet Connection
C10: Unimproved water source | D10: Access to improved water source | E10: Not Durable | F10: Durable | G10: Unimproved sanitation | H10: Improved sanitation | I10: Crowded | J10: Not Crowded | K10: No Electricity | L10: Has Electricity | M10: No Computer | N10: Has Computer | O10: No Internet | P10: Has Internet
B11: Zapopan | C11: 0.03741894841 | D11: 0.9625810516 | E11: 0.02472662935 | F11: 0.9752733707 | G11: 0.02294933511 | H11: 0.9770506649 | I11: 0.02652078611 | J11: 0.9734792139 | K11: 0.005618652601 | L11: 0.9943813474 | M11: 0.4463555414 | N11: 0.5536444586 | O11: 0.5426122591 | P11: 0.4573877409
B12: Corregidora | C12: 0.1205298259 | D12: 0.8794701741 | E12: 0.007607423508 | F12: 0.9923925765 | G12: 0.01940403872 | H12: 0.9805959613 | I12: 0.01114640807 | J12: 0.9888535919 | K12: 0.009725241041 | L12: 0.990274759 | M12: 0.343039997 | N12: 0.656960003 | O12: 0.4283657508 | P12: 0.5716342492
B13: Cajeme | C13: 0.003581415124 | D13: 0.9964185849 | E13: 0.0277058077 | F13: 0.9722941923 | G13: 0.01726775888 | H13: 0.9827322411 | I13: 0.02339898039 | J13: 0.9766010196 | K13: 0.01114562227 | L13: 0.9888543777 | M13: 0.6143589871 | N13: 0.3856410129 | O13: 0.6938211922 | P13: 0.3061788078
B14: Metropolitan area of Guadalajara | C14: 0.05333124385 | D14: 0.9466687561 | E14: 0.02627390203 | F14: 0.973726098 | G14: 0.02007123649 | H14: 0.9799287635 | I14: 0.03247848032 | J14: 0.9675215197 | K14: 0.006848306933 | L14: 0.9931516931 | M14: 0.5604915841 | N14: 0.4395084159 | O14: 0.6634247527 | P14: 0.3365752473
B18: SPSS TABLES
B21: Other Mexican Municipalities * Improved Water Crosstabulation
B22: % within Other Mexican Municipalities
D23: Improved Water | F23: Total
D24: Unimproved water source | E24: Access to improved water source
B25: Other Mexican Municipalities | C25: .00 | D25: 0.05955397728 | E25: 0.9404460227 | F25: 1
C26: Zapopan | D26: 0.03741894841 | E26: 0.9625810516 | F26: 1
C27: Corregidora | D27: 0.1205298259 | E27: 0.8794701741 | F27: 1
C28: Cajeme | D28: 0.003581415124 | E28: 0.9964185849 | F28: 1
B29: Total | D29: 0.05105425932 | E29: 0.9489457407 | F29: 1
B31: Other Mexican Municipalities * Floor Material Crosstabulation
B32: % within Other Mexican Municipalities
D33: Floor Material | F33: Total
D34: Not Durable | E34: Durable
B35: Other Mexican Municipalities | C35: .00 | D35: 0.02687803244 | E35: 0.9731219676 | F35: 1
C36: Zapopan | D36: 0.02472662935 | E36: 0.9752733707 | F36: 1
C37: Corregidora | D37: 0.007607423508 | E37: 0.9923925765 | F37: 1
C38: Cajeme | D38: 0.0277058077 | E38: 0.9722941923 | F38: 1
B39: Total | D39: 0.02587363463 | E39: 0.9741263654 | F39: 1
B41: Other Mexican Municipalities * Improved toilet Crosstabulation
B42: % within Other Mexican Municipalities
D43: Improved toilet | F43: Total
D44: Unimproved sanitation | E44: Improved sanitation
B45: Other Mexican Municipalities | C45: .00 | D45: 0.01894571437 | E45: 0.9810542856 | F45: 1
C46: Zapopan | D46: 0.02294933511 | E46: 0.9770506649 | F46: 1
C47: Corregidora | D47: 0.01940403872 | E47: 0.9805959613 | F47: 1
C48: Cajeme | D48: 0.01726775888 | E48: 0.9827322411 | F48: 1
B49: Total | D49: 0.01981879647 | E49: 0.9801812035 | F49: 1
B51: Other Mexican Municipalities * Sufficient living area Crosstabulation
B52: % within Other Mexican Municipalities
D53: Sufficient living area | F53: Total
D54: Crowded | E54: Not Crowded
B55: Other Mexican Municipalities | C55: .00 | D55: 0.03480465356 | E55: 0.9651953464 | F55: 1
C56: Zapopan | D56: 0.02652078611 | E56: 0.9734792139 | F56: 1
C57: Corregidora | D57: 0.01114640807 | E57: 0.9888535919 | F57: 1
C58: Cajeme | D58: 0.02339898039 | E58: 0.9766010196 | F58: 1
B59: Total | D59: 0.03112815014 | E59: 0.9688718499 | F59: 1
B61: Other Mexican Municipalities * Electricity Connection Crosstabulation
B62: % within Other Mexican Municipalities
D63: Electricity Connection | F63: Total
D64: No Electricity | E64: Has Electricity
B65: Other Mexican Municipalities | C65: .00 | D65: 0.00732842372 | E65: 0.9926715763 | F65: 1
C66: Zapopan | D66: 0.005618652601 | E66: 0.9943813474 | F66: 1
C67: Corregidora | D67: 0.009725241041 | E67: 0.990274759 | F67: 1
C68: Cajeme | D68: 0.01114562227 | E68: 0.9888543777 | F68: 1
B69: Total | D69: 0.007286461459 | E69: 0.9927135385 | F69: 1
B71: Other Mexican Municipalities * Computer Crosstabulation
B72: % within Other Mexican Municipalities
D73: Computer | F73: Total
D74: No Computer | E74: Has Computer
B75: Other Mexican Municipalities | C75: .00 | D75: 0.6050558398 | E75: 0.3949441602 | F75: 1
C76: Zapopan | D76: 0.4463555414 | E76: 0.5536444586 | F76: 1
C77: Corregidora | D77: 0.343039997 | E77: 0.656960003 | F77: 1
C78: Cajeme | D78: 0.6143589871 | E78: 0.3856410129 | F78: 1
B79: Total | D79: 0.5589273373 | E79: 0.4410726627 | F79: 1
B81: Other Mexican Municipalities * Internet Connection Crosstabulation
B82: % within Other Mexican Municipalities
D83: Internet Connection | F83: Total
D84: No Internet | E84: Has Internet
B85: Other Mexican Municipalities | C85: .00 | D85: 0.7105958192 | E85: 0.2894041808 | F85: 1
C86: Zapopan | D86: 0.5426122591 | E86: 0.4573877409 | F86: 1
C87: Corregidora | D87: 0.4283657508 | E87: 0.5716342492 | F87: 1
C88: Cajeme | D88: 0.6938211922 | E88: 0.3061788078 | F88: 1
B89: Total | D89: 0.6594146786 | E89: 0.3405853214 | F89: 1
B91: Guadalajara Municipality Codes * Improved Water Crosstabulation
B92: % within Guadalajara Municipality Codes
D93: Improved Water | F93: Total
D94: Unimproved water source | E94: Access to improved water source
B95: Guadalajara Municipality Codes | C95: Others | D95: 0.03286986743 | E95: 0.9671301326 | F95: 1
C96: Metropolitan area of Guadalajara | D96: 0.05333124385 | E96: 0.9466687561 | F96: 1
B97: Total | D97: 0.05105425932 | E97: 0.9489457407 | F97: 1
B99: Guadalajara Municipality Codes * Floor Material Crosstabulation
B100: % within Guadalajara Municipality Codes
D101: Floor Material | F101: Total
D102: Not Durable | E102: Durable
B103: Guadalajara Municipality Codes | C103: Others | D103: 0.02267308931 | E103: 0.9773269107 | F103: 1
C104: Metropolitan area of Guadalajara | D104: 0.02627390203 | E104: 0.973726098 | F104: 1
B105: Total | D105: 0.02587363463 | E105: 0.9741263654 | F105: 1
B107: Guadalajara Municipality Codes * Improved toilet Crosstabulation
B108: % within Guadalajara Municipality Codes
D109: Improved toilet | F109: Total
D110: Unimproved sanitation | E110: Improved sanitation
B111: Guadalajara Municipality Codes | C111: Others | D111: 0.01780276684 | E111: 0.9821972332 | F111: 1
C112: Metropolitan area of Guadalajara | D112: 0.02007123649 | E112: 0.9799287635 | F112: 1
B113: Total | D113: 0.01981879647 | E113: 0.9801812035 | F113: 1
B115: Guadalajara Municipality Codes * Sufficient living area Crosstabulation
B116: % within Guadalajara Municipality Codes
D117: Sufficient living area | F117: Total
D118: Crowded | E118: Not Crowded
B119: Guadalajara Municipality Codes | C119: Others | D119: 0.02033088569 | E119: 0.9796691143 | F119: 1
C120: Metropolitan area of Guadalajara | D120: 0.03247848032 | E120: 0.9675215197 | F120: 1
B121: Total | D121: 0.03112815014 | E121: 0.9688718499 | F121: 1
B123: Guadalajara Municipality Codes * Electricity Connection Crosstabulation
B124: % within Guadalajara Municipality Codes
D125: Electricity Connection | F125: Total
D126: No Electricity | E126: Has Electricity
B127: Guadalajara Municipality Codes | C127: Others | D127: 0.01078995295 | E127: 0.9892100471 | F127: 1
C128: Metropolitan area of Guadalajara | D128: 0.006848306933 | E128: 0.9931516931 | F128: 1
B129: Total | D129: 0.007286461459 | E129: 0.9927135385 | F129: 1
B131: Guadalajara Municipality Codes * Computer Crosstabulation
B132: % within Guadalajara Municipality Codes
D133: Computer | F133: Total
D134: No Computer | E134: Has Computer
B135: Guadalajara Municipality Codes | C135: Others | D135: 0.5464195917 | E135: 0.4535804083 | F135: 1
C136: Metropolitan area of Guadalajara | D136: 0.5604915841 | E136: 0.4395084159 | F136: 1
B137: Total | D137: 0.5589273373 | E137: 0.4410726627 | F137: 1
B139: Guadalajara Municipality Codes * Internet Connection Crosstabulation
B140: % within Guadalajara Municipality Codes
D141: Internet Connection | F141: Total
D142: No Internet | E142: Has Internet
B143: Guadalajara Municipality Codes | C143: Others | D143: 0.6273500536 | E143: 0.3726499464 | F143: 1
C144: Metropolitan area of Guadalajara | D144: 0.6634247527 | E144: 0.3365752473 | F144: 1
B145: Total | D145: 0.6594146786 | E145: 0.3405853214 | F145: 1

Sheet Residential Density
D1: RESIDENTIAL DENSITY
D3: FORMULA
D4: Residential Density | E4: =City (Urban) Population /Urban Area
A7: DIMENSION | B7: SUB-DIMENSION | C7: CODE | D7: INDICATOR | E7: NOTES | F7: BASIC | G7: EXTENDED | H7: MISSING | I7: 2000 | J7: 2001 | K7: 2002 | L7: 2003 | M7: 2004 | N7: 2005 | O7: 2006 | P7: 2007 | Q7: 2008 | R7: 2009 | S7: 2010 | T7: 2011 | U7: 2012 | V7: 2013 | W7: 2014 | X7: Standardization | Y7: MIN | Z7: MAX | AA7: TARGET | AB7: NOTES/SOURCES
B8: demographic | D8: 1. Population | I8: 3699136 | J8: 3783094.76 | K8: 3864745.84 | L8: 3944089.24 | M8: 4021124.96 | N8: 4095853 | O8: 4168273.36 | P8: 4238386.04 | Q8: 4306191.04 | R8: 4371688.36 | S8: 4434878 | T8: 4495759.96 | U8: 4554334.24 | V8: 4610600.84 | W8: 4664559.76 | AB8: Red is projected data. Projection by GUO
A10: Infrastructure Development Index (ID) | B10: 1. Housing Infrastructure Sub Index (HI) | C10: ID_HI_6 | D10: 6. Residential Density | E10: People/km2 | G10: X | V10: =V11/V12 -> 8750.25648 | X10: 5 | AA10: 15000
D11: City (Urban) Population | V11: =V8/S31 -> 5915085.878
D12: Urban Footprint/Area | V12: 675.99
D13: Abs[(X-X*)/X*] | V13: =ABS((V10-$AA$10)/$AA$10) -> 0.416649568
D14: Standardized | V14: =100*(1-V13) -> 58.3350432
D17: NOTE:
D18: X=Residential Density
D19: X*=15000 (Target)
C20: URBAN - RURAL FREQUENCIES (Mexico Census 2010)
I22: Total | J22: Urban | K22: Rural | S22: Urban/Total Ratio
C23: Municipality, Mexico | D23: Guadalajara | I23: 1491217 | J23: 1162642 | K23: =I23-J23 -> 328575 | S23: =J23/I23 -> 0.7796598349
D24: Ixtlahuacan de los Membrillos | I24: 41180 | J24: 32102 | K24: =I24-J24 -> 9078 | S24: =J24/I24 -> 0.7795531812
D25: Juanacatlan | I25: 13490 | J25: 10482 | K25: 3008 | S25: 0.7770200148
D26: Salto, El | I26: 136697 | J26: 106575 | K26: 30122 | S26: 0.7796440302
D27: Tlajomulco de Zuniga | I27: 417205 | J27: 328482 | K27: 88723 | S27: 0.7873395573
D28: Tlaquepaque | I28: 608085 | J28: 467663 | K28: 140422 | S28: 0.7690750471
D29: Tonala | I29: 464069 | J29: 364482 | K29: 99587 | S29: 0.7854047566
D30: Zapopan | I30: 1238499 | J30: 965356 | K30: 273143 | S30: 0.7794564227
D31: Metropolitan area of Guadalajara | I31: 4410442 | J31: 3437784 | K31: 972658 | S31: 0.7794647339
D33: Corregidora | I33: 141885 | J33: 107658 | K33: 34227 | S33: 0.7587694259
D34: Cajeme | I34: 405480 | J34: 322279 | K34: 83201 | S34: 0.7948086219

Sheet Physicians
C2: PHYSICIAN DENSITY
A4: DIMENSION | B4: CODE | C4: INDICATOR | D4: NOTES | E4: BASIC | F4: EXTENDED | G4: MISSING | H4: 2000 | I4: 2001 | J4: 2002 | K4: 2003 | L4: 2004 | M4: 2005 | N4: 2006 | O4: 2007 | P4: 2008 | Q4: 2009 | R4: 2010 | S4: 2011 | T4: 2012 | U4: 2013 | V4: 2014 | W4: Standardization | X4: MIN | Y4: MAX | Z4: TARGET | AA4: LEVEL | AB4: Source
A5: Productivity Index (P) | B5: Demographic | C5: Population | H5: 3699136 | I5: 3783094.76 | J5: 3864745.84 | K5: 3944089.24 | L5: 4021124.96 | M5: 4095853 | N5: 4168273.36 | O5: 4238386.04 | P5: 4306191.04 | Q5: 4371688.36 | R5: 4434878 | S5: 4495759.96 | T5: 4554334.24 | U5: 4610600.84 | V5: 4664559.76
B8: ID_SI_1 | C8: Guadalajara | P8: 1993 | Q8: 2178 | R8: 1692 | S8: 1743 | T8: 1634 | AB8: Source SINAIS. IMCO Data base
C9: El Salto | P9: 9 | Q9: 15 | R9: 13 | S9: 16 | T9: 12
C10: Tlajomulco de Zúñiga | P10: 85 | Q10: 61 | R10: 64 | S10: 65 | T10: 38
C11: Tlaquepaque | P11: 100 | Q11: 73 | R11: 73 | S11: 74 | T11: 15
C12: Tonalá | P12: 49 | Q12: 49 | R12: 49 | S12: 72 | T12: 30
C13: Zapopan | P13: 713 | Q13: 714 | R13: 701 | S13: 741 | T13: 651
C14: Juanacatlan | P14: 5 | Q14: 4 | R14: 5 | S14: 4 | T14: 3
C15: Ixtahuacan | P15: 21 | Q15: 7 | R15: 7 | S15: 7 | T15: 2
C16: Total Physicians in Guadalajara | P16: =SUM(P8:P15) -> 2975 | Q16: =SUM(Q8:Q15) -> 3101 | R16: =SUM(R8:R15) -> 2604 | S16: =SUM(S8:S15) -> 2722 | T16: =SUM(T8:T15) -> 2385
C17: 1. Physicians Density | P17: =(P16/P5)*1000 -> 0.6908657726 | Q17: =(Q16/Q5)*1000 -> 0.70933693 | R17: =(R16/R5)*1000 -> 0.5871638408 | S17: =(S16/S5)*1000 -> 0.6054593715 | T17: =(T16/T5)*1000 -> 0.5236769798 | W17: 2.1 (square root) | X17: 0.1 | Y17: 2.78
C18: Standardized | P18: =100*(((SQRT(P17))-$X$17)/($Y$17-$X$17)) -> 27.28296108 | Q18: =100*(((SQRT(Q17))-$X$17)/($Y$17-$X$17)) -> 27.69482932 | R18: =100*(((SQRT(R17))-$X$17)/($Y$17-$X$17)) -> 24.86067792 | S18: =100*(((SQRT(S17))-$X$17)/($Y$17-$X$17)) -> 25.30271263 | T18: =100*(((SQRT(T17))-$X$17)/($Y$17-$X$17)) -> 23.2707198

Sheet Urban Mobility
D2: TRANSPORT
A4: DIMENSION | B4: SUB-DIMENSION | C4: CODE | D4: INDICATOR | E4: NOTES | F4: BASIC | G4: EXTENDED | H4: MISSING | I4: 2000 | J4: 2001 | K4: 2002 | L4: 2003 | M4: 2004 | N4: 2005 | O4: 2006 | P4: 2007 | Q4: 2008 | R4: 2009 | S4: 2010 | T4: 2011 | U4: 2012 | V4: 2013 | W4: 2014 | X4: Standardization | Y4: MIN | Z4: MAX | AA4: TARGET | AB4: NOTES/SOURCES
B5: demographic | D5: 1. Population | I5: 3699136 | J5: 3783094.76 | K5: 3864745.84 | L5: 3944089.24 | M5: 4021124.96 | N5: 4095853 | O5: 4168273.36 | P5: 4238386.04 | Q5: 4306191.04 | R5: 4371688.36 | S5: 4434878 | T5: 4495759.96 | U5: 4554334.24 | V5: 4610600.84 | W5: 4664559.76 | AB5: INEGI Website and GUO Projected Calculations
D6: 2. Homes/Households | AB6: INEGI and GUO ProjectedCalculations
D8: 3. Urban Footprint area | V8: 675.99
B10: 4. Urban Mobility Sub Index (UM) | C10: ID_UM_1 | D10: 1. Use of Public Transport | E10: % | F10: X | P10: 28.3 | X10: 2.1 | Y10: =0.0595*100 -> 5.95 | Z10: =0.6216*100 -> 62.16 | AD10: Desplazamiento segun modo de transporte
D11: Standardized | P11: =100*((P10-$Y$10)/($Z$10-$Y$10)) -> 39.76160825
C13: ID_UM_2 | D13: 2. Average Daily Travel Time (reversed) | E13: minutes (min.) | F13: X | P13: 28.266 | X13: 4 | AA13: 30 | AD13: Duración promedio de desplazamientos por motivo y medio de transporte de la “movilidad obligada". Total de desplazamientos
D14: Standardized | P14: =100*(1-ABS((P13-$AA$13)/$AA$13)) -> 94.22
D15: Decision: | P15: 100
C17: ID_UM_3 | D17: 3. Length of the BRT network (Km) | I17: 24 | J17: 24 | K17: 24 | L17: 24 | M17: 24 | N17: 24 | O17: 24 | P17: 24 | Q17: 24 | R17: 40 | S17: 40 | T17: 40 | U17: 40 | V17: 40 | W17: 40
D18: Length of Mass Transport Network | E18: km / 1,000,000 people | G18: X | I18: =1000000*(I17/I5) -> 6.488001523 | J18: 6.344012382 | K18: 6.209981456 | L18: 6.085055013 | M18: 5.96847903 | N18: 5.859585293 | O18: 5.757779763 | P18: 5.662532807 | Q18: 5.573370939 | R18: 9.149783037 | S18: 9.019413837 | T18: 8.897272176 | U18: 8.782842429 | V18: 8.675658854 | W18: 8.575300148 | X18: 3 | AA18: 80
D19: Calculations: | I19: =ABS((I18-$AA$18)/$AA$18) -> 0.918899981 | J19: 0.9206998452 | K19: =ABS((K18-$AA$18)/$AA$18) -> 0.9223752318 | L19: 0.9239368123 | M19: 0.9253940121 | N19: 0.9267551838 | O19: 0.928027753 | P19: 0.9292183399 | Q19: 0.9303328633 | R19: 0.885627712 | S19: 0.887257327 | T19: 0.8887840978 | U19: 0.8902144696 | V19: 0.8915542643 | W19: 0.8928087482
D20: If condition (Stnd 3.0) | I20: =100*(1-I19) -> 8.110001903 | J20: =100*(1-J19) -> 7.930015478 | K20: 7.76247682 | L20: 7.606318766 | M20: 7.460598787 | N20: 7.324481616 | O20: 7.197224704 | P20: 7.078166009 | Q20: 6.966713674 | R20: 11.4372288 | S20: 11.2742673 | T20: 11.12159022 | U20: 10.97855304 | V20: 10.84457357 | W20: 10.71912518
D21: Standardized | I21: =IF(I18>80, 100, I20) -> 8.110001903 | J21: =IF(J18>80, 100, J20) -> 7.930015478 | K21: =IF(K18>80, 100, K20) -> 7.76247682 | L21: 7.606318766 | M21: 7.460598787 | N21: 7.324481616 | O21: 7.197224704 | P21: 7.078166009 | Q21: 6.966713674 | R21: 11.4372288 | S21: 11.2742673 | T21: 11.12159022 | U21: 10.97855304 | V21: 10.84457357 | W21: 10.71912518
C23: ID_UM_4 | D23: 4. Traffic Fatalities (reversed) | G23: X | Q23: 128 | R23: 123 | S23: 131 | T23: 120 | U23: 122 | X23: 2.2 | Y23: 1 | Z23: 31 | AC23: SINAIS
D24: Traffic Fatalities | E24: # / 100,000 people | Q24: =(100000*(Q23/Q5)) -> 2.972464501 | R24: =(100000*(R23/R5)) -> 2.813558284 | S24: =(100000*(S23/S5)) -> 2.953858032 | T24: =(100000*(T23/T5)) -> 2.669181653 | U24: =(100000*(U23/U5)) -> 2.678766941
D25: Standardized | Q25: =100*(1-((Q24-$Y$23)/($Z$23-$Y$23))) -> 93.42511833 | R25: 93.95480572 | S25: 93.48713989 | T25: 94.43606116 | U25: 94.4041102

Sheet Mass Transport
A1: Mass Transport
A2: Guadalajara metropolitan
B3: Total length km | D3: Zapopan | E3: Tlaquepaque | F3: Guadalajara
A4: TL1 (since 1989) | B4: 15.5 | D4: 1.77 | E4: 2 | F4: =B4-D4-E4 -> 11.73
A5: TL2 (since 1994) | B5: 8.5 | F5: =B5-D5-E5 -> 8.5
A6: BRT (since 2009) | B6: 16 | F6: =B6-D6-E6 -> 16
B7: =SUM(B4:B6) -> 40 | D7: =SUM(D4:D6) -> 1.77 | E7: =SUM(E4:E6) -> 2 | F7: =SUM(F4:F6) -> 36.23
A8: population | B8: 4434252 | D8: 1243756 | E8: 575942 | F8: 1494134 | G8: Check population.
B9: =(B7/B8)*1000000 -> 9.020687142 | D9: =(D7/D8)*1000000 -> 1.423108713 | E9: =(E7/E8)*1000000 -> 3.472571891 | F9: =(F7/F8)*1000000 -> 24.2481598
B11: =((B9-80)/80)+1 -> 0.1127585893 | D11: =((D9-80)/80)+1 -> 0.01778885891 | E11: =((E9-80)/80)+1 -> 0.04340714864 | F11: =((F9-80)/80)+1 -> 0.3031019975
A13: Source: SITEUR, Macrobus
B15: Metropolitan Guadaalajara | D15: Zapopan | E15: Tlaquepaque | F15: Guadalajara
A16: From 1994- 2008 | B16: =B4+B5 -> 24 | D16: =D4+D5 -> 1.77 | E16: =E4+E5 -> 2 | F16: =F4+F5 -> 20.23
A17: from 2009 -2014 | B17: =B7 -> 40 | D17: =D7 -> 1.77 | E17: =E7 -> 2 | F17: =F7 -> 36.23

Sheet Libraries
B1: Year (000's) | C1: 2000 | D1: 2001 | E1: 2002 | F1: 2003 | G1: 2004 | H1: 2005 | I1: 2006 | J1: 2007 | K1: 2008 | L1: 2009 | M1: 2010 | N1: 2011 | O1: 2012 | P1: 2013 | Q1: 2014
B2: Projected Population | C2: 3699136 | D2: 3783094.76 | E2: 3864745.84 | F2: 3944089.24 | G2: 4021124.96 | H2: 4095853 | I2: 4168273.36 | J2: 4238386.04 | K2: 4306191.04 | L2: 4371688.36 | M2: 4434878 | N2: 4495759.96 | O2: 4554334.24 | P2: 4610600.84 | Q2: 4664559.76
B4: Note:
B5: Projected Population
B6: Source: INEGI
C10: 2000 | D10: 2001 | E10: 2002 | F10: 2003 | G10: 2004 | H10: 2005 | I10: 2006 | J10: 2007 | K10: 2008 | L10: 2009 | M10: 2010 | N10: 2011 | O10: 2012 | P10: 2013 | Q10: Standardization | R10: MIN | S10: MAX | T10: TARGET
A11: Public libraries | B11: EL SALTO | D11: 1 | E11: 1 | F11: 1 | G11: 1 | H11: 1 | I11: 1 | J11: 1 | K11: 1 | L11: 1 | M11: 1 | N11: 1
B12: GUADALAJARA | D12: 12 | E12: 11 | F12: 10 | G12: 10 | H12: 10 | I12: 13 | J12: 13 | K12: 13 | L12: 13 | M12: 13 | N12: 13
B13: IXTLAHUACÁN DE LOS MEMBRILLOS | D13: 2 | E13: 2 | F13: 2 | G13: 2 | H13: 2 | I13: 2 | J13: 2 | K13: 2 | L13: 2 | M13: 2 | N13: 2
B14: JUANACATLÁN | D14: 1 | E14: 1 | F14: 1 | G14: 1 | H14: 1 | I14: 1 | J14: 1 | K14: 1 | L14: 1 | M14: 1 | N14: 1
B15: TLAJOMULCO DE ZÚÑIGA | D15: 1 | E15: 1 | F15: 1 | G15: 1 | H15: 1 | I15: 1 | J15: 1 | K15: 1 | L15: 1 | M15: 1 | N15: 1
B16: TLAQUEPAQUE | D16: 5 | E16: 5 | F16: 5 | G16: 5 | H16: 5 | I16: 5 | J16: 5 | K16: 5 | L16: 5 | M16: 5 | N16: 5
B17: TONALÁ | C17: N/A | D17: 3 | E17: 3 | F17: 3 | G17: 3 | H17: 3 | I17: 3 | J17: 3 | K17: 3 | L17: 3 | M17: 3 | N17: 3
B18: ZAPOPAN | D18: 12 | E18: 12 | F18: 12 | G18: 12 | H18: 11 | I18: 11 | J18: 11 | K18: 11 | L18: 11 | M18: 11 | N18: 10
B20: Number of public libraries | D20: =SUM(D11:D18) -> 37 | E20: =SUM(E11:E18) -> 36 | F20: 35 | G20: 35 | H20: 34 | I20: 37 | J20: 37 | K20: 37 | L20: 37 | M20: 37 | N20: 36 | Q20: 2.1 | R20: 0 | S20: 7
D21: =100000*(D20/D2) -> 0.9780352422 | E21: =100000*(E20/E2) -> 0.9314972185 | F21: 0.887403856 | G21: 0.8704031918 | H21: 0.8301079165 | I21: 0.8876577135 | J21: 0.8729738077 | K21: 0.8592280198 | L21: 0.8463549309 | M21: 0.83429578 | N21: 0.8007544958
D22: =100*(D21-$R$20)/($S$20-$R$20) -> 13.97193203 | E22: =100*(E21-$R$20)/($S$20-$R$20) -> 13.30710312 | F22: 12.67719794 | G22: 12.43433131 | H22: 11.85868452 | I22: 12.68082448 | J22: 12.4710544 | K22: 12.274686 | L22: 12.09078473 | M22: 11.91851114 | N22: 11.43934994
B23: Standardized | D23: =IF(D21<$R$19,0,D22) -> 13.97193203 | E23: =IF(E21<$R$19,0,E22) -> 13.30710312 | F23: 12.67719794 | G23: 12.43433131 | H23: 11.85868452 | I23: 12.68082448 | J23: 12.4710544 | K23: 12.274686 | L23: 12.09078473 | M23: 11.91851114 | N23: 11.43934994
B25: Source: INEGI

Sheet Internet and Computer access
B3: COMPUTER ACCESS
C4: 2008 | D4: 2009 | E4: 2010 | F4: 2011 | G4: 2012
B5: % households with computer | C5: 0.320482403 | D5: 0.3407879248 | E5: 0.3615856833 | F5: 0.3532012069 | G5: 0.4398400986 | I5: Source | J5: IMCO: MCS (CONEVAL)
B8: INTERNET ACCESS | E8: =E19/E30 -> 0.3442745955
B10: Inhabited housings available Internet | E10: 2010
B11: Guadalajara | E11: 142854
B12: El Salto | E12: 4215
B13: Tlajomulco de Zúñiga | E13: 21866
B14: Tlaquepaque | E14: 38675
B15: Tonalá | E15: 22518
B16: Zapopan | E16: 138986
B17: Ixtlahuacán de los Membrillos | E17: 1164
B18: Juanacatlán | E18: 405
B19: Gudalajara Metr. Area | E19: =SUM(E11:E17) -> 370278
B21: Inhabited housings | E21: 2010
B22: Guadalajara | E22: 370656
B23: El Salto | E23: 32031
B24: Tlajomulco de Zúñiga | E24: 101811
B25: Tlaquepaque | E25: 141521
B26: Tonalá | E26: 104756
B27: Zapopan | E27: 311046
B28: Ixtlahuacán de los Membrillos | E28: 10482
B29: Juanacatlán | E29: 3228
B30: Gudalajara Metr. Area | E30: =SUM(E22:E29) -> 1075531
B32: Source: Censo 2010

Sheet Broadband speed
B1: http://explorer.netindex.com/maps#
B3: Global Index - Broadband Speed
D5: Jan | E5: Feb | F5: Mar | G5: Apr | H5: May | I5: Jun | J5: Jul | K5: Aug | L5: Sep | M5: Oct | N5: Nov | O5: Dec | P5: Average
B6: 2008 | C6: Download Speed | D6: 4.2 | E6: 4.25 | F6: 4.33 | G6: 4.43 | H6: 4.46 | I6: 4.54 | J6: 4.64 | K6: 4.58 | L6: 4.7 | M6: 4.72 | N6: 4.72 | O6: 4.9 | P6: =AVERAGE(D6:O6) -> 4.539166667
C7: Upload Speed | D7: 0.93 | E7: 0.98 | F7: 0.98 | G7: 1.04 | H7: 1.04 | I7: 1.09 | J7: 1.14 | K7: 1.07 | L7: 1.15 | M7: 1.19 | N7: 1.22 | O7: 1.26 | P7: =AVERAGE(D7:O7) -> 1.090833333
B9: 2009 | C9: Download Speed | D9: 4.93 | E9: 5.08 | F9: 5.31 | G9: 5.91 | H9: 5.9 | I9: 5.96 | J9: 6.17 | K9: 6.47 | L9: 6.69 | M9: 6.72 | N9: 6.79 | O9: 7.01 | P9: 6.078333333
C10: Upload Speed | D10: 1.27 | E10: 1.31 | F10: 1.37 | G10: 1.51 | H10: 1.51 | I10: 1.56 | J10: 1.57 | K10: 1.58 | L10: 1.75 | M10: 1.78 | N10: 1.78 | O10: 1.79 | P10: 1.565
B12: 2010 | C12: Download Speed | D12: 7.06 | E12: 7.2 | F12: 7.47 | G12: 7.54 | H12: 7.62 | I12: 7.64 | J12: 7.6 | K12: 7.9 | L12: 8.19 | M12: 8.15 | N12: 8.27 | O12: 8.44 | P12: 7.756666667
C13: Upload Speed | D13: 1.79 | E13: 1.85 | F13: 2.01 | G13: 2.1 | H13: 2.09 | I13: 2.15 | J13: 2.07 | K13: 2.16 | L13: 2.26 | M13: 2.26 | N13: 2.31 | O13: 2.36 | P13: 2.1175
B15: 2011 | C15: Download Speed | D15: 8.88 | E15: 9.08 | F15: 8.53 | G15: 8.67 | H15: 8.82 | I15: 8.8 | J15: 8.7 | K15: 8.83 | L15: 9.11 | M15: 9.18 | N15: 9.47 | O15: 9.87 | P15: 8.995
C16: Upload Speed | D16: 2.5 | E16: 2.55 | F16: 2.77 | G16: 3.04 | H16: 3.1 | I16: 2.96 | J16: 2.8 | K16: 2.92 | L16: 3.8 | M16: 3.32 | N16: 3.48 | O16: 3.71 | P16: 3.079166667
B18: 2012 | C18: Download Speed | D18: 9.95 | E18: 9.98 | F18: 9.97 | G18: 10.33 | H18: 10.45 | I18: 10.73 | J18: 11.13 | K18: 11.62 | L18: 11.93 | M18: 12.29 | N18: 12.53 | O18: 12.75 | P18: 11.13833333
C19: Upload Speed | D19: 3.64 | E19: 3.77 | F19: 3.88 | G19: 3.89 | H19: 3.91 | I19: 3.98 | J19: 3.96 | K19: 4.21 | L19: 4.51 | M19: 4.71 | N19: 4.88 | O19: 5.01 | P19: 4.195833333
B21: 2013 | C21: Download Speed | D21: 13.03 | E21: 13.07 | F21: 13.32 | G21: 13.74 | I21: 13.92 | J21: 13.64 | K21: 14.29 | L21: 15.11 | M21: 15.61 | N21: 16.25 | O21: 16.41 | P21: 14.39909091
C22: Upload Speed | D22: 5.08 | E22: 5.23 | F22: 5.43 | G22: 5.49 | H22: 5.25 | I22: 5.5 | J22: 5.41 | K22: 5.68 | L22: 6.24 | M22: 6.58 | N22: 7.12 | O22: 7.25 | P22: 5.855
B24: 2014 | C24: Download Speed | D24: 16.46 | E24: 16.86 | F24: 17.3 | G24: 18.2 | H24: 18.52 | I24: 18.72 | J24: 19.26 | K24: 20.29 | L24: 20.54 | M24: 21.03 | P24: 18.718
C25: Upload Speed | D25: 7.33 | E25: 7.6 | F25: 7.79 | G25: 8.27 | H25: 8.52 | I25: 8.37 | J25: 8.39 | K25: 8.7 | L25: 9.21 | M25: 9.58 | P25: 8.376
E29: Download Speed
E30: 2008 | F30: 2009 | G30: 2010 | H30: 2011 | I30: 2012 | J30: 2013 | K30: 2014
E31: =P6 -> 4.539166667 | F31: =P9 -> 6.078333333 | G31: =P12 -> 7.756666667 | H31: =P15 -> 8.995 | I31: =P18 -> 11.13833333 | J31: =P21 -> 14.39909091 | K31: =P24 -> 18.718
E35: Upload Speed
E36: 2008 | F36: 2009 | G36: 2010 | H36: 2011 | I36: 2012 | J36: 2013 | K36: 2014
E37: =P7 -> 1.090833333 | F37: =P10 -> 1.565 | G37: =P13 -> 2.1175 | H37: =P16 -> 3.079166667 | I37: =P19 -> 4.195833333 | J37: =P22 -> 5.855 | K37: =P25 -> 8.376
B41: http://explorer.netindex.com/maps#
B43: GUADALAJARA Broadband Speed
T44: No info por Ixtlahuacan, Juanacatlan
D45: Jan | E45: Feb | F45: Mar | G45: Apr | H45: May | I45: Jun | J45: Jul | K45: Aug | L45: Sep | M45: Oct | N45: Nov | O45: Dec | P45: Average
B46: 2010 | C46: Download Speed | I46: 2.42 | J46: 2.21 | K46: 2.58 | L46: 2.76 | M46: 3.16 | N46: 3.74 | O46: 2.96 | P46: =AVERAGE(D46:O46) -> 2.832857143
B48: 2011 | C48: Download Speed | D48: 3.17 | E48: 3.53 | F48: 3.99 | G48: 4.79 | H48: 5.62 | I48: 6.2 | J48: 6.14 | K48: 5.46 | L48: 4.87 | M48: 5.23 | N48: 5.49 | O48: 5.56 | P48: =AVERAGE(D48:O48) -> 5.004166667
B50: 2012 | C50: Download Speed | D50: 5.56 | E50: 6.01 | F50: 5.73 | G50: 6.35 | H50: 6.45 | I50: 8.23 | J50: 9.04 | K50: 8.69 | L50: 9.01 | M50: 8.78 | N50: 8.85 | O50: 8.3 | P50: 7.583333333
B52: 2013 | C52: Download Speed | D52: 8.3 | E52: 8.13 | F52: 8.36 | G52: 9.24 | H52: 12.7 | I52: 11.9 | J52: 13.04 | K52: 13.51 | L52: 12.27 | M52: 17.35 | N52: 17.54 | O52: 16.08 | P52: 12.36833333
B54: 2014 | C54: Download Speed | D54: 17.6 | E54: 20.19 | F54: 17.83 | G54: 17.43 | H54: 17.92 | I54: 14.2 | J54: 13.85 | K54: 13.71 | L54: 15.06 | M54: 15.83 | P54: 16.362
B56: TONALA Broadband Speed
D58: Jan | E58: Feb | F58: Mar | G58: Apr | H58: May | I58: Jun | J58: Jul | K58: Aug | L58: Sep | M58: Oct | N58: Nov | O58: Dec | P58: Average
B59: 2010 | C59: Download Speed | I59: 1.25 | J59: 2.45 | K59: 1.36 | L59: 1.61 | M59: 3.41 | N59: 4.32 | O59: 2.65 | P59: =AVERAGE(D59:O59) -> 2.435714286
B61: 2011 | C61: Download Speed | D61: 2.99 | E61: 2.65 | F61: 3.15 | G61: 2.96 | H61: 4.28 | I61: 7.96 | J61: 2.66 | K61: 1.06 | L61: 2.69 | M61: 2.93 | N61: 2.88 | O61: 2.2 | P61: =AVERAGE(D61:O61) -> 3.200833333
B63: 2012 | C63: Download Speed | D63: 3.85 | E63: 3.43 | F63: 3.79 | G63: 3.76 | H63: 4.59 | I63: 2.71 | J63: 4.18 | K63: 5.42 | L63: 6.27 | M63: 5.93 | N63: 6.03 | O63: 4.03 | P63: =AVERAGE(D63:O63) -> 4.499166667
B65: 2013 | C65: Download Speed | D65: 5.86 | E65: 6.24 | F65: 5.95 | G65: 5.17 | H65: 5.83 | I65: 6.73 | J65: 9.25 | K65: 8.27 | L65: 8.41 | M65: 10.07 | N65: 11.68 | O65: 8.12 | P65: =AVERAGE(D65:O65) -> 7.631666667
B67: 2014 | C67: Download Speed | D67: 10.45 | E67: 13.91 | F67: 11.09 | G67: 8.42 | H67: 8.17 | I67: 6.45 | J67: 8.32 | K67: 10.06 | L67: 11.03 | M67: 8.9 | N67: 9.02 | P67: =AVERAGE(D67:O67) -> 9.62
B69: TLAJOMULCO DE ZUNIGA Broadband Speed
D71: Jan | E71: Feb | F71: Mar | G71: Apr | H71: May | I71: Jun | J71: Jul | K71: Aug | L71: Sep | M71: Oct | N71: Nov | O71: Dec | P71: Average
B72: 2010 | C72: Download Speed | O72: 0 | P72: =AVERAGE(D72:O72) -> 0
B74: 2011 | C74: Download Speed | M74: 0 | N74: 0 | O74: 0 | P74: =AVERAGE(D74:O74) -> 0
B76: 2012 | C76: Download Speed | M76: 6.84 | N76: 6.79 | O76: 7.07 | P76: =AVERAGE(D76:O76) -> 6.9
B78: 2013 | C78: Download Speed | D78: 7.83 | E78: 7.53 | F78: 7.14 | G78: 7.34 | H78: 7.86 | I78: 8.41 | J78: 9.94 | K78: 10.89 | L78: 9.09 | M78: 8.5 | N78: 9.29 | O78: 8.86 | P78: =AVERAGE(D78:O78) -> 8.556666667
B80: 2014 | C80: Download Speed | D80: 8.24 | E80: 9.65 | F80: 8.22 | G80: 7.91 | H80: 8.79 | I80: 8.63 | J80: 9.28 | K80: 8.83 | L80: 10.66 | M80: 9.3 | N80: 9.03 | P80: =AVERAGE(D80:O80) -> 8.958181818
B82: Tlaquepaque Broadband Speed
D84: Jan | E84: Feb | F84: Mar | G84: Apr | H84: May | I84: Jun | J84: Jul | K84: Aug | L84: Sep | M84: Oct | N84: Nov | O84: Dec | P84: Average
B85: 2010 | C85: Download Speed | I85: 1.29 | J85: 1.48 | K85: 1.17 | L85: 1.31 | M85: 2.41 | N85: 2.62 | O85: 1.96 | P85: =AVERAGE(D85:O85) -> 1.748571429
B87: 2011 | C87: Download Speed | D87: 2.22 | E87: 2.17 | F87: 2.58 | G87: 3.02 | H87: 8.08 | I87: 4.29 | J87: 2.96 | K87: 4.31 | L87: 2.9 | M87: 3.45 | N87: 2.82 | O87: 2.74 | P87: =AVERAGE(D87:O87) -> 3.461666667
B89: 2012 | C89: Download Speed | D89: 3.51 | E89: 2.88 | F89: 3.19 | G89: 3.66 | H89: 3.84 | I89: 4.06 | J89: 5.32 | K89: 5.07 | L89: 6.17 | M89: 8.78 | N89: 7.37 | O89: 7.07 | P89: =AVERAGE(D89:O89) -> 5.076666667
B91: 2013 | C91: Download Speed | D91: 11.01 | E91: 8.01 | F91: 7.52 | G91: 7.06 | H91: 9.2 | I91: 6.92 | J91: 10.62 | K91: 10.41 | L91: 10.24 | M91: 10.78 | N91: 11.86 | O91: 9.77 | P91: =AVERAGE(D91:O91) -> 9.45
B93: 2014 | C93: Download Speed | D93: 10.84 | E93: 12.02 | F93: 8.52 | G93: 8.24 | H93: 13.09 | I93: 10.04 | J93: 13.3 | K93: 11.27 | L93: 12.78 | M93: 12.41 | N93: 12.1 | P93: =AVERAGE(D93:O93) -> 11.32818182
B95: El Salto Broadband Speed
D97: Jan | E97: Feb | F97: Mar | G97: Apr | H97: May | I97: Jun | J97: Jul | K97: Aug | L97: Sep | M97: Oct | N97: Nov | O97: Dec | P97: Average
B98: 2010 | C98: Download Speed | O98: 0 | P98: =AVERAGE(D98:O98) -> 0
B100: 2011 | C100: Download Speed | O100: 0 | P100: =AVERAGE(D100:O100) -> 0
B102: 2012 | C102: Download Speed | O102: 0 | P102: =AVERAGE(D102:O102) -> 0
B104: 2013 | C104: Download Speed | G104: 4.17 | H104: 3.42 | I104: 4.24 | J104: 5.47 | K104: 6.84 | L104: 5.31 | M104: 3.55 | N104: 3.64 | O104: 4.17 | P104: =AVERAGE(D104:O104) -> 4.534444444
B106: 2014 | C106: Download Speed | D106: 3.58 | E106: 3.98 | F106: 4.87 | G106: 3.8 | H106: 3.44 | I106: 3.5 | J106: 5.82 | K106: 14.08 | L106: 5.59 | M106: 5.39 | N106: 5.24 | P106: =AVERAGE(D106:O106) -> 5.39
B108: ZAPOPAN - Broadband Speed
D110: Jan | E110: Feb | F110: Mar | G110: Apr | H110: May | I110: Jun | J110: Jul | K110: Aug | L110: Sep | M110: Oct | N110: Nov | O110: Dec | P110: Average
B111: 2010 | C111: Download Speed | I111: 2.17 | J111: 2.29 | K111: 2.27 | L111: 2.74 | M111: 3.31 | N111: 3.46 | O111: 3.46 | P111: =AVERAGE(D111:O111) -> 2.814285714
B113: 2011 | C113: Download Speed | D113: 3.48 | E113: 3.48 | F113: 3.38 | G113: 3.59 | H113: 3.97 | I113: 4.54 | J113: 6.19 | K113: 6.83 | L113: 4.31 | M113: 5.23 | N113: 4.95 | O113: 5.48 | P113: =AVERAGE(D113:O113) -> 4.619166667
B115: 2012 | C115: Download Speed | D115: 5.49 | E115: 5.27 | F115: 5.75 | G115: 6.16 | H115: 5.8 | I115: 5.95 | J115: 5.77 | K115: 6.39 | L115: 7.22 | M115: 7.6 | N115: 8.42 | O115: 8.98 | P115: 6.566666667
B117: 2013 | C117: Download Speed | D117: 9.92 | E117: 10.4 | F117: 10.37 | G117: 9.53 | H117: 13.7 | I117: 13.98 | J117: 15.93 | K117: 15.18 | L117: 15.08 | M117: 17.43 | N117: 19.21 | O117: 16.45 | P117: 13.93166667
B119: 2014 | C119: Download Speed | D119: 15.5 | E119: 14.74 | F119: 16.97 | G119: 15.36 | H119: 17.83 | I119: 15.43 | J119: 15.29 | K119: 16.47 | L119: 16.94 | M119: 18.14 | P119: 16.267
A123: DIMENSION | B123: CODE | C123: INDICATOR | D123: NOTES | E123: BASIC | F123: EXTENDED | G123: MISSING | H123: 2000 | I123: 2001 | J123: 2002 | K123: 2003 | L123: 2004 | M123: 2005 | N123: 2006 | O123: 2007 | P123: 2008 | Q123: 2009 | R123: 2010 | S123: 2011 | T123: 2012 | U123: 2013 | V123: 2014 | W123: Standardization | X123: MIN | Y123: MAX | Z123: TARGET | AA123: NOTES/SOURCES
B124: ID_ICT_3 | C124: 3. Average broadband speed | D124: Mbps | F124: X | R124: =AVERAGE(P111,P98,P85,P72,P59,P46) -> 1.638571429 | S124: =AVERAGE(P113,P100,P87,P74,P61,P48) -> 2.714305556 | T124: =AVERAGE(P115,P102,P89,P76,P63,P50,) -> 4.375119048 | U124: =AVERAGE(P117,P104,P91,P78,P65,P52) -> 9.41212963 | V124: =AVERAGE(P119,P106,P93,P80,P67,P54) -> 11.32089394 | W124: 2.1 | X124: 0.6 | Y124: Yearly Global average | AA124: http://explorer.netindex.com/maps
C125: Global Average Yearly Speed | P125: =E31 -> 4.539166667 | Q125: 6.078333333 | R125: 7.756666667 | S125: 8.995 | T125: 11.13833333 | U125: 14.39909091 | V125: =P24 -> 18.718 | AA125: NOTE: There is no data available for Ixtlahuacan and Juanacatlan
C126: Standardized | R126: =100*((R124-$X$124)/(R125-$X$124)) -> 14.51194358 | S126: =100*((S124-$X$124)/(S125-$X$124)) -> 25.18529548 | T126: 35.82273333 | U126: 63.86021867 | V126: 59.17261254
C132: EL SALTO
C133: GUADALAJARA
C134: IXTLAHUACÁN DE LOS MEMBRILLOS
C135: JUANACATLÁN
C136: TLAJOMULCO DE ZÚÑIGA
C137: TLAQUEPAQUE
C138: TONALÁ
C139: ZAPOPAN

Sheet Affordability Transp.
D2: AFFORDABILITY OF TRANSPORT
A4: DIMENSION | B4: SUB-DIMENSION | C4: CODE | D4: INDICATOR | E4: NOTES | F4: BASIC | G4: EXTENDED | H4: MISSING | I4: 2000 | J4: 2001 | K4: 2002 | L4: 2003 | M4: 2004 | N4: 2005 | O4: 2006 | P4: 2007 | Q4: 2008 | R4: 2009 | S4: 2010 | T4: 2011 | U4: 2012 | V4: 2013 | W4: Standardization | X4: MIN | Y4: MAX | Z4: TARGET | AA4: LEVEL | AB4: SOURCES
B5: demographic | D5: 1. Population | I5: 1001020.9 | J5: 1037318.6 | K5: 1070944.1 | L5: 1101897.4 | M5: 1130178.5 | N5: 1155790 | O5: 1178724.1 | P5: 1198988.6 | Q5: 1216580.9 | R5: 1231501 | S5: 1243756 | T5: 1253324.6 | U5: 1260228.1 | V5: 1264459.4 | AB5: INEGI Website and GUO Projected Calculations
D6: 2. Homes/Households | I6: 234751.26 | J6: 244093.84 | K6: 253055.74 | L6: 261636.96 | M6: 269837.5 | N6: 277657.36 | O6: 285096.54 | P6: 292155.04 | Q6: 298832.86 | R6: 305130 | S6: 311046.46 | T6: 316582.24 | U6: 321737.34 | V6: 326511.76 | AB6: INEGI and GUO ProjectedCalculations
D7: 3. Urban Footprint area | V7: 168.78
D8: 4. Population in households | I8: 987284 | N8: 1107515 | S8: 1220612
D10: Average Number of Trips | U10: 60
D11: Average Cost Per trip(Pesos) | E11: Pesos | U11: =U12*U13 -> 7.8 | AA11: Municipal - Zapopan | AB11: Provided by Regina
D12: Cost Per ticket (Pesos) | E12: Pesos | U12: 6 | AA12: Municipal - Zapopan | AB12: Provided by Regina
D13: Average No. of tickets per Trip | U13: 1.3 | AA13: Municipal - Zapopan | AB13: Provided by Regina
D14: Household income (Lowest Quintile) | E14: Pesos | Q14: =O30 -> 13464 | S14: =S30 -> 8838.5 | U14: =W30 -> 9009.5 | AA14: State - Jalisco | AB14: INEGI. National Household Income and Expenditure Survey 2012 (ENlGH).Module socioeconomic conditions.Basic tables
D15: Average Size of household | I15: 4.21 | L15: 4.2 | N15: 3.99 | Q15: 4 | S15: 3.92 | U15: 3.9
D16: Income per Capita (Lowest Quintile) | E16: Pesos | Q16: =Q14/Q15 -> 3366 | S16: 2254.719388 | U16: =U14/U15 -> 2310.128205
C18: ID_UM_5 | D18: 5. Affordability of Transport (reversed) | E18: % | G18: X | H18: X | U18: =100*((U10*U11)/U16) -> 20.25861591 | W18: 2.2 | X18: 4 | Y18: 26
U19: =(U18-$X$18)/($Y$18-$X$18) -> 0.7390279957
D20: Standardized | U20: =100*(1-U19) -> 26.09720043
J24: HOUSEHOLD INCOME AND EXPENDITURE BY QUARTER DECILES HOMES AND GINI COEFFICIENT 1 | V24: TABLE 9.14
J25: JALISCO 2
J26: (2012 Constant Prices)
J27: DECILES HOMES 3 | L27: 2008 | P27: 2010 | T27: 2012
L28: HOMES | M28: INCOME | N28: AVERAGE | P28: HOMES | Q28: INCOME | R28: AVERAGE | T28: HOMES | U28: INCOME | V28: AVERAGE
J29: CURRENT INCOME | L29: 1706058 | M29: 89263727279 | N29: 52 322 | P29: 1877327 | Q29: 80833762320 | R29: 43058 | T29: 1972304 | U29: 81857120161 | V29: 41503
J30: I | L30: 170605 | M30: 1685727266 | N30: 9881 | O30: =AVERAGE(N30:N31) -> 13464 | P30: 187732 | Q30: 1080024509 | R30: 5753 | S30: =AVERAGE(R30,R31) -> 8838.5 | T30: 197 230 | U30: 1143066826 | V30: 5796 | W30: =AVERAGE(V30:V31) -> 9009.5
J31: II | L31: 170605 | M31: 2908252652 | N31: 17047 | P31: 187732 | Q31: 2238602924 | R31: 11924 | T31: 197 230 | U31: 2410734918 | V31: 12223
J32: III | L32: 170605 | M32: 3801132425 | N32: 22 280 | P32: 187732 | Q32: 3188979784 | R32: 16987 | T32: 197 230 | U32: 3341926780 | V32: 16944
J33: IV | L33: 170605 | M33: 4669814681 | N33: 27372 | P33: 187732 | Q33: 4127172241 | R33: 21984 | T33: 197 230 | U33: 4126303422 | V33: 20921
J34: V | L34: 170605 | M34: 5718669367 | N34: 33520 | P34: 187732 | Q34: 5215921076 | R34: 27784 | T34: 197 230 | U34: 5010253302 | V34: 25403
J35: VI | L35: 170605 | M35: 6951839510 | N35: 40748 | P35: 187732 | Q35: 6404007599 | R35: 34112 | T35: 197 230 | U35: 6286439289 | V35: 31874
J36: VII | L36: 170605 | M36: 8418915005 | N36: 49347 | P36: 187732 | Q36: 7949596227 | R36: 42345 | T36: 197 230 | U36: 7719523158 | V36: 39140
J37: VIII | L37: 170605 | M37: 10406452225 | N37: 60997 | P37: 187732 | Q37: 10098247187 | R37: 53791 | T37: 197 230 | U37: 9792939329 | V37: 49652
J38: IX | L38: 170605 | M38: 14365452640 | N38: 84203 | P38: 187732 | Q38: 13500581847 | R38: 71914 | T38: 197 230 | U38: 13695625488 | V38: 69440
J39: X | L39: 170613 | M39: 30337471509 | N39: 177815 | P39: 187739 | Q39: 27030628928 | R39: 143980 | T39: 197234 | U39: 28330307647 | V39: 143638
J40: GINI COEFFICIENT 1 | N40: 0.43 | R40: 0.445 | V40: 0.45
J42: 1 | K42: The Gini coefficient is a measure of income concentration: values ​​between zero and one. When the value is close to one, indicates that there is greater concentration of income, however, when the value of the Gini coefficient approaches zero, income concentration is lower.
J43: 2 | K43: The homes of the entity are sorted into deciles according to their current income quarterly.
J44: 3 | K44: Households using zero current income, are classified in the first decile.
J45: NOTE: Figures expanded according to CONAPO population projections updated in April 2013.
J46: Data are expressed in thousands of pesos, which is why you can find a difference in the totals by rounding issues.
J47: SOURCE: INEGISocioeconomic Conditions Module ENIGH..Corresponding years.
J48: INEGI. National Household Income and Expenditure Survey 2012 (ENlGH).Module socioeconomic conditions.Basic tables

Sheet Traffic fatalities
C2: 2000 | D2: 2001 | E2: 2002 | F2: 2003 | G2: 2004 | H2: 2005 | I2: 2006 | J2: 2007 | K2: 2008 | L2: 2009 | M2: 2010 | N2: 2011 | O2: 2012 | P2: 2013 | Q2: Standardization | R2: MIN | S2: MAX | T2: TARGET
A3: 4. Traffic Fatalities (reversed) | Q3: 2.2 | R3: 1 | S3: 31 | V3: SINAIS- IMCO Data Base
A4: Traffic Fatalities | B4: # / 100,000 people | K4: 16.6868771 | L4: 16.44302705 | M4: 15.81476343 | N4: 14.91801708 | O4: 16.10068527
A5: Standardized | K5: =100*(1-((K4-$R$3)/($S$3-$R$3))) -> 47.71040968 | L5: =100*(1-((L4-$R$3)/($S$3-$R$3))) -> 48.52324316 | M5: 50.61745524 | N5: 53.60660973 | O5: 49.66438245

Sheet Street Connectivity
B1: Street Connectivity Index
B2: Source: | C2: UN-Habitat - GUO / gvSIG
B3: Computation based in own methodology | J3: Present values
B4: Contact UN-Habitat: | C4: Regina Orvañanos | J4: min | K4: 6
B5: Contact gvSIG | C5: Manuel Madrid | J5: max | K5: 36
J6: target | L6: 20 | M6: 100
A7: Region | B7: Country | C7: City | D7: Delimitation | E7: Year of Measurement | F7: Land Allocated to Street | G7: Street Density | H7: Intersection Density | K7: LAS | L7: SD | M7: ID | N7: index Average
A8: LAC | B8: Colombia | C8: Neiva | D8: Urban footprint | E8: 2014 | F8: 22.5 | G8: 24.75 | H8: 243.75 | K8: =100*(F8-$K$4)/($K$5-$K$4) -> 55 | L8: =100*(1-ABS(G8-$L$6)/$L$6) -> 76.25 | M8: =100*(1-ABS(H8-$M$6)/$M$6) -> -43.75 | N8: =+(1/3)*(M8+L8+K8) -> 29.16666667
A9: LAC | B9: Colombia | C9: Monteria | D9: Urban footprint | E9: 2014 | F9: 16.2 | G9: 21.68 | H9: 210.91 | K9: 34 | L9: 91.6 | M9: -10.91 | N9: 38.23
A10: LAC | B10: Colombia | C10: Pasto | D10: Urban footprint | E10: 2014 | F10: 20.96 | G10: 22.39 | H10: 207.06 | K10: 49.86666667 | L10: 88.05 | M10: -7.06 | N10: 43.61888889
A11: LAC | B11: Colombia | C11: Cartagena | D11: Urban footprint | E11: 2014 | F11: 14.61 | G11: 17.41 | H11: 171.94 | K11: 28.7 | L11: 87.05 | M11: 28.06 | N11: 47.93666667
A12: LAC | B12: Colombia | C12: Ibagué | D12: Urban footprint | E12: 2014 | F12: 16.14 | G12: 17.3 | H12: 160.57 | K12: 33.8 | L12: 86.5 | M12: 39.43 | N12: 53.24333333
A13: LAC | B13: Colombia | C13: Armenia | D13: Urban footprint | E13: 2014 | F13: 21.65 | G13: 16.81 | H13: 171.67 | K13: 52.16666667 | L13: 84.05 | M13: 28.33 | N13: 54.84888889
A14: LAC | B14: Mexico | C14: Ciudad Obregon | D14: Urban footprint, Cajeme | E14: 2014 | F14: 23.34 | G14: 13.63 | H14: 80.07 | K14: 57.8 | L14: 68.15 | M14: 80.07 | N14: 68.67333333
A15: LAC | B15: Mexico | C15: Corregidora | D15: Municipal, urban footprint | E15: 2014 | F15: 24.9 | G15: 18.45 | H15: 120.49 | K15: 63 | L15: 92.25 | M15: 79.51 | N15: 78.25333333
A16: LAC | B16: Colombia | C16: Cali | D16: Urban footprint | E16: 2014 | F16: 19.2 | G16: 18.86 | H16: 173.6 | K16: 44 | L16: 94.3 | M16: 26.4 | N16: 54.9
A17: LAC | B17: Saudi Arabia | C17: Dammam | D17: Urban footprint | E17: 2014 | F17: 23.97 | G17: 13.38 | H17: 93.44 | K17: 59.9 | L17: 66.9 | M17: 93.44 | N17: 73.41333333
A18: LAC | B18: Mexico | C18: Guadalajara | D18: Metropolitan Area | E18: 2014 | F18: 20.93 | G18: 15.26 | H18: 110.87 | K18: 49.76666667 | L18: 76.3 | M18: 89.13 | N18: 71.73222222
A19: LAC | B19: Colombia | C19: Bogota | D19: Urban footprint | E19: 2014 | F19: 18.28 | G19: 15.93 | H19: 153.23 | K19: 40.93333333 | L19: 79.65 | M19: 46.77 | N19: 55.78444444
A20: LAC | B20: Colombia | C20: Sincelejo | D20: Urban footprint | E20: 2014 | F20: 19.08 | G20: 19.63 | H20: 174.17 | K20: 43.6 | L20: 98.15 | M20: 25.83 | N20: 55.86
A21: LAC | B21: Colombia | C21: Tunja | D21: Urban footprint | E21: 2014 | F21: 19.46 | G21: 18.94 | H21: 165.62 | K21: 44.86666667 | L21: 94.7 | M21: 34.38 | N21: 57.98222222
A22: LAC | B22: Colombia | C22: Santa Marta | D22: Urban footprint | E22: 2014 | F22: 20.02 | G22: 18.57 | H22: 160.94 | K22: 46.73333333 | L22: 92.85 | M22: 39.06 | N22: 59.54777778
A23: LAC | B23: Colombia | C23: Cúcuta | D23: Urban footprint | E23: 2014 | F23: 17.16 | G23: 19.59 | H23: 152.5 | K23: 37.2 | L23: 97.95 | M23: 47.5 | N23: 60.88333333
A24: LAC | B24: Colombia | C24: Bucaramanga | D24: Urban footprint | E24: 2014 | F24: 18.46 | G24: 19.32 | H24: 155.11 | K24: 41.53333333 | L24: 96.6 | M24: 44.89 | N24: 61.00777778
A25: LAC | B25: Mexico | C25: Querétaro | D25: Metropolitan Area | E25: 2014 | F25: 24.25 | G25: 16.98 | H25: 121.42 | K25: 60.83333333 | L25: 84.9 | M25: 78.58 | N25: 74.77111111
A26: LAC | B26: Colombia | C26: Pereira | D26: Urban footprint | E26: 2014 | F26: 20.9 | G26: 19.71 | H26: 163.75 | K26: 49.66666667 | L26: 98.55 | M26: 36.25 | N26: 61.48888889
A27: LAC | B27: Colombia | C27: Barranquilla | D27: Urban footprint | E27: 2014 | F27: 20.34 | G27: 19.96 | H27: 156.1 | K27: 47.8 | L27: 99.8 | M27: 43.9 | N27: 63.83333333
A28: LAC | B28: Colombia | C28: Villavicencio | D28: Urban footprint | E28: 2014 | F28: 18.87 | G28: 16.07 | H28: 120 | K28: 42.9 | L28: 80.35 | M28: 80 | N28: 67.75
A29: LAC | B29: Colombia | C29: Valledupar | D29: Urban footprint | E29: 2014 | F29: 25.89 | G29: 19.45 | H29: 131.61 | K29: 66.3 | L29: 97.25 | M29: 68.39 | N29: 77.31333333
A30: MENA | B30: Colombia | C30: Medellin | D30: Urban footprint | E30: 2014 | F30: 22.07 | G30: 18.09 | H30: 105 | K30: 53.56666667 | L30: 90.45 | M30: 95 | N30: 79.67222222
A31: LAC | B31: Mexico | C31: Zapopan | D31: Municipal, urban footprint | E31: 2014 | F31: 23.21 | G31: 17.08 | H31: 116.3 | K31: 57.36666667 | L31: 85.4 | M31: 83.7 | N31: 75.48888889
E34: Average | F34: =AVERAGE(F8:F31) -> 20.51625 | G34: =AVERAGE(G8:G31) -> 18.30166667 | H34: =AVERAGE(H8:H31) -> 150.8383333 | J34: Ave | K34: =AVERAGE(K8:K31) -> 48.3875 | L34: =AVERAGE(L8:L31) -> 87.83333333 | M34: =AVERAGE(M8:M31) -> 46.95416667 | N34: =+(1/3)*(M34+L34+K34) -> 61.05833333

Sheet QOL
B2: NOTE:
B3: CPI Calculated Using Latest Years of Informatiion
C4: Sub Index values
C5: Missing data
C6: Stale level Data (JALISCO)
C7: Country Level Data (MEXICO)
C9: QUALITY OF LIFE INDEX
H11: BASIC | I11: EXTENDED
C12: QUALITY OF LIFE INDEX | H12: =GEOMEAN(H18,H33,H52,H62) -> 54.71299886 | I12: =GEOMEAN(I18,I33,I52,I62) -> 48.27764946
A13: DIMENSION | B13: CODE | C13: INDICATOR | D13: NOTES | E13: BASIC | F13: EXTENDED | G13: MISSING | J13: Year | K13: 2000 | L13: 2001 | M13: 2002 | N13: 2003 | O13: 2004 | P13: 2005 | Q13: 2006 | R13: 2007 | S13: 2008 | T13: 2009 | U13: 2010 | V13: 2011 | W13: 2012 | X13: 2013 | Y13: 2014 | Z13: Standardization | AA13: MIN | AB13: MAX | AC13: TARGET | AD13: LEVEL | AE13: SOURCES | AG13: NOTES
C14: 1. Population | K14: 3699136 | L14: 3783094.76 | M14: 3864745.84 | N14: 3944089.24 | O14: 4021124.96 | P14: 4095853 | Q14: 4168273.36 | R14: 4238386.04 | S14: 4306191.04 | T14: 4371688.36 | U14: 4434878 | V14: 4495759.96 | W14: 4554334.24 | X14: 4610600.84 | Y14: 4664559.76 | AD14: Municipal - Zapopan | AE14: INEGI and GUO Projected Calculations
C15: 2. Homes/Households | AE15: INEGI and GUO Projected Calculations
C16: 3. Urban Footprint area | Y16: 675.99
C17: 4. Population in households
A18: Quality of Life Index (QOL) | C18: 1. Health Sub Index (H) | H18: =AVERAGE(W20,V24) -> 68.04424281 | I18: =AVERAGE(W20,V24,X27,W31) -> 68.1623499
B19: QoL_H_1 | C19: 1. Life Expectancy at Birth | D19: years | E19: X | J19: 2012 | K19: 74.8 | L19: - | M19: - | N19: - | O19: - | P19: 75.93 | Q19: 76.18 | R19: 76.41 | S19: 76.64 | T19: 76.86 | U19: 77.07 | V19: 77.28 | W19: 77.28 | Z19: 2.1 | AA19: 54 | AB19: 83.48 | AD19: STATE - Jalisco | AE19: SEPLAN
C20: Standardised | K20: =100*((K19-$AA$19)/($AB$19-$AA$19)) -> 70.55630936 | L20: - | M20: - | N20: - | O20: - | P20: =100*((P19-$AA$19)/($AB$19-$AA$19)) -> 74.38941655 | Q20: 75.23744912 | R20: 76.01763908 | S20: 76.79782904 | T20: 77.54409769 | U20: 78.25644505 | V20: 78.9687924 | W20: 78.9687924
B22: QoL_H_2 | C22: 2. Under-Five Mortality Rate (reversed) | D22: # / 1,000 live births | E22: X | J22: 2011 | K22: 20.7 | L22: 19.9 | M22: 19 | N22: 18.3 | O22: 17.6 | P22: 17 | Q22: 16.4 | R22: 15.8 | S22: 15.3 | T22: 14.9 | U22: 14.4 | V22: 14.6 | Z22: 2.2 (ln) | AA22: 0.79 | AB22: 5.2 | AD22: STATE - Jalisco | AE22: ONU-Secretaria de salud | AG22: http://www.objetivosdedesarrollodelmilenio.org.mx/cgi-win/odm.exe/INDODM004000100020,24,0,000,False,False,False,False,False,False,False,0,0
K23: =(LN(K22)-$AA$22)/($AB$22-$AA$22) -> 0.5079668255 | L23: 0.4990294176 | M23: 0.4885349159 | N23: 0.4800229161 | O23: 0.4711788894 | P23: 0.4633136835 | Q23: 0.4551658356 | R23: 0.4467142721 | S23: 0.4394224101 | T23: 0.433415241 | U23: 0.4256753303 | V23: 0.4288030677
C24: Standardised | K24: =100*(1-K23) -> 49.20331745 | L24: =100*(1-L23) -> 50.09705824 | M24: 51.14650841 | N24: 51.99770839 | O24: 52.88211106 | P24: 53.66863165 | Q24: 54.48341644 | R24: 55.32857279 | S24: 56.05775899 | T24: 56.6584759 | U24: 57.43246697 | V24: 57.11969323
B26: QoL_H_3 | C26: 3. Vaccination Coverage | D26: % | F26: X | J26: 2013 | K26: 96.8 | L26: 88 | M26: 76.7 | N26: 86.4 | O26: 79.1 | P26: 79.8 | Q26: 68.6 | R26: 71.4 | S26: 80.6 | T26: 76.2 | U26: 80.1 | V26: 79.9 | W26: 85.4 | X26: 81.6 | Z26: 1.1 | AA26: 0 | AB26: 100 | AD26: STATE - Jalisco | AE26: ONU-Secretaria de salud | AG26: http://www.objetivosdedesarrollodelmilenio.org.mx/cgi-win/odm.exe/INDODM004000100020,24,0,000,False,False,False,False,False,False,False,0,0
C27: Standardised | K27: =K26 -> 96.8 | L27: 88 | M27: 76.7 | N27: 86.4 | O27: 79.1 | P27: 79.8 | Q27: 68.6 | R27: 71.4 | S27: 80.6 | T27: 76.2 | U27: 80.1 | V27: 79.9 | W27: 85.4 | X27: =X26 -> 81.6
B29: QoL_H_4 | C29: 4. Maternal Mortality (reversed) | D29: # / 100,000 live births | F29: X | J29: 2012 | K29: 56.4 | L29: 46.1 | M29: 33.1 | N29: 37.1 | O29: 43.8 | P29: 34.7 | Q29: 51.5 | R29: 30.7 | S29: 34.7 | T29: 54.1 | U29: 32.3 | V29: 23.4 | W29: 23.4 | Z29: 2.2 (ln) | AA29: 0 | AB29: 7 | AD29: STATE - Jalisco | AE29: ONU-Secretaria de salud | AG29: http://www.objetivosdedesarrollodelmilenio.org.mx/cgi-win/odm.exe/SHIODM005000100010,26,E
K30: =(LN(K29)-$AA$29)/($AB$29-$AA$29) -> 0.5760670226 | L30: 0.5472589929 | M30: 0.4999333261 | N30: 0.5162309957 | O30: 0.5399476882 | P30: 0.5066770981 | Q30: 0.5630831154 | R30: 0.4891803792 | S30: 0.5066770981 | T30: 0.5701191694 | U30: 0.4964381757 | V30: 0.4503908603 | W30: 0.4503908603
C31: Standardised | K31: =100*(1-K30) -> 42.39329774 | L31: 45.27410071 | M31: 50.00666739 | N31: 48.37690043 | O31: 46.00523118 | P31: 49.33229019 | Q31: 43.69168846 | R31: 51.08196208 | S31: 49.33229019 | T31: 42.98808306 | U31: 50.35618243 | V31: 54.96091397 | W31: =100*(1-W30) -> 54.96091397
C33: 2. Education Sub Index (E) | H33: =AVERAGE(U35,U40) -> 80.93350744 | I33: =AVERAGE(U35,U40,X43,X47,X49) -> 64.94952277
B34: QoL_E_1 | C34: 1. Literacy Rate | D34: % | E34: X | J34: 2010 | P34: ='Literacy rate'!C15 -> 96.82261691 | U34: ='Literacy rate'!D15 -> 97.37721896 | Z34: 2.1 | AA34: =0.15*100 -> 15 | AB34: =0.999*100 -> 99.9 | AD34: Municipal - Zapopan | AE34: SIEG-INEGI
C35: Standardised | P35: =P34 -> 96.82261691 | U35: =U34 -> 97.37721896
B37: QoL_E_2 | C37: 2. Mean Years of Schooling | D37: years | E37: X | U37: ='Mean Years of Schooling'!H17 -> 9.028571429 | Z37: 3 | AC37: 14 | AD37: Municipal - Zapopan | AE37: ENOE
U38: =ABS((U37-$AC$37)/$AC$37) -> 0.3551020408
U39: =100*(1-U38) -> 64.48979592
C40: Standardised | U40: =IF(U37>$AC$37,100,U39) -> 64.48979592
B42: QoL_E_3 | C42: 3. Under-Six Participation on First Stage Development Programs | D42: % | F42: X | J42: 2013 | Q42: 69.1 | R42: 72.6 | S42: 73.1 | T42: 71 | U42: 70.5 | V42: 70.3 | W42: 70.7 | X42: 70.5 | Z42: 1.1 | AA42: 0 | AB42: =1*100 -> 100 | AD42: STATE | AE42: Secretaría de Educación Pública
C43: Standardised | Q43: =Q42 -> 69.1 | R43: =R42 -> 72.6 | S43: 73.1 | T43: 71 | U43: 70.5 | V43: 70.3 | W43: 70.7 | X43: 70.5
B46: QoL_E_4 | C46: 4. Net enrollment rate in higher education | D46: % | F46: X | J46: 2013 | R46: =NERHE!C22 -> 40.19953202 | S46: =NERHE!D22 -> 40.4477966 | T46: =NERHE!E22 -> 40.99285947 | U46: =NERHE!F22 -> 26.1708 | V46: =NERHE!G22 -> 26.72196236 | W46: =NERHE!H22 -> 27.83124931 | X46: =NERHE!I22 -> 27.43107621 | Z46: 1.1 | AA46: 0 | AB46: =1*100 -> 100
C47: Standardised | R47: =R46 -> 40.19953202 | S47: =S46 -> 40.4477966 | T47: 40.99285947 | U47: 26.1708 | V47: 26.72196236 | W47: 27.83124931 | X47: 27.43107621 | AD47: Metropolitan Guadalajara | AE47: Secretaría de Educación Pública
B49: QoL_E_5 | C49: 5. Number of Top Universities | D49: # | F49: X | Z49: 2.1 | AA49: 0 | AB49: 4
C50: Standardised
C52: 3. Safety and Security Sub Index (SS) | H52: =AVERAGE(U55) -> 42.08334457 | I52: =AVERAGE(U55,U59) -> 38.91007748
B53: QoL_SS_1 | C53: Homicides per year | E53: X | J53: 2010 | S53: ='Homicide and theft'!S35 -> 529 | T53: ='Homicide and theft'!T35 -> 592 | U53: ='Homicide and theft'!U35 -> 909 | Z53: 2.2 (ln) | AA53: 0 | AB53: 7.41 | AD53: Metropolitan Guadalajara | AE53: INEGI
C54: 1. Homicide rate (reversed) | D54: # / 100,000 people | S54: ='Homicide and theft'!S36 -> 43.48251727 | T54: ='Homicide and theft'!T36 -> 48.07141854 | U54: ='Homicide and theft'!U36 -> 73.08507456
C55: Standardised | S55: ='Homicide and theft'!S37 -> 49.09097226 | T55: ='Homicide and theft'!T37 -> 47.73700687 | U55: ='Homicide and theft'!U37 -> 42.08334457
B57: QoL_SS_2 | C57: Theft offenses recorded in the MP of common law | F57: X | J57: 2010 | S57: ='Homicide and theft'!S39 -> 15433 | T57: ='Homicide and theft'!T39 -> 14911 | U57: ='Homicide and theft'!U39 -> 22123 | Z57: 2.2 (fourth root) | AA57: 2.24 | AB57: 8.86 | AD57: Metropolitan Guadalajara | AE57: INEGI
C58: 2. Theft rate (reversed) | D58: # / 100,000 people | S58: ='Homicide and theft'!S40 -> 1268.555178 | T58: ='Homicide and theft'!T40 -> 1210.798854 | U58: ='Homicide and theft'!U40 -> 1778.725088
C59: Standardised | S59: ='Homicide and theft'!S41 -> 43.68610655 | T59: ='Homicide and theft'!T41 -> 44.73022967 | U59: ='Homicide and theft'!U41 -> 35.73681039
C62: 4. Public Space (PS) | H62: =AVERAGE(Y66) -> 38.66625246 | I62: =AVERAGE(Y66,Y71) -> 31.53565485
B63: QoL_PS_1 | C63: 1. Accessibility to Open Public Area | D63: % | E63: X | J63: 2013 | Y63: =Y65/Y64*100 -> 38.66625246 | Z63: 1.1 | AB63: 100
C64: Urban Area | Y64: =Y16 -> 675.99
C65: Public Space (with 300m buffer) | Y65: ='Public Space'!E3 -> 261.38
C66: Standardized | Y66: =Y63 -> 38.66625246
B68: QoL_PS_2 | C68: Green Area (m3) | D68: m2 | J68: 2013 | Y68: ='Public Space'!F3 -> 17075827.19
C69: 2. Green area per capita | D69: m2 / inhabitant | F69: X | Y69: =Y68/Y14 -> 3.660758586 | Z69: 3 | AC69: 15
Y70: =ABS((Y69-$AC$69)/$AC$69) -> 0.7559494276
C71: Standardised | Y71: =100*(1-Y70) -> 24.40505724

Sheet Literacy rate
C1: Poblacion | E1: Analfabeta | G1: Literacy | K1: source
C2: 2005 | D2: 2010 | E2: 2005 | F2: 2010 | G2: 2005 | H2: 2010 | K2: SIEG-INEGI IIEG Jalisco
A3: Poblacion de mas de 15 años | B3: Guadalajara | C3: 1128790 | D3: 1111368 | E3: 28913 | F3: 23365 | G3: =C3-E3 -> 1099877 | H3: =D3-F3 -> 1088003
B4: El Salto | C4: 68605 | D4: 89709 | E4: 4199 | F4: 3829 | G4: =C4-E4 -> 64406 | H4: 85880
B5: Ixtlahuacan | C5: 15335 | D5: 27063 | E5: 909 | F5: 932 | G5: 14426 | H5: 26131
B6: Juanacatlan | C6: 7875 | D6: 9148 | E6: 519 | F6: 419 | G6: 7356 | H6: 8729
B7: El Salto | C7: 68605 | D7: 89709 | E7: 4199 | F7: 3829 | G7: 64406 | H7: 85880
B8: Tlajomulco | C8: 125733 | D8: 257524 | E8: 6120 | F8: 6573 | G8: 119613 | H8: 250951
B9: Tlaquepaque | C9: 360720 | D9: 412675 | E9: 15701 | F9: 14076 | G9: 345019 | H9: 398599
B10: Tonala | C10: 255815 | D10: 318738 | E10: 5262 | F10: 10710 | G10: 250553 | H10: 308028
B11: Zapopan | C11: 769223 | D11: 883990 | E11: 23167 | F11: 20194 | G11: 746056 | H11: 863796
B12: Total | C12: 2800701 | D12: 3199924 | E12: 88989 | F12: 83927 | G12: =SUM(G3:G11) -> 2711712 | H12: 3115997
C14: 2005 | D14: 2010
B15: Literacy rate | C15: =100*(G12/C12) -> 96.82261691 | D15: =100*(H12/D12) -> 97.37721896
B16: standardized | C16: =100*((C15-15)/(99.9-15)) -> 96.37528493 | D16: =100*((D15-15)/(99.9-15)) -> 97.02852645

Sheet Mean Years of Schooling
A1: Área Geográfica | C1: Education and Culture
C2: Major educational and cultural characteristics of the population
C3: Major educational and cultural characteristics of the population
C4: 2010
C5: Caract educativas y cult
A6: Clave | B6: Nombre | C6: Population aged 6 and over by literacy condition , and sex | D6: Población de 5 y más años por condición de asistencia escolar y sexo | E6: Población de 5 y más años por nivel de escolaridad y sexo | F6: Population aged 18 and over with professional | G6: Population aged 18 and over with graduate | H6: Average level of schooling of the population 15 or older | I6: Population aged 5 and over by Indigenous status talks
A7: 14 | B7: Jalisco | C7: 6426598 | D7: 6569065 | E7: 6569065 | F7: 731038 | G7: 65256 | H7: 8.8 | I7: 6569065
A8: 14039 | B8: Guadalajara | C8: 1334690 | D8: 1357921 | E8: 1357921 | F8: 225732 | G8: 19141 | H8: 10 | I8: 1357921
A9: 14051 | B9: Juanacatlán | C9: 11597 | D9: 11905 | E9: 11905 | F9: 600 | G9: 39 | H9: 8.3 | I9: 11905
A10: 14070 | B10: El Salto | C10: 118446 | D10: 121709 | E10: 121709 | F10: 4810 | G10: 225 | H10: 8 | I10: 121709
A11: 14097 | B11: Tlajomulco de Zúñiga | C11: 341792 | D11: 352469 | E11: 352469 | F11: 30880 | G11: 2571 | H11: 9.1 | I11: 352469
A12: 14098 | B12: Tlaquepaque | C12: 527505 | D12: 540360 | E12: 540360 | F12: 52213 | G12: 3866 | H12: 8.9 | I12: 540360
A13: 14101 | B13: Tonalá | C13: 410975 | D13: 421256 | E13: 421256 | F13: 28443 | G13: 1589 | H13: 8.5 | I13: 421256
A14: 14120 | B14: Zapopan | C14: 1092861 | D14: 1115381 | E14: 1115381 | F14: 218861 | G14: 24317 | H14: 10.4 | I14: 1115381
H15: =AVERAGE(H8:H14) -> 9.028571429
G17: mean Years of schooling | H17: 9.028571429
A18: a/ | B18: Para el XII Censo General de Población y Vivienda 2000 se denominó "sin instrucción".
A19: b/ | B19: Comprende primaria completa e inconclusa.
A20: NS | B20: No significativo
A21: C | B21: Cifra no publicable, por el principio de confidencialidad de la Ley de Información Estadística y Geográfica.
A22: ND | B22: No disponible
A25: source | B25: http://sc.inegi.org.mx/sistemas/cobdem/resultados.jsp?w=99&Backidhecho=528&Backconstem=527&constembd=167
B26: INEGI

Sheet NERHE
B2: Guadalajara Age (18-23yrs) 2010
B4: Year (000's) | C4: 2000 | D4: 2001 | E4: 2002 | F4: 2003 | G4: 2004 | H4: 2005 | I4: 2006 | J4: 2007 | K4: 2008 | L4: 2009 | M4: 2010 | N4: 2011 | O4: 2012 | P4: 2013 | Q4: 2014
B5: Population (18-23) | C5: 418867.1522 | D5: 428374.12 | E5: 437619.7804 | F5: 446604.1335 | G5: 455327.1793 | H5: 463788.9177 | I5: 471989.3488 | J5: 479928.4726 | K5: 487606.2891 | L5: 495022.7982 | M5: 502178 | N5: 509071.8945 | O5: 515704.4816 | P5: 522075.7614 | Q5: 528185.7339
B6: Population (18-23 Male) | C6: 203814.6895 | D6: 208417.7106 | E6: 212932.817 | F6: 217360.0086 | G6: 221699.2856 | H6: 225950.6479 | I6: 230114.0955 | J6: 234189.6283 | K6: 238177.2465 | L6: 242076.9499 | M6: 245888.7387 | N6: 249612.6127 | O6: 253248.572 | P6: 256796.6166 | Q6: 260256.7465
B7: Population (18-23Female) | C7: 215052.4627 | D7: 219956.4094 | E7: 224686.9634 | F7: 229244.1249 | G7: 233627.8937 | H7: 237838.2698 | I7: 241875.2534 | J7: 245738.8443 | K7: 249429.0426 | L7: 252945.8483 | M7: 256289.2613 | N7: 259459.2818 | O7: 262455.9096 | P7: 265279.1448 | Q7: 267928.9874
B12: Calculating Net Enrollment in Higher Education
B14: School Year | C14: 2006-2007 | D14: 2007-2008 | E14: 2008-2009 | F14: 2009-2010 | G14: 2010-2011 | H14: 2011-2012 | I14: 2012-2013
C15: 2007 | D15: 2008 | E15: 2009 | F15: 2010 | G15: 2011 | H15: 2012 | I15: 2013
B16: Population (18-23) | C16: 479928.4726 | D16: 487606.2891 | E16: 495022.7982 | F16: 502178 | G16: 509071.8945 | H16: 515704.4816 | I16: 522075.7614
B17: Population (18-23 Male) | C17: 234189.6283 | D17: 238177.2465 | E17: 242076.9499 | F17: 245888.7387 | G17: 249612.6127 | H17: 253248.572 | I17: 256796.6166
B18: Population (18-23Female) | C18: 245738.8443 | D18: 249429.0426 | E18: 252945.8483 | F18: 256289.2613 | G18: 259459.2818 | H18: 262455.9096 | I18: 265279.1448
B19: Students | C19: 192929 | D19: 197226 | E19: 202924 | F19: 131424 | G19: 136034 | H19: 143527 | I19: 143211
B20: Students Men | C20: 98071 | D20: 100264 | E20: 101410 | F20: 66743 | G20: 69015 | H20: 72471 | I20: 72948
B21: Students Women | C21: 94858 | D21: 96962 | E21: 101514 | F21: 64681 | G21: 67019 | H21: 71056 | I21: 70263
B22: NERHE (%) | C22: =100*(C19/C16) -> 40.19953202 | D22: =100*(D19/D16) -> 40.4477966 | E22: 40.99285947 | F22: 26.1708 | G22: 26.72196236 | H22: 27.83124931 | I22: 27.43107621

Sheet Public Space
A2: CITY | C2: SURFACE AREA(km2) | D2: PUBLIC SPACE AREA(km2) | E2: PUBLIC SPACE+ BUFFER(km2) | F2: GREEN AREA(m2) | G2: ACCESS(%)
B3: Guadalajara | C3: 675.99 | D3: 13.68 | E3: 261.38 | F3: 17075827.19 | G3: 38.67

Sheet Homicide and theft
C1: 2000 | D1: 2001 | E1: 2002 | F1: 2003 | G1: 2004 | H1: 2005 | I1: 2006 | J1: 2007 | K1: 2008 | L1: 2009 | M1: 2010
A2: Homicides | B2: Guadalajara | K2: 193 | L2: 179 | M2: 274 | P2: Metropolitan- Guadalajara | Q2: INEGI
B3: Ixtlahuacán de los Membrillos | K3: 15 | L3: 16 | M3: 22 | P3: Metropolitan-Guadalajara | Q3: INEGI
B4: Juanacatlán | K4: 2 | L4: 1 | M4: 0
B5: El Salto | K5: 21 | L5: 21 | M5: 44
B6: Tlajomulco de Zúñiga | K6: 57 | L6: 80 | M6: 126
B7: Tlaquepaque | K7: 77 | L7: 80 | M7: 143
B8: Tonalá | K8: 38 | L8: 53 | M8: 76
B9: Zapopan | K9: 126 | L9: 162 | M9: 224
B10: Metropolitan area | K10: 529 | L10: 592 | M10: 909
C15: 2000 | D15: 2001 | E15: 2002 | F15: 2003 | G15: 2004 | H15: 2005 | I15: 2006 | J15: 2007 | K15: 2008 | L15: 2009 | M15: 2010
A16: Thefts | B16: Guadalajara | K16: 7822 | L16: 7107 | M16: 10227
B17: Ixtlahuacán de los Membrillos | K17: 62 | L17: 111 | M17: 204
B18: Juanacatlán | K18: 32 | L18: 25 | M18: 36
B19: El Salto | K19: 409 | L19: 452 | M19: 609
B20: Tlajomulco de Zúñiga | K20: 897 | L20: 1404 | M20: 2212
B21: Tlaquepaque | K21: 1655 | L21: 1572 | M21: 2271
B22: Tonalá | K22: 939 | L22: 800 | M22: 1133
B23: Zapopan | K23: 3617 | L23: 3440 | M23: 5431
B24: Metropolitan area | K24: 15433 | L24: 14911 | M24: 22123
A29: DIMENSION | B29: CODE | C29: INDICATOR | D29: NOTES | E29: BASIC | F29: EXTENDED | G29: MISSING | J29: Year | K29: 2000 | L29: 2001 | M29: 2002 | N29: 2003 | O29: 2004 | P29: 2005 | Q29: 2006 | R29: 2007 | S29: 2008 | T29: 2009 | U29: 2010 | V29: 2011 | W29: 2012 | X29: 2013 | Y29: 2014 | Z29: Standardization | AA29: MIN | AB29: MAX | AC29: TARGET | AD29: LEVEL | AE29: SOURCES | AG29: NOTES
C30: 1. Population | K30: 1001020.9 | L30: 1037318.6 | M30: 1070944.1 | N30: 1101897.4 | O30: 1130178.5 | P30: 1155790 | Q30: 1178724.1 | R30: 1198988.6 | S30: 1216580.9 | T30: 1231501 | U30: 1243756 | V30: 1253324.6 | W30: 1260228.1 | X30: 1264459.4 | AD30: Municipal - Zapopan | AE30: INEGI and GUO Projected Calculations
C31: 2. Homes/Households | K31: 234751.26 | L31: 244093.84 | M31: 253055.74 | N31: 261636.96 | O31: 269837.5 | P31: 277657.36 | Q31: 285096.54 | R31: 292155.04 | S31: 298832.86 | T31: 305130 | U31: 311046.46 | V31: 316582.24 | W31: 321737.34 | X31: 326511.76 | AE31: INEGI and GUO Projected Calculations
C32: 3. Urban Footprint area | X32: 168.78
C33: 4. Population in households | K33: 987284 | P33: 1107515 | U33: 1220612
C34: 3. Safety and Security Sub Index (SS)
B35: QoL_SS_1 | C35: Homicides per year | E35: X | J35: 2010 | S35: 529 | T35: 592 | U35: 909 | Z35: 2.2 (ln) | AA35: 0 | AB35: 7.41
C36: 1. Homicide rate (reversed) | D36: # / 100,000 people | S36: =100000*(S35/S30) -> 43.48251727 | T36: =100000*(T35/T30) -> 48.07141854 | U36: =100000*(U35/U30) -> 73.08507456
C37: Standardised | S37: =100*(1-(LN(S36)/7.41)) -> 49.09097226 | T37: =100*(1-(LN(T36)/7.41)) -> 47.73700687 | U37: =100*(1-(LN(U36)/7.41)) -> 42.08334457
B39: QoL_SS_2 | C39: Theft offenses recorded in the MP of common law | F39: X | J39: 2010 | S39: 15433 | T39: 14911 | U39: 22123 | Z39: 2.2 (fourth root) | AA39: 2.24 | AB39: 8.86
C40: 2. Theft rate (reversed) | D40: # / 100,000 people | S40: =100000*(S39/S30) -> 1268.555178 | T40: =100000*(T39/T30) -> 1210.798854 | U40: =100000*(U39/U30) -> 1778.725088
C41: Standardised | S41: =100*(1-((S40)^0.25-2.24)/(8.86-2.24)) -> 43.68610655 | T41: =100*(1-((T40)^0.25-2.24)/(8.86-2.24)) -> 44.73022967 | U41: =100*(1-((U40)^0.25-2.24)/(8.86-2.24)) -> 35.73681039

Sheet EQUITY
B1: NOTE:
B2: CPI Calculated Using Latest Years of Informatiion
C3: Sub Index values
C4: Missing data
C5: Stale level Data (JALISCO)
C6: Metropolitan Level Data (GUADALAJARA)
C7: EQUITY AND SOCIAL INCLUSION INDEX
H9: BASIC | I9: EXTENDED
C10: EQUITY AND SOCIAL INCLUSION INDEX | H10: =GEOMEAN(H16,H24,H33,H46) -> 63.36327217 | I10: =GEOMEAN(I16,I24,I33,I46) -> 59.62512013
A11: DIMENSION | B11: CODE | C11: INDICATOR | D11: NOTES | E11: BASIC | F11: EXTENDED | G11: MISSING | J11: year | K11: 2000 | L11: 2001 | M11: 2002 | N11: 2003 | O11: 2004 | P11: 2005 | Q11: 2006 | R11: 2007 | S11: 2008 | T11: 2009 | U11: 2010 | V11: 2011 | W11: 2012 | X11: 2013 | Y11: 2014 | Z11: Standardization | AA11: MIN | AB11: MAX | AC11: TARGET | AD11: LEVEL | AE11: SOURCES | AF11: NOTES
C12: 1. Population | K12: 3699136 | L12: 3783094.76 | M12: 3864745.84 | N12: 3944089.24 | O12: 4021124.96 | P12: 4095853 | Q12: 4168273.36 | R12: 4238386.04 | S12: 4306191.04 | T12: 4371688.36 | U12: 4434878 | V12: 4495759.96 | W12: 4554334.24 | X12: 4610600.84 | Y12: 4664559.76
C13: 2. Homes/Households | AE13: INEGI and GUO ProjectedCalculations
C14: 3. Urban Footprint area
C15: 4. Population in households
A16: Equity and Social Inclusion Index (ESI) | C16: 1. Economic Equity Sub Index (EE) | H16: =AVERAGE(U18,W22) -> 32.45030317 | I16: =AVERAGE(U18,W22) -> 32.45030317
B17: ESI_EE_1 | C17: 1. Gini Coefficient (reversed) | D17: dimensionless (0 - 1) | E17: X | J17: 2010 | M17: =GiniCoefficient!H5 -> 0.446 | P17: =GiniCoefficient!K5 -> 0.399 | U17: =GiniCoefficient!P5 -> 0.421 | Z17: 2.2 | AA17: 0.24 | AB17: 0.63 | AD17: Metropolitan Region | AE17: GUO, Calculated from Census 2010; 2008 ans 2012 are state level values
C18: Standardized | M18: =GiniCoefficient!H6 -> 0.4717948718 | P18: =GiniCoefficient!K6 -> 0.5923076923 | U18: =GiniCoefficient!P6 -> 0.5358974359
B20: ESI_EE_2 | C20: 2. Poverty Rate (reversed) | D20: % | E20: X | J20: 2010 | W20: ='PovertyRate '!K3 -> 2.977910047 | Z20: 2.2 (fourth root) | AA20: =0.0038*100 -> 0.38 | AB20: =0.03*100 -> 3 | AD20: Metropolitan Region | AE20: SEPLAN | AF20: Población en situación de pobreza multidimensional extrema
W21: =((W20^0.25)-$AA$20)/($AB$20-$AA$20) -> 0.356352911
C22: Standardized | W22: =100*(1-W21) -> 64.3647089
C24: 2. Social Inclusion Sub Index (SI) | H24: =AVERAGE(U27,U31) -> 82.75517933 | I24: =AVERAGE(U27,U31) -> 82.75517933
B25: ESI_SI_1 | C25: 1. Slum Households (reversed) | D25: % | E25: X | J25: 2010 | U25: ='SlumHouseholds '!D8*100 -> 10.19786588 | Z25: 2.2 | AA25: 0 | AB25: =0.8*100 -> 80 | AD25: Metropolitan Region | AE25: GUO, Calculated from Census 2010
U26: =(U25-$AA$25)/($AB$25-$AA$25) -> 0.1274733234
C27: Standardized | U27: =100*(1-U26) -> 87.25266766
B29: ESI_SI_2 | C29: 2. Youth Unemployment (reversed) | D29: % | E29: X | J29: 2010 | U29: =0.068*100 -> 6.8 | Z29: 2.2 (fourth root) | AA29: =0.0128*100 -> 1.28 | AB29: =0.0282*100 -> 2.82 | AD29: STATE - Jalisco | AE29: INEGI. Dirección General de Estadísticas Sociodemográficas. Censo de Población y Vivienda 2010 www.inegi.org.mx (9 de enero de
U30: =(((U29^0.25)-$AA$29)/($AB$29-$AA$29)) -> 0.2174230899
C31: Standardized | U31: =100*(1-U30) -> 78.25769101
C33: 3. Gender Inclusion Sub Index (GI) | H33: =AVERAGE(X36) -> 94.73246708 | I33: =AVERAGE(X36,U41,W44) -> 78.93577158
B34: ESI_GI_1 | C34: 1. Equitable Secondary School Enrollment | D34: dimensionless (0-∞) | E34: X | J34: 2013 | R34: =EquiSecSchoolenroll!C38 -> 1.073014695 | S34: =EquiSecSchoolenroll!D38 -> 1.077270892 | T34: =EquiSecSchoolenroll!E38 -> 1.08542829 | U34: =EquiSecSchoolenroll!F38 -> 1.062625419 | V34: =EquiSecSchoolenroll!G38 -> 1.057174893 | W34: =EquiSecSchoolenroll!H38 -> 1.044488447 | X34: =EquiSecSchoolenroll!I38 -> 1.052675329 | Z34: 5 | AC34: 1 | AD34: Metropolitan Region
R35: =ABS((R34-$AC$34)/$AC$34) -> 0.07301469463 | S35: 0.07727089196 | T35: 0.0854282899 | U35: 0.06262541917 | V35: 0.05717489289 | W35: 0.04448844679 | X35: 0.05267532924
C36: Standardized | R36: =100*(1-R35) -> 92.69853054 | S36: =100*(1-S35) -> 92.2729108 | T36: 91.45717101 | U36: 93.73745808 | V36: 94.28251071 | W36: 95.55115532 | X36: 94.73246708
B39: ESI_GI_2 | C39: 2. Women in Local Government | D39: % | F39: X | J39: 2010 | U39: =WomenInTheLocalGov!Q30 -> 0.2990518608 | Z39: 5 | AC39: 0.5 | AD39: Municipal - Metropolitan Region | AE39: INEGI. Anuario estadístico of Jalisco. 2012. 2013 | AF39: Staff in Institutions of the Municipal Public Administration by sex
U40: =ABS((U39-$AC$39)/$AC$39) -> 0.4018962783 | AE40: http://www.inegi.org.mx/prod_serv/contenidos/espanol/bvinegi/productos/integracion/pais/anuario_multi/2012/jal/702825046507.pdf
C41: Standardized | U41: =100*(1-U40) -> 59.81037217
B43: ESI_GI_3 | C43: 3. Women in the Work Force | D43: % | F43: X | W43: ='Women In Employment'!T19 -> 41.13223775 | Z43: 5 | AC43: 0.5 | AD43: STATE - Jalisco | AE43: http://www.inegi.org.mx/prod_serv/contenidos/espanol/bvinegi/productos/integracion/pais/anuario_multi/2012/jal/702825046507.pdf
C44: Standardized | W44: ='Women In Employment'!T21 -> 82.2644755
C46: 4. Urban Diversity (UD)
B47: ESI_UD_1 | C47: 1. Land Use Mix | D47: dimensionless (0 - 1.61) | E47: X | G47: X | Z47: 2.1 | AA47: 0 | AB47: 1.61

Sheet GiniCoefficient
A1: ESI_EE_1_GiniCoefficient (Reversed)
C2: Id_Indicador | D2: Unidad de medida | E2: Notes | F2: 2000 | G2: 2001 | H2: 2002 | I2: 2003 | J2: 2004 | K2: 2005 | L2: 2006 | M2: 2007 | N2: 2008 | O2: 2009 | P2: 2010 | Q2: 2011 | R2: 2012 | S2: 2013 | T2: Standardization | U2: MIN | V2: MAX
A3: 1. Economic Equity Sub Index (EE)
A4: 1. Gini Coefficient (reversed) | B4: dimensionless (0 - 1) | C4: X | T4: 2.2 | U4: 0.24 | V4: 0.63
H5: 0.446 | K5: 0.399 | P5: 0.421 | W5: Metropolitan - Guadalajara
A6: Standardized | H6: =1-((H5-$U$4)/($V$4-$U$4)) -> 0.4717948718 | K6: =1-((K5-$U$4)/($V$4-$U$4)) -> 0.5923076923 | P6: 0.5358974359
A9: NOTE:
A10: Source is : CONEVAL at Municipal level
A11: Data sources are:
A13: for 2000-2005
A14: http://www.coneval.gob.mx/Medicion/Paginas/Mapas-de-desigualdad-2000-2005.aspx
A15: for 2010:
A16: http://www.coneval.gob.mx/Medicion/Paginas/Medici%C3%B3n/Anexo-estad%C3%ADstico-municipal-2010.aspx

Sheet PovertyRate
A1: ESI_EE_2_PovertyRate (Reversed)
C2: El Salto | D2: Guadalajara | E2: Ixtlahuacán de los Membrillos | F2: Juanacatlan | G2: Tlajomulco de Zuniga | H2: Tlaquepaque | I2: Tonala | J2: Zapopan | K2: Metropolitan region
A3: population below $1.25 PPP a day (percentage) | B3: 2010 | C3: 7.52 | D3: 2.05 | E3: 4.26 | F3: 4.32 | G3: 3.77 | H3: 4.58 | I3: 4.94 | J3: 2.16 | K3: =(K5*100)/K4 -> 2.977910047
A4: Total population | C4: 111436 | D4: 1600940 | E4: 23420 | F4: 11902 | G4: 220630 | H4: 563006 | I4: 408729 | J4: 1155790 | K4: =SUM(C4:J4) -> 4095853
A5: population below $1.25 PPP a day (absolute number) | C5: =(C4*C3)/100 -> 8379.9872 | D5: =(D4*D3)/100 -> 32819.27 | E5: 997.692 | F5: 514.1664 | G5: 8317.751 | H5: =(H4*H3)/100 -> 25785.6748 | I5: 20191.2126 | J5: 24965.064 | K5: =SUM(C5:J5) -> 121970.818

Sheet SlumHouseholds
A1: ESI_SI_1_SlumHouseholds (Reversed)
A2: muncode3 Guadalajara Municipality Codes * slumthre Slum Crosstabulation
A3: % within muncode3 Guadalajara Municipality Codes
C4: slumthre Slum | E4: Total
C5: Non-slum | D5: Slum
A6: muncode3 Guadalajara Municipality Codes | B6: Others | C6: 0.9198696553 | D6: 0.08013034468 | E6: 1
B7: Metropolitan area of Guadalajara | C7: 0.8952889419 | D7: 0.1047110581 | E7: 1
A8: Total | C8: 0.8980213412 | D8: 0.1019786588 | E8: 1
A10: Note: See - Slum Estimates with Urban Totals - Mexico - 20 Aug 2014.xls

Sheet EquiSecSchoolenroll
A1: ESI_GI_1_EquitableSecondarySchoolEnrollment
A2: Enrollment in secondary school | C2: 2007 (2006-2007) | D2: 2008 (2007-2008) | E2: 2009 (2008-2009) | F2: 2010 (2009-2010) | G2: 2011 (2010-2011) | H2: 2012 (2011-2012) | I2: 2013 (2012-2013) | J2: Note: Year (School Year)
A3: Guadalajara | B3: Male | C3: 29346 | D3: 27667 | E3: 27849 | F3: 27778 | G3: 28563 | H3: 29508 | I3: 28808
B4: Female | C4: 35391 | D4: 33802 | E4: 34004 | F4: 33467 | G4: 33814 | H4: 34268 | I4: 33876
A5: Ixtlahuacán de los Membrillos | B5: Male | C5: - | D5: - | E5: - | F5: 139 | G5: 418 | H5: 444 | I5: 424
B6: Female | C6: - | D6: - | E6: - | F6: 152 | G6: 411 | H6: 484 | I6: 490
A7: Juanacatlán | B7: Male | C7: - | D7: - | E7: - | F7: - | G7: - | H7: - | I7: -
B8: Female | C8: - | D8: - | E8: - | F8: - | G8: - | H8: - | I8: -
A9: El Salto | B9: Male | C9: 1051 | D9: 1198 | E9: 1288 | F9: 1076 | G9: 1518 | H9: 1865 | I9: 2114
B10: Female | C10: 1293 | D10: 1445 | E10: 1552 | F10: 1261 | G10: 1856 | H10: 2211 | I10: 2524
A11: Tlajomulco de Zúñiga | B11: Male | C11: 1192 | D11: 975 | E11: 1440 | F11: 1844 | G11: 2623 | H11: 3050 | I11: 3360
B12: Female | C12: 1407 | D12: 1238 | E12: 1907 | F12: 2231 | G12: 2795 | H12: 3301 | I12: 3630
A13: Tlaquepaque | B13: Male | C13: 4346 | D13: 4816 | E13: 5216 | F13: 5226 | G13: 5580 | H13: 5872 | I13: 6073
B14: Female | C14: 4768 | D14: 5122 | E14: 5637 | F14: 5391 | G14: 5931 | H14: 6281 | I14: 6286
A15: Tonalá | B15: Male | C15: 3004 | D15: 4802 | E15: 4561 | F15: 4658 | G15: 4777 | H15: 4857 | I15: 5070
B16: Female | C16: 3771 | D16: 5107 | E16: 4767 | F16: 4867 | G16: 5018 | H16: 5051 | I16: 5204
A17: Zapopan | B17: Male | C17: 20935 | D17: 20146 | E17: 21079 | F17: 20419 | G17: 22454 | H17: 23582 | I17: 24194
B18: Female | C18: 20784 | D18: 20529 | E18: 21808 | F18: 20346 | G18: 22579 | H18: 23290 | I18: 24187
A19: Metropolitan Region | B19: Male | C19: =SUM(C3,C9,C11,C13,C15,C17) -> 59874 | D19: =SUM(D3,D9,D11,D13,D15,D17) -> 59604 | E19: 61433 | F19: 61001 | G19: 65515 | H19: 68734 | I19: 69619
B20: Female | C20: =SUM(C4,C10,C12,C14,C16,C18) -> 67414 | D20: =SUM(D4,D10,D12,D14,D16,D18) -> 67243 | E20: 69675 | F20: 67563 | G20: 71993 | H20: 74402 | I20: 75707
A24: Calculating the Equitable Secondary School Enrollment Rate
A25: For Guadalajara Metropolita Area
A27: Secondary School Enrollment
A28: School Year | C28: 2006-2007 | D28: 2007-2008 | E28: 2008-2009 | F28: 2009-2010 | G28: 2010-2011 | H28: 2011-2012 | I28: 2012-2013
C29: 2007 | D29: =C29+1 -> 2008 | E29: =D29+1 -> 2009 | F29: 2010 | G29: =F29+1 -> 2011 | H29: 2012 | I29: 2013
A30: Population (15-17) | C30: 255176.0168 | D30: 259258.2806 | E30: 263201.6083 | F30: 267006 | G30: 270671.4556 | H30: 274197.9753 | I30: 277585.5588
A31: Population (15-17 Male) | C31: 124517.6728 | D31: 126637.8732 | E31: 128711.3296 | F31: 130738.0422 | G31: 132718.0109 | H31: 134651.2357 | I31: 136537.7165
A32: Population (15-17 Female) | C32: 130658.344 | D32: 132620.4074 | E32: 134490.2787 | F32: 136267.9578 | G32: 137953.4448 | H32: 139546.7396 | I32: 141047.8423
A33: Students | C33: =SUM(C34:C34) -> 59874 | D33: 59604 | E33: 61433 | F33: 61001 | G33: 65515 | H33: 68734 | I33: 69619
A34: Students Men | C34: =C19 -> 59874 | D34: =D19 -> 59604 | E34: 61433 | F34: 61001 | G34: 65515 | H34: 68734 | I34: 69619
A35: Students Women | C35: =C20 -> 67414 | D35: 67243 | E35: 69675 | F35: 67563 | G35: 71993 | H35: 74402 | I35: 75707
A36: Female Enrollment Rate | C36: =C35/C32 -> 0.5159563327 | D36: =D35/D32 -> 0.5070335804 | E36: 0.5180671844 | F36: 0.4958098814 | G36: 0.5218644603 | H36: 0.5331690315 | I36: 0.5367469561
A37: Male Enrollment Rate | C37: =C34/C31 -> 0.4808474062 | D37: =D34/D31 -> 0.4706648849 | E37: 0.4772928706 | F37: 0.4665895173 | G37: 0.4936406112 | H37: 0.510459482 | I37: 0.5098884159
A38: (ESSE) | C38: =C36/C37 -> 1.073014695 | D38: =D36/D37 -> 1.077270892 | E38: 1.08542829 | F38: 1.062625419 | G38: 1.057174893 | H38: 1.044488447 | I38: 1.052675329

Sheet WomenInTheLocalGov
A1: ESI_GI_2_WomenInTheLocalGovernment
C2: Id_Indicador | D2: Unidad de medida | E2: Notes | F2: 2000 | G2: 2001 | H2: 2002 | I2: 2003 | J2: 2004 | K2: 2005 | L2: 2006 | M2: 2007 | N2: 2008 | O2: 2009 | P2: ene_mar 2009 | Q2: 2010 | R2: 2010/1 | S2: 2010/2 | T2: 2010/3 | U2: 2010/4 | V2: 2011 | W2: 2011/1 | X2: 2011/2 | Y2: 2011/3 | Z2: 2011/4 | AA2: 2012 | AB2: 2012/1 | AC2: 2012/2 | AD2: 2012/3 | AE2: 2012/4 | AF2: 2013 | AG2: 2013/1 | AH2: 2013/2 | AI2: 2013/3 | AJ2: 2013/4 | AK2: 2014 | AL2: 2014/1 | AM2: 2014/2 | AN2: 2014/3
A3: Number of women on government jobs | B3: Guadalajara | Q3: 3794
B4: Ixtlahuacán de los Membrillos | Q4: 92
B5: Juanacatlán | Q5: 60
B6: El Salto | Q6: 283
B7: Tlajomulco de Zúñiga | Q7: 735
B8: Tlaquepaque | Q8: 992
B9: Tonalá | Q9: 899
B11: Zapopan | Q11: 2008
B12: Metropolitan Region | Q12: =SUM(Q3:Q11) -> 8863
A13: Total of government jobs | B13: Guadalajara | Q13: 12051
B14: Ixtlahuacán de los Membrillos | Q14: 385
B15: Juanacatlán | Q15: 185
B16: El Salto | Q16: 1029
B17: Tlajomulco de Zúñiga | Q17: 2681
B18: Tlaquepaque | Q18: 2834
B19: Tonalá | Q19: 3145
B20: Zapopan | Q20: 7327
B21: Metropolitan Region | Q21: =SUM(Q13:Q20) -> 29637
A22: Women In Government | B22: Guadalajara | Q22: =Q3/Q13 -> 0.3148286449
B23: Ixtlahuacán de los Membrillos | Q23: 0.238961039
B24: Juanacatlán | Q24: 0.3243243243
B25: El Salto | Q25: 0.2750242954
B26: Tlajomulco de Zúñiga | Q26: 0.274151436
B27: Tlaquepaque | Q27: 0.3500352858
B28: Tonalá | Q28: 0.2858505564
B29: Zapopan | Q29: =Q11/Q20 -> 0.2740548656
B30: Metropolitan Region | Q30: =Q12/Q21 -> 0.2990518608

Sheet Women In Employment
C2: WOMEN IN WORK FORCE
C4: Subordinate workers and paid by industry of economic activity
C6: Strategic indicators of employment by occupation and sex
C7: Quarter January to March and April to June 2012
D9: TOTAL | F9: MALE | H9: FEMALE
D10: January to March | E10: April to June | F10: January to March | G10: April to June | H10: January to March | I10: April to June
C11: secondary | D11: 674545 | E11: 682924 | F11: 503140 | G11: 508986 | H11: 171405 | I11: 173938
C12: terciary | D12: 1426643 | E12: 1448038 | F12: 739756 | G12: 739490 | H12: 686887 | I12: 708548
C13: Total | D13: =SUM(D11:D12) -> 2101188 | E13: 2130962 | F13: 1242896 | G13: 1248476 | H13: 858292 | I13: 882486
C14: Average | D14: =AVERAGE(D13,E13) -> 2116075 | F14: =AVERAGE(F13,G13) -> 1245686 | H14: =AVERAGE(H13,I13) -> 870389
A18: DIMENSION | B18: CODE | C18: INDICATOR | D18: NOTES | E18: BASIC | F18: EXTENDED | G18: MISSING | H18: 2000 | I18: 2001 | J18: 2002 | K18: 2003 | L18: 2004 | M18: 2005 | N18: 2006 | O18: 2007 | P18: 2008 | Q18: 2009 | R18: 2010 | S18: 2011 | T18: 2012 | U18: 2013 | V18: Standardization | W18: MIN | X18: MAX | Y18: TARGET | Z18: LEVEL | AA18: SOURCES | AB18: NOTES
B19: ESI_GI_3 | C19: 3. Women in the Work Force | D19: % | F19: X | T19: =100*(H14/D14) -> 41.13223775 | V19: 5 | Y19: 50 | Z19: STATE - Jalisco | AA19: http://www.inegi.org.mx/prod_serv/contenidos/espanol/bvinegi/productos/integracion/pais/anuario_multi/2012/jal/702825046507.pdf
T20: =ABS((T19-$Y$19)/$Y$19) -> 0.177355245
C21: Standardized | T21: =100*(1-T20) -> 82.2644755

Sheet ENVIRONMENT
B1: NOTE:
B2: CPI Calculated Using Latest Years of Informatiion
C3: Sub Index values
C4: Missing data
C5: Stale level Data (JALISCO)
C6: Metropolitan Level Data (GUADALAJARA)
C7: Country Level Data (MEXICO)
C9: ENVIRONMENTAL SUSTAINABILITY INDEX
H11: BASIC | I11: EXTENDED
C12: ENVIRONMENTAL SUSTAINABILITY INDEX | H12: =GEOMEAN(H18,H30,H39) -> 42.09417942 | I12: =GEOMEAN(I18,I30,I39) -> 46.00930048
A13: DIMENSION | B13: CODE | C13: INDICATOR | D13: NOTES | E13: BASIC | F13: EXTENDED | G13: MISSING | J13: Year | K13: 2000 | L13: 2001 | M13: 2002 | N13: 2003 | O13: 2004 | P13: 2005 | Q13: 2006 | R13: 2007 | S13: 2008 | T13: 2009 | U13: 2010 | V13: 2011 | W13: 2012 | X13: 2013 | Y13: 2014 | Z13: Standardization | AA13: MIN | AB13: MAX | AC13: TARGET | AD13: LEVEL | AE13: SOURCES | AF13: NOTES/
B14: Demographic | C14: 1. Population | K14: 3699136 | L14: 3783094.76 | M14: 3864745.84 | N14: 3944089.24 | O14: 4021124.96 | P14: 4095853 | Q14: 4168273.36 | R14: 4238386.04 | S14: 4306191.04 | T14: 4371688.36 | U14: 4434878 | V14: 4495759.96 | W14: 4554334.24 | X14: 4610600.84 | Y14: 4664559.76
C15: 2. Homes/Households | AE15: INEGI and GUO ProjectedCalculations
C16: 3. Urban Footprint area
C17: 4. Population in households
A18: Environmental Sustainability (ES) | C18: 1. Air Quality | H18: =AVERAGE(X20) -> 33.33333333 | I18: =AVERAGE(X20,V24,S28) -> 43.52607368
B19: ES_AQ_1 | C19: 1. Number of monitoring stations | D19: # | E19: X | J19: 2013 | X19: 10 | Z19: 2.1 | AA19: 0 | AB19: ='PM10 Standardization Tables'!F10 -> 30 | AD19: Metropolitan Area | AE19: http://siga.jalisco.gob.mx/aire/
C20: Standardized | X20: =100*((X19-$AA$19)/($AB$19-$AA$19)) -> 33.33333333
B22: ES_AQ_2 | C22: 2. PM10 Concentration (reversed) | D22: ug/m3 | F22: X | J22: 2011 | R22: 41.4 | S22: 41.5 | T22: 41.7 | U22: 41.8 | V22: 62.2 | W22: 58.29 | X22: 62.48 | Z22: 4 | AC22: 40 | AD22: Metropolitan - Guadalajara | AE22: SEMADE
C23: Abs | R23: =ABS((R22-$AC$22)/$AC$22) -> 0.035 | S23: =ABS((S22-$AC$22)/$AC$22) -> 0.0375 | T23: 0.0425 | U23: 0.045 | V23: 0.555
C24: Standardized | R24: =100*(1-R23) -> 96.5 | S24: 96.25 | T24: 95.75 | U24: 95.5 | V24: 44.5
B26: ES_AQ_3 | C26: 3. CO2 Emissions (reversed) | D26: metric tonnes per capita | F26: X | J26: 2008 | S26: 2.42 | Z26: 2.2 (fifth root) | AA26: 0.39 | AB26: 2.09 | AD26: Metropolitan - Guadalajara | AE26: OECD -http://measuringurban.oecd.org/
S27: =(((S26^(1/5))-$AA$26)/($AB$26-$AA$26)) -> 0.4725511229
C28: Standardized | S28: =100*(1-S27) -> 52.74488771
C30: 2. Waste Management Sub Index (WM) | H30: =AVERAGE(W32,W35) -> 63.69099999 | I30: =AVERAGE(W32,W35,W37) -> 63.69099999
B31: ES_WM_1 | C31: 1. Solid waste collection | D31: % | E31: X | J31: 2012 | L31: ='Waste Collection'!G27 -> 0.8000020487 | M31: ='Waste Collection'!H27 -> 0.8200014556 | N31: ='Waste Collection'!I27 -> 0.83 | O31: ='Waste Collection'!J27 -> 0.9154597033 | P31: ='Waste Collection'!K27 -> 0.9136882353 | Q31: ='Waste Collection'!L27 -> 0.913598754 | R31: ='Waste Collection'!M27 -> 0.9135795968 | S31: ='Waste Collection'!N27 -> 0.9220627306 | T31: ='Waste Collection'!O27 -> 0.9294506686 | U31: ='Waste Collection'!P27 -> 0.9440315657 | V31: ='Waste Collection'!Q27 -> 0.9456646192 | W31: ='Waste Collection'!R27 -> 0.951076555 | Z31: 1.1 | AA31: 0 | AB31: 1 | AD31: STATE - Jalisco | AE31: http://dgeiawf.semarnat.gob.mx:8080/ibi_apps/WFServlet?IBIF_ex=D3_RSM01_05&IBIC_user=dgeia_mce&IBIC_pass=dgeia_mce
C32: Standardized | L32: ='Waste Collection'!G28 -> 80.00020487 | M32: ='Waste Collection'!H28 -> 82.00014556 | N32: ='Waste Collection'!I28 -> 83 | O32: ='Waste Collection'!J28 -> 91.54597033 | P32: ='Waste Collection'!K28 -> 91.36882353 | Q32: ='Waste Collection'!L28 -> 91.3598754 | R32: ='Waste Collection'!M28 -> 91.35795968 | S32: ='Waste Collection'!N28 -> 92.20627306 | T32: ='Waste Collection'!O28 -> 92.94506686 | U32: ='Waste Collection'!P28 -> 94.40315657 | V32: ='Waste Collection'!Q28 -> 94.56646192 | W32: ='Waste Collection'!R28 -> 95.1076555
B34: ES_WM_2 | C34: 2. Waste water treatment | D34: % | E34: X | J34: 2012 | K34: ='Wastewater Treatment'!I8 -> 9.395698925 | L34: ='Wastewater Treatment'!J8 -> 11.87335786 | M34: ='Wastewater Treatment'!K8 -> 11.68891224 | N34: ='Wastewater Treatment'!L8 -> 13.44666316 | O34: ='Wastewater Treatment'!M8 -> 13.20825243 | P34: ='Wastewater Treatment'!N8 -> 15.78037769 | Q34: ='Wastewater Treatment'!O8 -> 15.86323793 | R34: ='Wastewater Treatment'!P8 -> 16.40999564 | S34: ='Wastewater Treatment'!Q8 -> 16.76424013 | T34: ='Wastewater Treatment'!R8 -> 17.05953416 | U34: ='Wastewater Treatment'!S8 -> 18.41741568 | V34: ='Wastewater Treatment'!T8 -> 25.45404358 | W34: ='Wastewater Treatment'!U8 -> 32.27434447 | Z34: 1.1 | AA34: 0 | AB34: 1 | AD34: STATE - Jalisco | AE34: SEPLAN
C35: Standardized | K35: =K34 -> 9.395698925 | L35: 11.87335786 | M35: 11.68891224 | N35: 13.44666316 | O35: 13.20825243 | P35: 15.78037769 | Q35: 15.86323793 | R35: 16.40999564 | S35: 16.76424013 | T35: =T34 -> 17.05953416 | U35: =U34 -> 18.41741568 | V35: 25.45404358 | W35: 32.27434447
B37: ES_WM_3 | C37: 3. Solid waste recycling share | D37: % | F37: X | Z37: 3 | AC37: 0.5
C39: 3. Water and Energy Sub Index (WE) | H39: =AVERAGE(V40,V44) -> 35.1325223 | I39: =AVERAGE(V40,V44) -> 35.1325223
B40: ES_WE_1 | C40: 1. Share of protected area in natural systems that provide basic ecosystem services | D40: % | E40: X | Z40: 1.1 | AA40: 0 | AB40: 1
B42: ES_WE_2 | C42: 2. Share of renewable energy consumption | D42: % | E42: X | J42: 2011 | P42: ='Renewable Energy'!B19*100 -> 8.697292708 | Q42: ='Renewable Energy'!C19*100 -> 7.996665384 | R42: ='Renewable Energy'!D19*100 -> 7.951634907 | S42: ='Renewable Energy'!E19*100 -> 7.48631251 | T42: ='Renewable Energy'!F19*100 -> 7.878718229 | U42: ='Renewable Energy'!G19*100 -> 6.071204575 | V42: ='Renewable Energy'!H19*100 -> 7.02650446 | Z42: 2.1 | AA42: 0 | AB42: =0.2*100 -> 20 | AD42: Nacional | AE42: IEA | AF42: http://www.iea.org/statistics/statisticssearch/report/?&country=MEXICO&year=2000&product=ElectricityandHeat
P43: =100*((P42-$AA$42)/($AB$42-$AA$42)) -> 43.48646354 | Q43: 39.98332692 | R43: 39.75817453 | S43: 37.43156255 | T43: 39.39359114 | U43: =100*((U42-$AA$42)/($AB$42-$AA$42)) -> 30.35602287 | V43: 35.1325223
C44: Standardized | P44: =IF(P42>$AB$42,100,P43) -> 43.48646354 | Q44: 39.98332692 | R44: 39.75817453 | S44: 37.43156255 | T44: 39.39359114 | U44: 30.35602287 | V44: 35.1325223
C47: NOTES:
C48: Number of monitoring stations = 10
C49: PM10 > 48 ug/m3 - Using simple projection (indicated in RED)

Sheet PM10 Standardization Tables
D2: PM10 LEVELS OF CONCENTRATION
B4: Population ('000s) | D4: X < 32 µg/m3 | E4: 48 µg/m3 >= X <= 32 µg/m3 | F4: X > 48 µg/m3
B5: Min | C5: Max
B6: 100 | C6: 250 | D6: - | E6: 1 | F6: 1
B7: 250 | C7: 500 | D7: 1 | E7: 2 | F7: 4
B8: 500 | C8: 1000 | D8: 2 | E8: 4 | F8: 8
B9: 1000 | C9: 2000 | D9: 4 | E9: 8 | F9: 10
B10: 2000 | C10: 5000 | D10: 6 | E10: 12 | F10: 30
B11: 5000 | C11: 10000 | D11: 10 | E11: 20 | F11: 40
B12: > 10000 | D12: 40 | E12: 80 | F12: 160

Sheet Waste Collection
C2: SOLID WASTE COLLECTED - JALISCO
C4: Estimated Generation of municipal solid waste by state
C5: (Thousands of tons)
C6: Federal entity
G7: 2001 | H7: 2002 | I7: 2003 | J7: 2004 | K7: 2005 | L7: 2006 | M7: 2007 | N7: 2008 | O7: 2009 | P7: 2010 | Q7: 2011 | R7: 2012
C8: Jalisco | G8: 2220.96 | H8: 2267.1 | I8: 2317.75 | J8: 2427 | K8: 2482 | L8: 2528 | M8: 2654 | N8: 2710 | O8: 2767 | P8: 2890.8 | Q8: 2971.1 | R8: 3051.4
C11: Quantity of Waste Collected (tons per day)
C12: Year | G12: 2001 | H12: 2002 | I12: 2003 | J12: 2004 | K12: 2005 | L12: 2006 | M12: 2007 | N12: 2008 | O12: 2009 | P12: 2010 | Q12: 2011 | R12: 2012
C13: Jalisco | G13: 4867.87 | H13: 5093.22 | I13: 5270.5 | J13: 6087.18 | K13: 6213.08 | L13: 6327.61 | M13: 6642.85 | N13: 6846 | O13: 7046 | P13: 7476.73 | Q13: 7697.71 | R13: 7951
C15: Quantity of Waste Collected (tons per year)
C16: (Thousands of tons)
C17: Year | G17: 2001 | H17: 2002 | I17: 2003 | J17: 2004 | K17: 2005 | L17: 2006 | M17: 2007 | N17: 2008 | O17: 2009 | P17: 2010 | Q17: 2011 | R17: 2012
C18: Jalisco | G18: 1776.77255 | H18: 1859.0253 | I18: 1923.7325 | J18: 2221.8207 | K18: 2267.7742 | L18: 2309.57765 | M18: 2424.64025 | N18: 2498.79 | O18: 2571.79 | P18: 2729.00645 | Q18: 2809.66415 | R18: 2902.115
A22: DIMENSION | B22: CODE | C22: INDICATOR | D22: NOTES | E22: Year | F22: 2000 | G22: 2001 | H22: 2002 | I22: 2003 | J22: 2004 | K22: 2005 | L22: 2006 | M22: 2007 | N22: 2008 | O22: 2009 | P22: 2010 | Q22: 2011 | R22: 2012 | S22: 2013 | T22: Standardization | U22: MIN | V22: MAX | W22: TARGET | X22: LEVEL | Y22: SOURCES | Z22: NOTES/
B23: Demographic | C23: 1. Population | F23: 1001020.9 | G23: 1037318.6 | H23: 1070944.1 | I23: 1101897.4 | J23: 1130178.5 | K23: 1155790 | L23: 1178724.1 | M23: 1198988.6 | N23: 1216580.9 | O23: 1231501 | P23: 1243756 | Q23: 1253324.6 | R23: 1260228.1 | S23: 1264459.4
C24: 2. Homes/Households | F24: 234751.26 | G24: 244093.84 | H24: 253055.74 | I24: 261636.96 | J24: 269837.5 | K24: 277657.36 | L24: 285096.54 | M24: 292155.04 | N24: 298832.86 | O24: 305130 | P24: 311046.46 | Q24: 316582.24 | R24: 321737.34 | S24: 326511.76 | Y24: INEGI and GUO ProjectedCalculations
C25: 3. Urban Footprint area | S25: 168.78
C26: 4. Population in households | F26: 987284 | K26: 1107515 | P26: 1220612
B27: ES_WM_1 | C27: 1. Solid waste collection | D27: % | E27: 2010 | G27: =G18/G8 -> 0.8000020487 | H27: =H18/H8 -> 0.8200014556 | I27: 0.83 | J27: 0.9154597033 | K27: 0.9136882353 | L27: 0.913598754 | M27: 0.9135795968 | N27: 0.9220627306 | O27: 0.9294506686 | P27: 0.9440315657 | Q27: 0.9456646192 | R27: 0.951076555 | T27: 1.1 | U27: 0 | V27: 1 | Y27: State - Jalisco | Z27: http://dgeiawf.semarnat.gob.mx:8080/ibi_apps/WFServlet?IBIF_ex=D3_RSM01_05&IBIC_user=dgeia_mce&IBIC_pass=dgeia_mce
C28: Standardized | G28: =G27*100 -> 80.00020487 | H28: 82.00014556 | I28: 83 | J28: 91.54597033 | K28: 91.36882353 | L28: 91.3598754 | M28: 91.35795968 | N28: 92.20627306 | O28: 92.94506686 | P28: =P27*100 -> 94.40315657 | Q28: =Q27*100 -> 94.56646192 | R28: 95.1076555

Sheet Wastewater Treatment
D1: source http://dgeiawf.semarnat.gob.mx:8080/ibi_apps/WFServlet?IBIF_ex=D3_AGUA07_05&IBIC_user=dgeia_mce&IBIC_pass=dgeia_mce
C2: waste water treatment
D4: 1995 | E4: 1996 | F4: 1997 | G4: 1998 | H4: 1999 | I4: 2000 | J4: 2001 | K4: 2002 | L4: 2003 | M4: 2004 | N4: 2005 | O4: 2006 | P4: 2007 | Q4: 2008 | R4: 2009 | S4: 2010 | T4: 2011 | U4: 2012
C5: Jalisco
C6: water supplied for consumption(l/s) | D6: 18896 | E6: 18900 | F6: 18900 | G6: 18900 | H6: 18900 | I6: 18600 | J6: 19030 | K6: 19030 | L6: 19030 | M6: 20600 | N6: 20599 | O6: 20649 | P6: 20649 | Q6: 20839 | R6: 20694 | S6: 20694 | T6: 20650 | U6: 19450
C7: Treatment capacity (l/s) | D7: 2403 | E7: 1806 | F7: 1791.9 | G7: 1747.6 | H7: 1747.6 | I7: 1747.6 | J7: 2259.5 | K7: 2224.4 | L7: 2558.9 | M7: 2720.9 | N7: 3250.6 | O7: 3275.6 | P7: 3388.5 | Q7: 3493.5 | R7: 3530.3 | S7: 3811.3 | T7: 5256.26 | U7: 6277.36
C8: treated (%) | D8: =100*(D7/D6) -> 12.71697714 | E8: 9.555555556 | F8: 9.480952381 | G8: 9.246560847 | H8: 9.246560847 | I8: 9.395698925 | J8: 11.87335786 | K8: 11.68891224 | L8: 13.44666316 | M8: 13.20825243 | N8: 15.78037769 | O8: 15.86323793 | P8: 16.40999564 | Q8: 16.76424013 | R8: 17.05953416 | S8: 18.41741568 | T8: 25.45404358 | U8: 32.27434447

Sheet Renewable Energy
A1: Mexico | B1: Electricity production
B2: 2005 | C2: 2006 | D2: 2007 | E2: 2008 | F2: 2009 | G2: 2010 | H2: 2011 | I2: 2012
A3: Coal | B3: 33055 | C3: 31930 | D3: 31785 | E3: 21453 | F3: 29549 | G3: 32618 | H3: 34132 | I3: 34315
A4: Oil | B4: 66785 | C4: 55263 | D4: 53278 | E4: 49458 | F4: 45745 | G4: 43879 | H4: 48371 | I4: 55679
A5: Gas | B5: 95118 | C5: 111965 | D5: 124495 | E5: 132221 | F5: 138471 | G5: 140976 | H5: 156281 | I5: 150922
A6: Biofuel | B6: 3074 | C6: 2332 | D6: 2363 | E6: 2470 | F6: 2718 | G6: 2689 | H6: 2512 | I6: 2791
A7: waste | B7: 0 | C7: 0 | D7: 0 | E7: 0 | F7: 0 | G7: 0 | H7: 0 | I7: 0
A8: Nuclear | B8: 10805 | C8: 10866 | D8: 10421 | E8: 9804 | F8: 10501 | G8: 5879 | H8: 10089 | I8: 8770
A9: hydro | B9: 27659 | C9: 30394 | D9: 27276 | E9: 39178 | F9: 26713 | G9: 37121 | H9: 36266 | I9: 31855
A10: geothermal | B10: 7299 | C10: 6685 | D10: 7404 | E10: 7056 | F10: 6740 | G10: 6618 | H10: 6507 | I10: 5817
A11: solar PV | B11: 9 | C11: 10 | D11: 9 | E11: 9 | F11: 12 | G11: 31 | H11: 31 | I11: 69
A12: solar thermal | B12: 0 | C12: 0 | D12: 0 | E12: 0 | F12: 0 | G12: 0 | H12: 0 | I12: 0
A13: wind | B13: 19 | C13: 59 | D13: 262 | E13: 269 | F13: 596 | G13: 1239 | H13: 1648 | I13: 3644
A14: tide | B14: 0 | C14: 0 | D14: 0 | E14: 0 | F14: 0 | G14: 0 | H14: 0 | I14: 0
A15: others | B15: 0 | C15: 0 | D15: 0 | E15: 0 | F15: 0 | G15: 0 | H15: 0 | I15: 0
A16: Total | B16: =SUM(B3:B15) -> 243823 | C16: =SUM(C3:C15) -> 249504 | D16: =SUM(D3:D14) -> 257293 | E16: 261918 | F16: 261045 | G16: 271050 | H16: 295837 | I16: 293862
A18: Total renewables (without Renewables) | B18: =SUM(B6:B8,B10:B15) -> 21206 | C18: 19952 | D18: 20459 | E18: 19608 | F18: 20567 | G18: 16456 | H18: 20787 | I18: 21091
A19: % of renewables | B19: =B18/B16 -> 0.08697292708 | C19: 0.07996665384 | D19: 0.07951634907 | E19: 0.0748631251 | F19: 0.07878718229 | G19: 0.06071204575 | H19: 0.0702650446 | I19: 0.07177178403
A22: renewables + hydro | B22: =SUM(B6:B15) -> 48865 | C22: 50346 | D22: 47735 | E22: 58786 | F22: 47280 | G22: 53577 | H22: 57053 | I22: 52946
A23: % with hydro | B23: =B22/B16 -> 0.2004117741 | C23: 0.2017843401 | D23: 0.1855277835 | E23: 0.2244442917 | F23: 0.181118198 | G23: 0.1976646375 | H23: 0.192852821 | I23: 0.1801730064
A26: INDICATOR | B26: NOTES | C26: 2000 | D26: 2001 | E26: 2002 | F26: 2003 | G26: 2004 | H26: 2005 | I26: 2006 | J26: 2007 | K26: 2008 | L26: 2009 | M26: 2010 | N26: 2011 | O26: 2012 | P26: 2013 | Q26: Standardization | R26: MIN | S26: MAX | T26: TARGET | U26: LEVEL | V26: SOURCES | W26: NOTES/
A27: 2. Share of renewable energy consumption | B27: % | C27: 23.97576612 | D27: 21.3934786 | E27: 19.7344772 | F27: 18.31533538 | G27: 18.70712333 | H27: 20.04117741 | I27: 20.17843401 | J27: 18.55277835 | K27: 22.44442917 | L27: 18.1118198 | M27: 19.76646375 | N27: 19.2852821 | Q27: 2.1 | R27: 0 | S27: =0.2*100 -> 20 | U27: Nacional | V27: IEA | W27: http://www.iea.org/statistics/statisticssearch/report/?&country=MEXICO&year=2000&product=ElectricityandHeat

Sheet GOVERNANCE
B1: NOTE:
B2: CPI Calculated Using Latest Years of Informatiion
C3: Sub Index values
C4: Missing data
C5: Stale level Data (JALISCO)
C6: Country Level Data (MEXICO)
C7: URBAN GOVERNANCE AND LEGISLATION INDEX
C10: URBAN GOVERNANCE AND LEGISLATION INDEX | H10: =GEOMEAN(H14,H22,H26,H40) -> 61.53498495 | I10: =GEOMEAN(I14,I22,I26,I40) -> 67.81348376
A11: DIMENSION | B11: CODE | C11: INDICATOR | D11: NOTES | E11: BASIC | F11: EXTENDED | G11: MISSING | J11: Year | K11: 2000 | L11: 2001 | M11: 2002 | N11: 2003 | O11: 2004 | P11: 2005 | Q11: 2006 | R11: 2007 | S11: 2008 | T11: 2009 | U11: 2010 | V11: 2011 | W11: 2012 | X11: 2013 | Y11: 2014 | Z11: Standardization | AA11: MIN | AB11: MAX | AC11: TARGET | AD11: LEVEL | AE11: SOURCES | AF11: NOTES
B12: demographic | C12: 1. Population | K12: 3699136 | L12: 3783094.76 | M12: 3864745.84 | N12: 3944089.24 | O12: 4021124.96 | P12: 4095853 | Q12: 4168273.36 | R12: 4238386.04 | S12: 4306191.04 | T12: 4371688.36 | U12: 4434878 | V12: 4495759.96 | W12: 4554334.24 | X12: 4610600.84 | Y12: 4664559.76
C13: 2. Urban Footprint area
A14: Urban Governance and Legislation Index (UGL) | C14: 1. Participation Sub Index (P) | H14: =AVERAGE(T16) -> 52.53125 | I14: =AVERAGE(T16,W18,W20) -> 52.53125
B15: UGL_P_1 | C15: 1. Voter turnout | D15: % | E15: X | J15: 2009 | K15: ='Voter turnout'!B10 -> 67.20625 | N15: ='Voter turnout'!E10 -> 54.2925 | Q15: ='Voter turnout'!H10 -> 62.08875 | T15: ='Voter turnout'!K10 -> 52.53125 | Z15: 1.1 | AA15: 0 | AB15: 1 | AD15: Metropolitana (Guadalajara, El Salto, Tlajomilco, Tlaquepaque, Tonala, Zapopan) | AE15: http://www.ine.mx/documentos/RESELEC/SICEEF/principal.html
C16: Standardized | K16: =K15 -> 67.20625 | N16: =N15 -> 54.2925 | Q16: 62.08875 | T16: 52.53125
B18: UGL_P_2 | C18: 2. Civic participation | D18: % | F18: X | Z18: 1.1 | AA18: 0 | AB18: 1
B20: UGL_P_3 | C20: 3. Youth Civic Participation | D20: % | F20: X
C22: 2. Accountability and Transparency Sub Index (AT) | H22: =AVERAGE(Y24) -> 88.75 | I22: =AVERAGE(Y24) -> 88.75
B23: UGL_AT_1 | C23: 1. AccesstoPublicInformation | D23: Value between 0 - 100 | E23: X | J23: 2014 | K23: =Transparency!F124 -> 1.75 | L23: =Transparency!G124 -> 1.75 | M23: =Transparency!H124 -> 1.75 | N23: =Transparency!I124 -> 1.75 | O23: =Transparency!J124 -> 1.875 | P23: =Transparency!K124 -> 1.875 | Q23: =Transparency!L124 -> 1.875 | R23: =Transparency!M124 -> 2.625 | S23: =Transparency!N124 -> 3.125 | T23: =Transparency!O124 -> 3.25 | U23: =Transparency!P124 -> 4.375 | V23: =Transparency!Q124 -> 5.125 | W23: =Transparency!R124 -> 6 | X23: =Transparency!S124 -> 6.5 | Y23: =Transparency!T124 -> 7.625 | Z23: 1.1 | AA23: 0 | AB23: 1 | AD23: Municipal- Guadalajara
C24: Standardized | K24: =Transparency!F125 -> 20 | L24: =Transparency!G125 -> 20 | M24: =Transparency!H125 -> 20 | N24: =Transparency!I125 -> 20 | O24: =Transparency!J125 -> 21.25 | P24: =Transparency!K125 -> 21.25 | Q24: =Transparency!L125 -> 22.5 | R24: =Transparency!M125 -> 30 | S24: =Transparency!N125 -> 38.75 | T24: =Transparency!O125 -> 40 | U24: =Transparency!P125 -> 53.75 | V24: =Transparency!Q125 -> 62.5 | W24: =Transparency!R125 -> 72.5 | X24: =Transparency!S125 -> 77.5 | Y24: =Transparency!T125 -> 88.75
C26: 3. Institutional Capacity Sub Index (IC) | H26: =AVERAGE(W28) -> 31.0386556 | I26: =AVERAGE(W28,W34,Y38) -> 45.78031012
B27: UGL_IC_1 | C27: 1. Own Revenue Collection | D27: % | E27: X | J27: 2012 | S27: ='Own revenue collection'!B15 -> 0.3205590504 | T27: ='Own revenue collection'!C15 -> 0.3351678584 | U27: ='Own revenue collection'!D15 -> 0.313326009 | V27: ='Own revenue collection'!E15 -> 0.3603206061 | W27: ='Own revenue collection'!F15 -> 0.3655435303 | Z27: 2.1 | AA27: 0.17 | AB27: 0.8 | AD27: Area Metropolitana | AE27: INEGI and IMCO
C28: Standardized | S28: =100*((S27-$AA$27)/($AB$27-$AA$27)) -> 23.89826197 | T28: =100*((T27-$AA$27)/($AB$27-$AA$27)) -> 26.21712038 | U28: =100*((U27-$AA$27)/($AB$27-$AA$27)) -> 22.75016016 | V28: =100*((V27-$AA$27)/($AB$27-$AA$27)) -> 30.20962001 | W28: =100*((W27-$AA$27)/($AB$27-$AA$27)) -> 31.0386556
B30: UGL_IC_2 | C30: 2. Subnational Debt (reversed) | D30: % | F30: X | Z30: 4 | AC30: 0.6
C32: Standardized (with if condition)
B34: UGL_IC_2 | C34: 2. Investment Capacity | D34: % | F34: X | G34: X
B36: UGL_IC_3 | C36: 3. Days to Start a Business (reversed) | D36: # | F36: X | J36: 2014 | Y36: 12.5 | Z36: 2.2 (ln) | AA36: 0.69 | AB36: 5.34 | AD36: Metropolitan - Guadalajara | AE36: http://www.doingbusiness.org/data/exploreeconomies/mexico/sub/guadalajara/
Y37: =(LN(Y36)-$AA$36)/($AB$36-$AA$36) -> 0.3947803536
C38: Standardized | Y38: 60.52196464
C40: 4. Governance of Urbanisation (GU) | H40: =AVERAGE(U42) -> 99.0830567 | I40: =AVERAGE(U42,U44) -> 99.0830567
B41: UCL_GU_1 | C41: Sprawl Index | D41: # | E41: X | J41: 2010 | U41: =Sprawl!W106*100 -> 99.0830567
C42: 2000-2010 | U42: =Sprawl!W106*100 -> 99.0830567 | AD42: Metropolitan - Guadalajara | AE42: SEDESOL | AF42: Mexico, la expansion de las ciudades 2000-2010
B44: UCL_GU_2 | C44: Densities Development Rights | D44: % | F44: X | G44: X

Sheet Voter turnout
A1: % participacion ciudadana/ municipio | B1: 2000 | C1: 2001 | D1: 2002 | E1: 2003 | F1: 2004 | G1: 2005 | H1: 2006 | I1: 2007 | J1: 2008 | K1: 2009 | L1: 2010 | M1: 2011 | N1: 2012 | O1: 2013 | P1: 2014
A2: Guadalajara | B2: 71.32 | E2: 53.87 | H2: 64.34 | K2: 50.31 | R2: http://www.ine.mx/documentos/RESELEC/SICEEF/principal.html
A3: El Salto | B3: 65.24 | E3: 52.64 | H3: 58.67 | K3: 50.29
A4: Tlajomuco de zuñiga | B4: 63.5 | E4: 56.22 | H4: 63.04 | K4: 50.3
A5: San Pedro Tlaquepaque | B5: 67.8 | E5: 48.21 | H5: 59.62 | K5: 47.46
A6: Tonala | B6: 67.23 | E6: 51.06 | H6: 58.67 | K6: 47.44
A7: Zapopan | B7: 69.48 | E7: 49.96 | H7: 63.12 | K7: 47.43
A8: Juanacatlan | B8: 70.16 | E8: 62.08 | H8: 64.58 | K8: 64.76
A9: Ixtahuacan | B9: 62.92 | E9: 60.3 | H9: 64.67 | K9: 62.26
A10: Average | B10: =AVERAGE(B2:B9) -> 67.20625 | E10: =AVERAGE(E2:E9) -> 54.2925 | H10: =AVERAGE(H2:H9) -> 62.08875 | K10: =AVERAGE(K2:K9) -> 52.53125
A14: % participacion ciudadana/ municipio | B14: 2000 | C14: 2001 | D14: 2002 | E14: 2003 | F14: 2004 | G14: 2005 | H14: 2006 | I14: 2007 | J14: 2008 | K14: 2009 | L14: 2010 | M14: 2011 | N14: 2012 | O14: 2013 | P14: 2014 | R14: http://www.ine.mx/documentos/RESELEC/SICEEF/principal.html
A15: Cajeme | B15: 61.83 | E15: 50.42 | H15: 54.15 | K15: 47.68
A16: Corregidora | B16: 72.67 | E16: 58.98 | H16: 65.15 | K16: 60.1

Sheet Transparency
A1: Guadalajara
A2: INDICATOR | B2: NOTES | C2: BASIC | D2: EXTENDED | E2: MISSING | F2: 2000 | G2: 2001 | H2: 2002 | I2: 2003 | J2: 2004 | K2: 2005 | L2: 2006 | M2: 2007 | N2: 2008 | O2: 2009 | P2: 2010 | Q2: 2011 | R2: 2012 | S2: 2013 | T2: 2014
A3: 2. Transparency and Accountability to Local People | B3: % | D3: X
A4: Does the E-government has the following element? YES=1; NO=0
A5: 1- Budgets and spending | N5: 1 | O5: 1 | P5: 1 | Q5: 1 | R5: 1 | S5: 1 | T5: 1 | V5: http://transparencia.guadalajara.gob.mx/transparencia/cuenta-publica, Accessed on October 29, 2014
A6: 2- Senior salaries | N6: 1 | O6: 1 | P6: 1 | Q6: 1 | R6: 1 | S6: 1 | T6: 1 | V6: http://enlinea.guadalajara.gob.mx:8800/consultaNomina/nomina.php, Accessed on October 29, 2014
A7: 3- Organizational chart | R7: 1 | S7: 1 | T7: 1 | V7: http://transparencia.guadalajara.gob.mx/organigrama-2012-2015, Accessed on Otober 29, 2014
A8: 4- Copies of contracts and tenders | J8: 1 | K8: 1 | L8: 1 | M8: 1 | N8: 1 | O8: 1 | P8: 1 | Q8: 1 | R8: 1 | S8: 1 | T8: 1 | V8: http://transparencia.guadalajara.gob.mx/contratos, Accessed on October 29, 2014
A9: 5- Access to statistics | F9: 1 | G9: 1 | H9: 1 | I9: 1 | J9: 1 | K9: 1 | L9: 1 | M9: 1 | N9: 1 | O9: 1 | P9: 1 | Q9: 1 | R9: 1 | S9: 1 | T9: 1 | V9: http://www.iieg.gob.mx/index.php, Accessed on Otober 29, 2014 http://www3.inegi.org.mx/sistemas/productos/default.aspx?c=265&s=inegi&upc=702825054021&pf=Prod&ef=&f=2&cl=0&tg=8&pg=0
A10: 6- Posting public notices on meetings, resolution, etc. | T10: 1 | V10: http://transparencia.guadalajara.gob.mx/transparencia/gaceta-municipal-busqueda, Accessed on October 29, 2014.
A11: 7- Reporting complaints, concerns, and emergencies by the local community | T11: 1 | V11: http://transparencia.guadalajara.gob.mx/transparencia, Accessed on October 29, 2014
A12: 8- Results of local elections | F12: 1 | G12: 1 | H12: 1 | I12: 1 | J12: 1 | K12: 1 | L12: 1 | M12: 1 | N12: 1 | O12: 1 | P12: 1 | Q12: 1 | R12: 1 | S12: 1 | T12: 1 | V12: http://www.iepcjalisco.org.mx/resultados-electorales
A13: 9- Tax information | N13: 1 | O13: 1 | P13: 1 | Q13: 1 | R13: 1 | S13: 1 | T13: 1 | V13: http://transparencia.guadalajara.gob.mx/transparencia/cuenta-publica, Accessed on October 29, 2014
A14: 10- Open tendering procedures | P14: 1 | Q14: 1 | R14: 1 | S14: 1 | T14: 1 | V14: http://transparencia.guadalajara.gob.mx/Transparencia/licitaciones, Accessed on October 29, 2014
A15: Result | F15: =SUM(F5:F14) -> 2 | G15: 2 | H15: 2 | I15: 2 | J15: 3 | K15: 3 | L15: 3 | M15: 3 | N15: 6 | O15: 6 | P15: 7 | Q15: 7 | R15: 8 | S15: 8 | T15: 10
A16: Standardized | F16: =100*(F15/10) -> 20 | G16: 20 | H16: 20 | I16: 20 | J16: 30 | K16: 30 | L16: 30 | M16: 30 | N16: 60 | O16: 60 | P16: 70 | Q16: 70 | R16: 80 | S16: 80 | T16: 100
A18: El Salto
A19: Does the E-government has the following element? YES=1; NO=0
A20: 1- Budgets and spending | Q20: 1 | R20: 1 | S20: 1 | T20: 1 | V20: http://www.elsalto.gob.mx/elsalto/node/161
A21: 2- Senior salaries | R21: 1 | S21: 1 | T21: 1 | V21: http://www.elsalto.gob.mx/elsalto/node/206
A22: 3- Organizational chart | R22: 1 | S22: 1 | T22: 1 | V22: http://www.elsalto.gob.mx/elsalto/node/292
A23: 4- Copies of contracts and tenders | Q23: 1 | R23: 1 | S23: 1 | T23: 1 | V23: http://www.elsalto.gob.mx/elsalto/node/181
A24: 5- Access to statistics | F24: 1 | G24: 1 | H24: 1 | I24: 1 | J24: 1 | K24: 1 | L24: 1 | M24: 1 | N24: 1 | O24: 1 | P24: 1 | Q24: 1 | R24: 1 | S24: 1 | T24: 1 | V24: http://www.iieg.gob.mx/index.php, Accessed on Otober 29, 2014 http://www3.inegi.org.mx/sistemas/productos/default.aspx?c=265&s=inegi&upc=702825054021&pf=Prod&ef=&f=2&cl=0&tg=8&pg=0
A25: 6- Posting public notices on meetings, resolution, etc. | T25: 1 | V25: http://www.elsalto.gob.mx/elsalto/node/180 http://www.elsalto.gob.mx/elsalto/node
A26: 7- Reporting complaints, concerns, and emergencies by the local community | T26: 1
A27: 8- Results of local elections | F27: 1 | G27: 1 | H27: 1 | I27: 1 | J27: 1 | K27: 1 | L27: 1 | M27: 1 | N27: 1 | O27: 1 | P27: 1 | Q27: 1 | R27: 1 | S27: 1 | T27: 1 | V27: http://www.iepcjalisco.org.mx/resultados-electorales
A28: 9- Tax information | Q28: 1 | R28: 1 | S28: 1 | T28: 1 | V28: http://www.elsalto.gob.mx/elsalto/node/161
A29: 10- Open tendering procedures | Q29: 1 | R29: 1 | S29: 1 | T29: 1 | V29: http://www.elsalto.gob.mx/elsalto/node/181
A30: Result | F30: =SUM(F20:F29) -> 2 | G30: 2 | H30: 2 | I30: 2 | J30: 2 | K30: 2 | L30: 2 | M30: 2 | N30: 2 | O30: 2 | P30: 2 | Q30: 6 | R30: 8 | S30: 8 | T30: 10
A31: Standardized | F31: =100*(F30/10) -> 20 | G31: 20 | H31: 20 | I31: 20 | J31: 20 | K31: 20 | L31: 20 | M31: 20 | N31: 20 | O31: 20 | P31: 20 | Q31: 60 | R31: 80 | S31: 80 | T31: 100
A33: Zapopan
A34: Does the E-government has the following element? YES=1; NO=0
A35: 1- Budgets and spending | F35: 0 | G35: 0 | H35: 0 | I35: 0 | J35: 0 | K35: 0 | L35: 0 | M35: 0 | N35: 0 | O35: 1 | P35: 1 | Q35: 1 | R35: 1 | S35: 1 | T35: 1
A36: 2- Senior salaries | F36: 0 | G36: 0 | H36: 0 | I36: 0 | J36: 0 | K36: 0 | L36: 0 | M36: 0 | N36: 0 | O36: 0 | P36: 0 | Q36: 1 | R36: 1 | S36: 1 | T36: 1
A37: 3- Organizational chart | F37: 0 | G37: 0 | H37: 0 | I37: 0 | J37: 0 | K37: 0 | L37: 0 | M37: 1 | N37: 1 | O37: 1 | P37: 1 | Q37: 1 | R37: 1 | S37: 1 | T37: 1
A38: 4- Copies of contracts and tenders | F38: 0 | G38: 0 | H38: 0 | I38: 0 | J38: 0 | K38: 0 | L38: 0 | M38: 1 | N38: 1 | O38: 1 | P38: 1 | Q38: 1 | R38: 1 | S38: 1 | T38: 1
A39: 5- Access to statistics | F39: 1 | G39: 1 | H39: 1 | I39: 1 | J39: 1 | K39: 1 | L39: 1 | M39: 1 | N39: 1 | O39: 1 | P39: 1 | Q39: 1 | R39: 1 | S39: 1 | T39: 1
A40: 6- Posting public notices on meetings, resolution, etc. | F40: 0 | G40: 0 | H40: 0 | I40: 0 | J40: 0 | K40: 0 | L40: 0 | M40: 0 | N40: 0 | O40: 0 | P40: 0 | Q40: 0 | R40: 0 | S40: 0 | T40: 1
A41: 7- Reporting complaints, concerns, and emergencies by the local community | R41: 0 | S41: 0 | T41: 1
A42: 8- Results of local elections | F42: 1 | G42: 1 | H42: 1 | I42: 1 | J42: 1 | K42: 1 | L42: 1 | M42: 1 | N42: 1 | O42: 1 | P42: 1 | Q42: 1 | R42: 1 | S42: 1 | T42: 1
A43: 9- Tax information | T43: 1
A44: 10- Open tendering procedures | T44: 1
A45: Result | F45: =SUM(F35:F44) -> 2 | G45: 2 | H45: 2 | I45: 2 | J45: 2 | K45: 2 | L45: 2 | M45: 4 | N45: 4 | O45: 5 | P45: 5 | Q45: 6 | R45: 6 | S45: 6 | T45: 10
A46: Standardized | F46: =100*(F45/10) -> 20 | G46: 20 | H46: 20 | I46: 20 | J46: 20 | K46: 20 | L46: 20 | M46: 40 | N46: 40 | O46: 50 | P46: 50 | Q46: 60 | R46: 60 | S46: 60 | T46: 100
A48: Tlajamulco de zuñiga
A49: Does the E-government has the following element? YES=1; NO=0
A50: 1- Budgets and spending | P50: 1 | Q50: 1 | R50: 1 | S50: 1 | T50: 1 | V50: http://www.tlajomulco.gob.mx/transparencia-ciudadana, accessed on November 5, 2014
A51: 2- Senior salaries | P51: 1 | Q51: 1 | R51: 1 | S51: 1 | T51: 1 | V51: http://www.tlajomulco.gob.mx/transparencia/articulo-8/remuneraciones, accessed on November 5, 2014
A52: 3- Organizational chart | P52: 1 | Q52: 1 | R52: 1 | S52: 1 | T52: 1 | V52: http://www.tlajomulco.gob.mx/transparencia/articulo-8/Organigrama, Accessed on November 5, 2014
A53: 4- Copies of contracts and tenders | P53: 1 | Q53: 1 | R53: 1 | S53: 1 | T53: 1 | V53: http://tlajomulco.gob.mx/transparencia/articulo-8/contratos-concursos-y-licitaciones, Accessed on November 5, 2014
A54: 5- Access to statistics | F54: 1 | G54: 1 | H54: 1 | I54: 1 | J54: 1 | K54: 1 | L54: 1 | M54: 1 | N54: 1 | O54: 1 | P54: 1 | Q54: 1 | R54: 1 | S54: 1 | T54: 1 | V54: http://www.iieg.gob.mx/index.php, Accessed November 5, 2014 http://www3.inegi.org.mx/sistemas/productos/default.aspx?c=265&s=inegi&upc=702825054021&pf=Prod&ef=&f=2&cl=0&tg=8&pg=0
A55: 6- Posting public notices on meetings, resolution, etc. | Q55: 1 | R55: 1 | S55: 1 | T55: 1 | V55: http://tlajomulco.gob.mx/transparencia/articulo-15/Gacetas, accessed on November 5, 2014
A56: 7- Reporting complaints, concerns, and emergencies by the local community | T56: 1 | V56: http://www.tlajomulco.gob.mx/denuncia-en-linea, Accessed on November 5, 2014
A57: 8- Results of local elections | F57: 1 | G57: 1 | H57: 1 | I57: 1 | J57: 1 | K57: 1 | L57: 1 | M57: 1 | N57: 1 | O57: 1 | P57: 1 | Q57: 1 | R57: 1 | S57: 1 | T57: 1 | V57: http://www.iepcjalisco.org.mx/resultados-electorales
A58: 9- Tax information | P58: 1 | Q58: 1 | R58: 1 | S58: 1 | T58: 1 | V58: http://www.tlajomulco.gob.mx/transparencia/articulo-8/Balances-Cuenta-Deuda, Accessed on November 5, 2014
A59: 10- Open tendering procedures | P59: 1 | Q59: 1 | R59: 1 | S59: 1 | T59: 1 | V59: http://tlajomulco.gob.mx/transparencia/articulo-8/contratos-concursos-y-licitaciones, Accessed on November 5, 2014
A60: Result | F60: =SUM(F50:F59) -> 2 | G60: 2 | H60: 2 | I60: 2 | J60: 2 | K60: 2 | L60: 2 | M60: 2 | N60: 2 | O60: 2 | P60: 8 | Q60: 9 | R60: 9 | S60: 9 | T60: 10
A61: Standardized | F61: =100*(F60/10) -> 20 | G61: 20 | H61: 20 | I61: 20 | J61: 20 | K61: 20 | L61: 20 | M61: 20 | N61: 20 | O61: 20 | P61: 80 | Q61: 90 | R61: 90 | S61: 90 | T61: 100
A64: San Pedro Tlaquepaque
A65: Does the E-government has the following element? YES=1; NO=0
A66: 1- Budgets and spending | N66: 1 | O66: 1 | P66: 1 | Q66: 1 | R66: 1 | S66: 1 | T66: 1 | V66: http://transparencia12.tlaquepaque.gob.mx/?q=taxonomy/term/607#overlay-context=taxonomy/term/437%3Fq%3Dtaxonomy/term/437, Accessed on november 5, 2014
A67: 2- Senior salaries | P67: 1 | Q67: 1 | R67: 1 | S67: 1 | T67: 1 | V67: http://www.tlaquepaque.gob.mx/nomina/nomina.php, Accessed on Nomber 5, 2014
A68: 3- Organizational chart | N68: 1 | O68: 1 | P68: 1 | Q68: 1 | R68: 1 | S68: 1 | T68: 1 | V68: http://transparencia12.tlaquepaque.gob.mx/?q=taxonomy/term/654, Accessed on November 5, 2014
A69: 4- Copies of contracts and tenders | R69: 1 | S69: 1 | T69: 1 | V69: http://transparencia12.tlaquepaque.gob.mx/?q=taxonomy/term/682, November 5, 2014
A70: 5- Access to statistics | F70: 1 | G70: 1 | H70: 1 | I70: 1 | J70: 1 | K70: 1 | L70: 1 | M70: 1 | N70: 1 | O70: 1 | P70: 1 | Q70: 1 | R70: 1 | S70: 1 | T70: 1 | V70: http://www.iieg.gob.mx/index.php, Accessed November 5, 2014 http://www3.inegi.org.mx/sistemas/productos/default.aspx?c=265&s=inegi&upc=702825054021&pf=Prod&ef=&f=2&cl=0&tg=8&pg=0
A71: 6- Posting public notices on meetings, resolution, etc. | P71: 1 | Q71: 1 | R71: 1 | S71: 1 | T71: 1 | V71: http://transparencia12.tlaquepaque.gob.mx/?q=taxonomy/term/633, Accessed on november 5, 2014
A72: 7- Reporting complaints, concerns, and emergencies by the local community | L72: 1 | M72: 1 | N72: 1 | O72: 1 | P72: 1 | Q72: 1 | R72: 1 | S72: 1 | T72: 1 | V72: http://transparencia12.tlaquepaque.gob.mx/?q=taxonomy/term/627, Accessed on November 5, 2014
A73: 8- Results of local elections | F73: 1 | G73: 1 | H73: 1 | I73: 1 | J73: 1 | K73: 1 | L73: 1 | M73: 1 | N73: 1 | O73: 1 | P73: 1 | Q73: 1 | R73: 1 | S73: 1 | T73: 1 | V73: http://www.iepcjalisco.org.mx/resultados-electorales
A74: 9- Tax information | N74: 1 | O74: 1 | P74: 1 | Q74: 1 | R74: 1 | S74: 1 | T74: 1 | V74: http://transparencia12.tlaquepaque.gob.mx/?q=taxonomy/term/607#overlay-context=taxonomy/term/437%3Fq%3Dtaxonomy/term/437, Accessed on november 5, 2014
A75: 10- Open tendering procedures | Q75: 1 | R75: 1 | S75: 1 | T75: 1 | V75: http://transparencia12.tlaquepaque.gob.mx/?q=taxonomy/term/113, Accessed on november 5, 2014
A76: Result | F76: =SUM(F66:F75) -> 2 | G76: 2 | H76: 2 | I76: 2 | J76: 2 | K76: 2 | L76: 3 | M76: 3 | N76: 6 | O76: 6 | P76: 8 | Q76: 9 | R76: 10 | S76: 10 | T76: 10
A77: Standardized | F77: =100*(F76/10) -> 20 | G77: 20 | H77: 20 | I77: 20 | J77: 20 | K77: 20 | L77: 30 | M77: 30 | N77: 60 | O77: 60 | P77: 80 | Q77: 90 | R77: 100 | S77: 100 | T77: 100
A79: Tonala
A80: Does the E-government has the following element? YES=1; NO=0
A81: 1- Budgets and spending | M81: 1 | N81: 1 | O81: 1 | P81: 1 | Q81: 1 | R81: 1 | S81: 1 | T81: 1 | V81: http://www.tonala.gob.mx/es/transparencia.php?accion=articulo8, Accessed on November 5, 2014
A82: 2- Senior salaries | P82: 1 | Q82: 1 | R82: 1 | S82: 1 | T82: 1 | V82: http://www.tonala.gob.mx/es/transparencia.php?accion=nomina, accessed on November 5, 2014
A83: 3- Organizational chart | M83: 1 | N83: 1 | O83: 1 | P83: 1 | Q83: 1 | R83: 1 | S83: 1 | T83: 1 | V83: http://www.tonala.gob.mx/es/transparencia.php?accion=articulo8, Accessed on November 5, 2014
A84: 4- Copies of contracts and tenders | M84: 1 | N84: 1 | O84: 1 | P84: 1 | Q84: 1 | R84: 1 | S84: 1 | T84: 1 | V84: http://www.tonala.gob.mx/es/transparencia.php?accion=articulo8, Accessed on November 5, 2014
A85: 5- Access to statistics | F85: 1 | G85: 1 | H85: 1 | I85: 1 | J85: 1 | K85: 1 | L85: 1 | M85: 1 | N85: 1 | O85: 1 | P85: 1 | Q85: 1 | R85: 1 | S85: 1 | T85: 1 | V85: http://www.iieg.gob.mx/index.php, Accessed November 5, 2014 http://www3.inegi.org.mx/sistemas/productos/default.aspx?c=265&s=inegi&upc=702825054021&pf=Prod&ef=&f=2&cl=0&tg=8&pg=0
A86: 6- Posting public notices on meetings, resolution, etc. | N86: 1 | O86: 1 | P86: 1 | Q86: 1 | R86: 1 | S86: 1 | T86: 1 | V86: http://www.tonala.gob.mx/es/transparencia.php?accion=marcoJuridico, Accessed on November 5, 2014
A87: 7- Reporting complaints, concerns, and emergencies by the local community | T87: 1 | V87: http://www.tonala.gob.mx/es/index.php?accion=queja
A88: 8- Results of local elections | F88: 1 | G88: 1 | H88: 1 | I88: 1 | J88: 1 | K88: 1 | L88: 1 | M88: 1 | N88: 1 | O88: 1 | P88: 1 | Q88: 1 | R88: 1 | S88: 1 | T88: 1 | V88: http://www.iepcjalisco.org.mx/resultados-electorales
A89: 9- Tax information | M89: 1 | N89: 1 | O89: 1 | P89: 1 | Q89: 1 | R89: 1 | S89: 1 | T89: 1 | V89: http://www.tonala.gob.mx/es/transparencia.php?accion=articulo8, accessed on november 5, 2014
A90: 10- Open tendering procedures | T90: 1 | V90: http://www.tonala.gob.mx/es/transparencia/CONVOCATORIA%20CASA%20DE%20ARTESANOS%202014.pdf
A91: Result | F91: =SUM(F81:F90) -> 2 | G91: 2 | H91: 2 | I91: 2 | J91: 2 | K91: 2 | L91: 2 | M91: 6 | N91: 7 | O91: 7 | P91: 8 | Q91: 8 | R91: 8 | S91: 8 | T91: 10
A92: Standardized | F92: =100*(F91/10) -> 20 | G92: 20 | H92: 20 | I92: 20 | J92: 20 | K92: 20 | L92: 20 | M92: 60 | N92: 70 | O92: 70 | P92: 80 | Q92: 80 | R92: 80 | S92: 80 | T92: 100
A94: Juanacatlan
A95: Does the E-government has the following element? YES=1; NO=0
A96: 1- Budgets and spending | S96: 1 | T96: 0 | V96: http://juanacatlan.gob.mx/uploads/transparencia/o7wzx9julmvu.pdf
A97: 2- Senior salaries | T97: 1 | V97: http://juanacatlan.gob.mx/transparencia/Articulo-8/1, accessed on november 5, 2014
A98: 3- Organizational chart | R98: 1 | S98: 1 | T98: 1 | V98: http://juanacatlan.gob.mx/uploads/transparencia/azhrzmkedqxh.pdf, accessed on November 5, 2014
A99: 4- Copies of contracts and tenders | F99: 0 | G99: 0 | H99: 0 | I99: 0 | J99: 0 | K99: 0 | L99: 0 | M99: 0 | N99: 0 | O99: 0 | P99: 0 | Q99: 0 | R99: 0 | S99: 0 | T99: 0
A100: 5- Access to statistics | F100: 1 | G100: 1 | H100: 1 | I100: 1 | J100: 1 | K100: 1 | L100: 1 | M100: 1 | N100: 1 | O100: 1 | P100: 1 | Q100: 1 | R100: 1 | S100: 1 | T100: 1 | V100: http://www.iieg.gob.mx/index.php, Accessed November 5, 2014 http://www3.inegi.org.mx/sistemas/productos/default.aspx?c=265&s=inegi&upc=702825054021&pf=Prod&ef=&f=2&cl=0&tg=8&pg=0
A101: 6- Posting public notices on meetings, resolution, etc. | S101: 1 | T101: 1 | V101: http://juanacatlan.gob.mx/eventos
A102: 7- Reporting complaints, concerns, and emergencies by the local community | T102: 1 | V102: http://juanacatlan.gob.mx/contacto
A103: 8- Results of local elections | F103: 1 | G103: 1 | H103: 1 | I103: 1 | J103: 1 | K103: 1 | L103: 1 | M103: 1 | N103: 1 | O103: 1 | P103: 1 | Q103: 1 | R103: 1 | S103: 1 | T103: 1 | V103: http://www.iepcjalisco.org.mx/resultados-electorales
A104: 9- Tax information | S104: 1 | T104: 0 | V104: http://juanacatlan.gob.mx/uploads/transparencia/o7wzx9julmvu.pdf
A105: 10- Open tendering procedures | T105: 0
A106: Result | F106: =SUM(F96:F105) -> 2 | G106: 2 | H106: 2 | I106: 2 | J106: 2 | K106: 2 | L106: 2 | M106: 2 | N106: 2 | O106: 2 | P106: 2 | Q106: 2 | R106: 3 | S106: 6 | T106: 6
A107: Standardized | F107: =100*(F106/10) -> 20 | G107: 20 | H107: 20 | I107: 20 | J107: 20 | K107: 20 | L107: 20 | M107: 20 | N107: 20 | O107: 20 | P107: 20 | Q107: 20 | R107: 30 | S107: 60 | T107: 60
A109: Ixtahuacan de los membrillos
A110: Does the E-government has the following element? YES=1; NO=0
A111: 1- Budgets and spending | R111: 1 | S111: 1 | T111: 0 | V111: http://www.ixtlahuacandelosmembrillos.gob.mx/32_5_i_estados_financieros.php
A112: 2- Senior salaries | S112: 1 | T112: 0 | V112: http://www.ixtlahuacandelosmembrillos.gob.mx/transparencia/documentos/32_5_g_nomina/Nominas.pdf http://www.ixtlahuacandelosmembrillos.gob.mx/transparencia/documentos/32_5_f_remuneraciones/Remuneraciones_Puesto.pdf
A113: 3- Organizational chart | R113: 1 | S113: 1 | T113: 1 | V113: http://www.ixtlahuacandelosmembrillos.gob.mx/transparencia/documentos/32_5_d_organigrama/organigrama.pdf
A114: 4- Copies of contracts and tenders | R114: 0 | S114: 0 | T114: 0
A115: 5- Access to statistics | F115: 1 | G115: 1 | H115: 1 | I115: 1 | J115: 1 | K115: 1 | L115: 1 | M115: 1 | N115: 1 | O115: 1 | P115: 1 | Q115: 1 | R115: 1 | S115: 1 | T115: 1 | V115: http://www.iieg.gob.mx/index.php, Accessed November 5, 2014 http://www3.inegi.org.mx/sistemas/productos/default.aspx?c=265&s=inegi&upc=702825054021&pf=Prod&ef=&f=2&cl=0&tg=8&pg=0
A116: 6- Posting public notices on meetings, resolution, etc. | P116: 1 | Q116: 1 | R116: 1 | S116: 1 | T116: 1 | V116: http://www.ixtlahuacandelosmembrillos.gob.mx/gactasMunicipales.php
A117: 7- Reporting complaints, concerns, and emergencies by the local community | T117: 1 | V117: http://capturaportal.jalisco.gob.mx/wps/portal/pj/contacto/denuncianonima/!ut/p/c5/04_SB8K8xLLM9MSSzPy8xBz9CP0os3ifEB8PY68gIwML80BXA08DUxczA1d3Qy8fA6B8JJK8v4mPsYGRm7-Po0uQqwEQENAdDrIPv36QvAEO4GiAV79JiLG-n0d-bqp-QW6EQWZAuiIA5vuCCA!!/dl3/d3/L2dBISEvZ0FBIS9nQSEh/
A118: 8- Results of local elections | F118: 1 | G118: 1 | H118: 1 | I118: 1 | J118: 1 | K118: 1 | L118: 1 | M118: 1 | N118: 1 | O118: 1 | P118: 1 | Q118: 1 | R118: 1 | S118: 1 | T118: 1 | V118: http://www.iepcjalisco.org.mx/resultados-electorales
A119: 9- Tax information | R119: 1 | S119: 1 | T119: 0 | V119: http://www.ixtlahuacandelosmembrillos.gob.mx/32_5_i_estados_financieros.php
A120: 10- Open tendering procedures | R120: 0 | S120: 0 | T120: 0
A121: Result | F121: =SUM(F111:F120) -> 2 | G121: 2 | H121: 2 | I121: 2 | J121: 2 | K121: 2 | L121: 2 | M121: 2 | N121: 2 | O121: 2 | P121: 3 | Q121: 3 | R121: 6 | S121: 7 | T121: 5
A122: Standardized | F122: =100*(F121/10) -> 20 | G122: 20 | H122: 20 | I122: 20 | J122: 20 | K122: 20 | L122: 20 | M122: 20 | N122: 20 | O122: 20 | P122: 30 | Q122: 30 | R122: 60 | S122: 70 | T122: 50
A124: Result metropolitan area | F124: =AVERAGE(F121,F106,F91,F60,F45,F30,F15,) -> 1.75 | G124: 1.75 | H124: 1.75 | I124: 1.75 | J124: 1.875 | K124: 1.875 | L124: 1.875 | M124: 2.625 | N124: 3.125 | O124: 3.25 | P124: 4.375 | Q124: 5.125 | R124: 6 | S124: 6.5 | T124: 7.625
A125: Average metropolitan area | F125: =AVERAGE(F122,F107,F92,F61,F31,F16,F46,F77) -> 20 | G125: 20 | H125: 20 | I125: 20 | J125: 21.25 | K125: 21.25 | L125: 22.5 | M125: 30 | N125: 38.75 | O125: 40 | P125: 53.75 | Q125: 62.5 | R125: 72.5 | S125: 77.5 | T125: 88.75

Sheet Own revenue collection
A1: Municipio | B1: 2008 | D1: 2009 | F1: 2010 | H1: 2011 | J1: 2012
B2: Propios | C2: Totales | D2: Propios | E2: Totales | F2: Propios | G2: Totales | H2: Propios | I2: Totales | J2: Propios | K2: Totales
A3: Guadalajara | B3: 2121854.281 | C3: 7691249.63 | D3: 1770391.034 | E3: 5797242.537 | F3: 1774012.16 | G3: 6707387.65 | H3: 1400114.882 | I3: 5601358.834 | J3: 1223179.799 | K3: 5057114.815
A4: El Salto | B4: 109170.634 | C4: 400460.8453 | D4: 104200.2765 | E4: 377159.3472 | F4: 84094.96274 | G4: 337518.7178 | H4: 166478.5485 | I4: 412623.1876 | J4: 192288.3705 | K4: 418210.9588
A5: Tlajomulco | B5: 547493.3061 | C5: 1172107.661 | D5: 469904.1418 | E5: 1282065.378 | F5: 510502.4193 | G5: 1156831.162 | H5: 774472.846 | I5: 1200536.452 | J5: 872420.6002 | K5: 1214381.724
A6: Traquepaque | B6: 400601.5541 | C6: 1334408.143 | D6: 466213.5168 | E6: 1385759.51 | F6: 382912.692 | G6: 1328294.544 | H6: 667735.5802 | I6: 1689126.895 | J6: 794472.8677 | K6: 1833569.589
A7: tonala | B7: 261938.1172 | C7: 838512.1677 | D7: 234128.6634 | E7: 1035886.389 | F7: 239591.8157 | G7: 1387943.294 | H7: 211713.9878 | I7: 849704.5633 | J7: 197899.0724 | K7: 856442.2168
A8: Zapopan | B8: 1728417.7 | C8: 4708625.622 | D8: 1809123.19 | E8: 4604065.546 | F8: 1705405.454 | G8: 4071267.046 | H8: 1811710.412 | I8: 4212618.63 | J8: 2076147.368 | K8: 5273550.784
A9: Juanacatlan | B9: 6427.346302 | C9: 60890.5397 | D9: 8579.644503 | E9: 94546.23079 | F9: 17597.21349 | G9: 44558.95772 | H9: 15413.95957 | I9: 38474.11628 | J9: 20703.90708 | K9: 33129.80291
A10: Ixtahuacan | B10: 59825.65882 | C10: 126862.7725 | D10: 80630.26004 | E10: 146726.7522 | F10: 33472.57805 | G10: 101398.8154 | H10: 82395.15389 | I10: 139737.7014 | J10: 91992.05448 | K10: 144816.2565
B11: =SUM(B3:B10) -> 5235728.598 | C11: 16333117.38 | D11: 4943170.726 | E11: 14723451.69 | F11: 4747589.295 | G11: 15135200.19 | H11: 5130035.37 | I11: 14144180.38 | J11: 5469104.039 | K11: 14831216.15
B12: =B11/C11 -> 0.3205590504 | D12: =D11/E11 -> 0.3357345024 | F12: =F11/G11 -> 0.3136786588 | H12: =H11/I11 -> 0.362695839 | J12: =J11/K11 -> 0.3687562763
B14: 2008 | C14: 2009 | D14: 2010 | E14: 2011 | F14: 2012
A15: Guadalajara ciudad | B15: 0.3205590504 | C15: 0.3351678584 | D15: 0.313326009 | E15: 0.3603206061 | F15: 0.3655435303

Sheet Sprawl
A1: SEDESOL
A2: Version:
A3: More information at:
A4: Source. | B4: Mexico, la expansion de las ciudades 1980-2010
A6: Note:
A8: META | B8: City | C8: Country | D8: Size of City | E8: Urban Population | J8: Population Growth | L8: Surface | Q8: Urban expansion rate | S8: Sprawl index | V8: Index Normalization | X8: Empty houses (viviendas deshabitatdas) | Z8: Temporal Houses (viviendas de uso temporal
A9: ID | B9: name | C9: COUNTRY_NAME | T9: SPRAWL
A10: PARSETYPE | B10: S | C10: C | T10: F
A11: UNIT | B11: NA | C11: NA | L11: Hectares | T11: % | V11: 1 | W11: 3
A12: DESCRIPTION | B12: NA | C12: NA | E12: Inhabitants | F12: Inhabitants | G12: Inhabitants | H12: Inhabitants | L12: Built-up area of the city, which includes only the blocks | S12: The sprawl index (SI) measures the growth in built-up area adjusted for the growth in city population in the same period. | V12: min | W12: max | X12: Number | Y12: % | Z12: Number | AA12: %
A13: YEAR | D13: 2010 | E13: 1980 | F13: 2000 | G13: 2005 | H13: 2010 | I13: 1980-2000 | J13: 1980-2010 | K13: 2000-2010 | L13: 1980 | M13: 2000 | N13: 2005 | O13: 2010 | P13: 1980-2000 | Q13: 1980-2010 | R13: 2000-2010 | S13: 1980-2000 | T13: 1980-2010 | U13: 2000-2010 | V13: 1980-2010 | W13: 2000-2010 | X13: 2010 | Y13: 2010 | Z13: 2010 | AA13: 2010
B14: HIDALGO DEL PARRAL | C14: MEXICO | E14: 75590 | F14: 98876 | G14: 101147 | H14: 104836 | I14: =F14/E14 -> 1.308056621 | J14: =H14/E14 -> 1.38690303 | K14: =H14/F14 -> 1.060277519 | L14: 430 | M14: 1557 | N14: 1631 | O14: 2016 | P14: =N14/L14 -> 3.793023256 | Q14: =O14/L14 -> 4.688372093 | R14: =O14/M14 -> 1.294797688 | S14: =P14/I14 -> 2.899739349 | T14: 3.380461354 | U14: 1.221187533 | V14: =1-(T14-$V$11)/($W$11-$V$11) -> -0.190230677 | W14: 0.8894062336 | Y14: 11 | AA14: 4.1
B15: TUXPEC | C15: MEXICO | E15: 29050 | F15: 87071 | G15: 97241 | H15: 105182 | I15: 2.997280551 | J15: 3.620722892 | K15: 1.208002664 | L15: 329 | M15: 3628 | N15: 3741 | O15: 3856 | P15: 11.37082067 | Q15: 11.72036474 | R15: 1.062844542 | S15: 3.793712492 | T15: 3.237023405 | U15: 0.8798362567 | V15: -0.1185117023 | W15: 1.060081872 | Y15: 14.7 | AA15: 4.7
B16: TUXPAM | C16: MEXICO | E16: 56037 | F16: 93531 | G16: 100586 | H16: 108418 | I16: 1.669093635 | J16: 1.934757392 | K16: 1.15916648 | L16: 214 | M16: 2068 | N16: 2185 | O16: 2299 | P16: 10.21028037 | Q16: 10.74299065 | R16: 1.111702128 | S16: 6.117260388 | T16: 5.552629335 | U16: 0.9590530327 | V16: -1.276314668 | W16: 1.020473484 | Y16: 12.3 | AA16: 5.7
B17: MOROLEON | C17: MEXICO | E17: 75169 | F17: 100063 | G17: 99828 | H17: 108669 | I17: 1.331173755 | J17: 1.445662441 | K17: 1.086005816 | L17: 273 | M17: 1563 | N17: 1871 | O17: 1910 | P17: 6.853479853 | Q17: 6.996336996 | R17: 1.222008957 | S17: 5.148448748 | T17: 4.839537087 | U17: 1.125232424 | V17: -0.9197685434 | W17: 0.937383788 | Y17: 20.2 | AA17: 7.1
B18: GUANAJUATO | C18: MEXICO | E18: 48981 | F18: 93513 | G18: 101564 | H18: 110011 | I18: 1.909168861 | J18: 2.245993344 | K18: 1.176424668 | L18: 182 | M18: 1414 | N18: 1841 | O18: 1921 | P18: 10.11538462 | Q18: 10.55494505 | R18: 1.358557284 | S18: 5.298318457 | T18: 4.699455179 | U18: 1.154818767 | V18: 0 | W18: 0.9225906167 | Y18: 12.2 | AA18: 6.2
B19: ACAYUCAN | C19: MEXICO | E19: 52106 | F19: 102992 | G19: 105552 | H19: 112996 | I19: 1.97658619 | J19: 2.168579434 | K19: 1.097133758 | L19: 544 | M19: 1447 | N19: 1480 | O19: 1584 | P19: 2.720588235 | Q19: 2.911764706 | R19: 1.094678645 | S19: 1.376407591 | T19: 1.342706041 | U19: 0.9977622487 | V19: =1-(T19-$V$11)/($W$11-$V$11) -> 0.8286469797 | W19: 1.001118876 | Y19: 12.7 | AA19: 4
B20: NAVOJOA | C20: MEXICO | E20: 62901 | F20: 98187 | G20: 103312 | H20: 113836 | I20: 1.560976773 | J20: 1.809764551 | K20: 1.159379551 | L20: 387 | M20: 2230 | N20: 2360 | O20: 2385 | P20: 6.098191214 | Q20: 6.162790698 | R20: 1.069506726 | S20: 3.906650835 | T20: 3.405299709 | U20: 0.9224819649 | V20: -0.2026498545 | W20: 1.038759018 | Y20: 14.1 | AA20: 3
B21: CUAUHTEMOC | C21: MEXICO | E21: 43456 | F21: 85387 | G21: 98725 | H21: 114007 | I21: 1.964907032 | J21: 2.623504234 | K21: 1.335179828 | L21: 180 | M21: 3171 | N21: 3262 | O21: 4075 | P21: 18.12222222 | Q21: 22.63888889 | R21: 1.28508357 | S21: 9.222941301 | T21: 8.629255708 | U21: 0.9624797668 | V21: -2.814627854 | W21: 1.018760117 | Y21: 10.4 | AA21: 3.6
B22: DELICIAS | C22: MEXICO | E22: 65504 | F22: 98615 | G22: 108187 | H22: 118071 | I22: 1.505480581 | J22: 1.802500611 | K22: 1.197292501 | L22: 447 | M22: 1964 | N22: 2082 | O22: 2227 | P22: 4.657718121 | Q22: 4.982102908 | R22: 1.133910387 | S22: 3.093841381 | T22: 2.763995129 | U22: 0.9470621305 | V22: 0.1180024354 | W22: 1.026468935 | Y22: 16.1 | AA22: 2.4
B23: IGUALA | C23: MEXICO | E23: 66005 | F23: 104759 | G23: 110390 | H23: 118468 | I23: 1.587137338 | J23: 1.794833725 | K23: 1.130862265 | L23: 134 | M23: 1760 | N23: 2141 | O23: 2410 | P23: 15.97761194 | Q23: 17.98507463 | R23: 1.369318182 | S23: 10.06693722 | T23: 10.0204684 | U23: 1.210862034 | V23: -3.510234201 | W23: 0.8945689831 | Y23: 17 | AA23: 5.5
B24: VALLES | C24: MEXICO | E24: 65609 | F24: 105721 | G24: 116261 | H24: 124644 | I24: 1.611379536 | J24: 1.899800332 | K24: 1.178989983 | L24: 475 | M24: 2585 | N24: 2720 | O24: 2769 | P24: 5.726315789 | Q24: 5.829473684 | R24: 1.071179884 | S24: 3.5536729 | T24: 3.068466504 | U24: 0.9085572391 | V24: -0.03423325209 | W24: 1.04572138 | Y24: 13.7 | AA24: 4
B25: FRESNILLO | C25: MEXICO | E25: 56066 | F25: 101151 | G25: 115432 | H25: 125846 | I25: 1.804141547 | J25: 2.244604573 | K25: 1.244139949 | L25: 467 | M25: 1796 | N25: 2103 | O25: 2238 | P25: 4.503211991 | Q25: 4.792291221 | R25: 1.24610245 | S25: 2.496041399 | T25: 2.135026934 | U25: 1.001577395 | V25: 0.4324865329 | W25: 0.9992113023 | Y25: 13.8 | AA25: 3.4
B26: CABO SAN LUCAS | C26: MEXICO | E26: - | F26: 48143 | G26: 87876 | H26: 128057 | K26: 2.659929792 | L26: 27 | M26: 802 | N26: 1343 | O26: 2086 | P26: 49.74074074 | Q26: 77.25925926 | R26: 2.600997506 | U26: 0.9778444204 | V26: 1.5 | W26: 1.01107779 | Y26: 18.5 | AA26: 4.2
B27: MANZANILLO | C27: MEXICO | E27: 39088 | F27: 94893 | G27: 110728 | H27: 130035 | I27: =F27/E27 -> 2.427676013 | J27: =H27/E27 -> 3.326724314 | K27: 1.370332901 | L27: 123 | M27: 3004 | N27: 3199 | O27: 3551 | P27: 26.00813008 | Q27: 28.8699187 | R27: 1.182090546 | S27: =P27/I27 -> 10.71317999 | T27: 8.67818189 | U27: 0.8626302009 | V27: -2.839090945 | W27: 1.0686849 | Y27: 13.3 | AA27: 13.4
B28: ACUNA | C28: MEXICO | E28: 38898 | F28: 108159 | G28: 124232 | H28: 134233 | I28: 2.780579978 | J28: 3.450897218 | K28: 1.241071016 | L28: 587 | M28: 2652 | N28: 3010 | O28: 3346 | P28: 5.127768313 | Q28: 5.700170358 | R28: 1.261689291 | S28: 1.844136243 | T28: 1.651793721 | U28: 1.016613292 | V28: 0.6741031394 | W28: 0.991693354 | Y28: 18.8 | AA28: 3
B29: FERNANDEZ | C29: MEXICO | E29: 102567 | F29: 128935 | G29: 126997 | H29: 135452 | I29: 1.257080737 | J29: 1.320619692 | K29: 1.050544848 | L29: 107 | M29: 3803 | N29: 3995 | O29: 3686 | P29: 37.3364486 | Q29: 34.44859813 | R29: 0.9692348146 | S29: 29.70091537 | T29: 26.08517677 | U29: 0.9226020348 | V29: -11.54258839 | W29: 1.038698983 | Y29: 14.9 | AA29: 5.7
B30: LAZARO CARDENAS | C30: MEXICO | E30: 94753 | F30: 126828 | G30: 126709 | H30: 137306 | I30: 1.338511709 | J30: 1.44909396 | K30: 1.082615826 | L30: 181 | M30: 5488 | N30: 5754 | O30: 5753 | P30: 31.79005525 | Q30: 31.78453039 | R30: 1.048287172 | S30: 23.75030045 | T30: 21.9340714 | U30: 0.9682910102 | V30: -9.4670357 | W30: 1.015854495 | Y30: 10.1 | AA30: 2.8
B31: SAN JUAN DEL RIO | C31: MEXICO | E31: 27204 | F31: 99483 | G31: 120984 | H31: 138878 | I31: 3.656925452 | J31: 5.10505808 | K31: 1.395997306 | L31: 79 | M31: 2571 | N31: 2986 | O31: 3070 | P31: 37.79746835 | Q31: 38.86075949 | R31: 1.194087904 | S31: 10.33585969 | T31: 7.612207126 | U31: 0.8553654784 | V31: -2.306103563 | W31: 1.072317261 | Y31: 21.4 | AA31: 2.9
B32: OCOTLAN | C32: MEXICO | E32: 59196 | F32: 125027 | G32: 133157 | H32: 141375 | I32: 2.112085276 | J32: 2.388252585 | K32: 1.130755757 | L32: 380 | M32: 2083 | N32: 2179 | O32: 2384 | P32: 5.734210526 | Q32: 6.273684211 | R32: 1.14450312 | S32: 2.714952181 | T32: 2.626893089 | U32: 1.012157677 | V32: 0.1865534553 | W32: 0.9939211613 | Y32: 11.5 | AA32: 10.4
B33: TECOMAN | C33: MEXICO | E33: 88911 | F33: 127863 | G33: 123089 | H33: 141421 | I33: 1.438101022 | J33: 1.590590591 | K33: 1.106035366 | L33: 415 | M33: 2344 | N33: 2426 | O33: 2500 | P33: 5.845783133 | Q33: 6.024096386 | R33: 1.066552901 | S33: 4.064932186 | T33: 3.787333096 | U33: 0.9643027102 | V33: -0.3936665479 | W33: 1.017848645 | Y33: 12.1 | AA33: 5.1
B34: PLAYA DEL CARMEN | C34: MEXICO | E34: - | F34: 43613 | G34: 100383 | H34: 149923 | K34: 3.437575952 | L34: - | M34: 748 | N34: 1236 | O34: 3256 | R34: 4.352941176 | U34: 1.266282182 | V34: 1.5 | W34: 0.8668589091 | Y34: 20.6 | AA34: 7.4
B35: CHETUMAL | C35: MEXICO | E35: 56709 | F35: 121602 | G35: 136825 | H35: 151243 | I35: =F35/E35 -> 2.144315717 | J35: =H35/E35 -> 2.66700171 | K35: 1.243754215 | L35: 676 | M35: 2287 | N35: 2394 | O35: 2588 | P35: =N35/L35 -> 3.541420118 | Q35: =O35/L35 -> 3.828402367 | R35: 1.131613467 | S35: =P35/I35 -> 1.651538572 | T35: 1.435470533 | U35: 0.9098368907 | V35: 0.7822647335 | W35: 1.045081555 | Y35: 12 | AA35: 4.1
B36: SAN CRISTOBAL DE LAS CASAS | C36: MEXICO | E36: 42026 | F36: 112442 | G36: 142364 | H36: 158027 | I36: 2.675534193 | J36: 3.760219864 | K36: 1.405409011 | L36: 157 | M36: 2971 | N36: 3017 | O36: 3110 | P36: 19.21656051 | Q36: 19.8089172 | R36: 1.046785594 | S36: 7.182326639 | T36: 5.268020997 | U36: 0.7448263004 | V36: -1.134010499 | W36: 1.12758685 | Y36: 9.7 | AA36: 7
B37: SAN LUIS RIO COLORADO | C37: MEXICO | E37: 76684 | F37: 126645 | G37: 138796 | H37: 158089 | I37: 1.651517918 | J37: 2.061564342 | K37: 1.248284575 | L37: 1387 | M37: 3791 | N37: 4378 | O37: 4527 | P37: 3.156452776 | Q37: 3.263878875 | R37: 1.194144025 | S37: 1.911243434 | T37: 1.583204952 | U37: 0.9566280392 | V37: 0.708397524 | W37: 1.02168598 | Y37: 15.6 | AA37: 5.5
B38: SALAMANCA | C38: MEXICO | E38: 96703 | F38: 137000 | G38: 143838 | H38: 160169 | I38: 1.416708892 | J38: 1.65629815 | K38: 1.169116788 | L38: 405 | M38: 2499 | N38: 2628 | O38: 2710 | P38: 6.488888889 | Q38: 6.691358025 | R38: 1.084433774 | S38: 4.580255637 | T38: 4.039947774 | U38: 0.9275666763 | V38: -0.5199738871 | W38: 1.036216662 | Y38: 11 | AA38: 2.5
B39: TEHUANTEPEC | C39: MEXICO | E39: 70682 | F39: 145567 | G39: 150281 | H39: 161337 | I39: 2.059463513 | J39: 2.282575479 | K39: 1.108334994 | L39: 1138 | M39: 3712 | N39: 4209 | O39: 4375 | P39: 3.698594025 | Q39: 3.844463972 | R39: 1.178609914 | S39: 1.795901701 | T39: 1.684265869 | U39: 1.063405848 | V39: 0.6578670656 | W39: 0.9682970759 | Y39: 13.6 | AA39: 5.5
B40: CIUDAD DEL CARMEN | C40: MEXICO | E40: 72487 | F40: 126024 | G40: 154197 | H40: 169466 | I40: 1.738573813 | J40: 2.337881275 | K40: 1.344712118 | L40: 204 | M40: 2191 | N40: 2203 | O40: 2603 | P40: 10.79901961 | Q40: 12.75980392 | R40: 1.18804199 | S40: 6.211424287 | T40: 5.457849403 | U40: 0.8834916959 | V40: -1.228924701 | W40: 1.058254152 | Y40: 15.6 | AA40: 5.5
B41: PIEDRAS NEGRAS | C41: MEXICO | E41: 80290 | F41: 151149 | G41: 169771 | H41: 180734 | I41: 1.882538299 | J41: 2.25101507 | K41: 1.195734011 | L41: 547 | M41: 5463 | N41: 5848 | O41: 6250 | P41: 10.69104205 | Q41: 11.42595978 | R41: 1.14406004 | S41: 5.679056864 | T41: 5.075914387 | U41: 0.956784728 | V41: -1.037957193 | W41: 1.021607636 | Y41: 9.7 | AA41: 7
B42: SAN FRANCISCO DEL RINCON | C42: MEXICO | E42: 66575 | F42: 145017 | G42: 159127 | H42: 182365 | I42: 2.178250094 | J42: 2.739241457 | K42: 1.257542219 | L42: 325 | M42: 2192 | N42: 2265 | O42: 2369 | P42: 6.969230769 | Q42: 7.289230769 | R42: 1.080748175 | S42: 3.199463087 | T42: 2.661039884 | U42: 0.859413035 | V42: 0.169480058 | W42: 1.070293483 | Y42: 16.7 | AA42: 3.3
B43: CHILPANCINGO | C43: MEXICO | E43: 67498 | F43: 142746 | G43: 166796 | H43: 187251 | I43: 2.114818217 | J43: 2.774171087 | K43: 1.311777563 | L43: 175 | M43: 1744 | N43: 2441 | O43: 2704 | P43: 13.94857143 | Q43: 15.45142857 | R43: 1.550458716 | S43: 6.595636125 | T43: 5.569746093 | U43: 1.181952459 | V43: -1.284873047 | W43: 0.9090237707 | Y43: 12 | AA43: 7.5
B44: TAPACHULA | C44: MEXICO | E44: 85766 | F44: 179839 | G44: 189991 | H44: 202672 | I44: 2.096856563 | J44: 2.363080941 | K44: 1.126963562 | L44: 452 | M44: 3313 | N44: 3379 | O44: 3581 | P44: 7.475663717 | Q44: 7.922566372 | R44: 1.08089345 | S44: 3.565176488 | T44: 3.352642829 | U44: 0.9591201407 | V44: -0.1763214145 | W44: 1.02043993 | Y44: 13.5 | AA44: 4.6
B45: GUAYMAS | C45: MEXICO | E45: 139025 | F45: 180316 | G45: 184816 | H45: 203430 | I45: 1.297004136 | J45: 1.463262003 | K45: 1.128186073 | L45: 371 | M45: 2971 | N45: 3206 | O45: 3392 | P45: 8.641509434 | Q45: 9.142857143 | R45: 1.14170313 | S45: 6.662669142 | T45: 6.248270728 | U45: 1.01198123 | V45: -1.624135364 | W45: 0.994009385 | Y45: 14.5 | AA45: 7.5
B46: TULA | C46: MEXICO | E46: 57604 | F46: 169901 | G46: 184691 | H46: 205812 | I46: 2.949465315 | J46: 3.572876884 | K46: 1.211364265 | L46: 323 | M46: 6340 | N46: 7111 | O46: 7709 | P46: 22.01547988 | Q46: 23.86687307 | R46: 1.215930599 | S46: 7.464227419 | T46: 6.680015529 | U46: 1.00376958 | V46: -1.840007764 | W46: 0.9981152101 | Y46: 16 | AA46: 6.7
B47: NOGALES | C47: MEXICO | E47: 65603 | F47: 156854 | G47: 189759 | H47: 212533 | I47: 2.390957731 | J47: 3.239684161 | K47: 1.354973415 | L47: 540 | M47: 2443 | N47: 2865 | O47: 3347 | P47: 5.305555556 | Q47: 6.198148148 | R47: 1.37003684 | S47: 2.219008512 | T47: 1.913195188 | U47: 1.011117137 | V47: 0.5434024058 | W47: 0.9944414315 | Y47: 17 | AA47: 2.8
B48: LA PAZ | C48: MEXICO | E48: 91453 | F48: 162954 | G48: 189176 | H48: 215178 | I48: 1.781833291 | J48: 2.352880715 | K48: 1.320483081 | L48: 1885 | M48: 2742 | N48: 3516 | O48: 3896 | P48: 1.865251989 | Q48: 2.066843501 | R48: 1.420860686 | S48: 1.046816219 | T48: 0.8784310605 | U48: 1.07601582 | V48: 1.06078447 | W48: 0.9619920899 | Y48: 13.8 | AA48: 4.2
B49: CAMPECHE | C49: MEXICO | E49: 128434 | F49: 190813 | G49: 211671 | H49: 220389 | I49: 1.485689148 | J49: 1.715970849 | K49: 1.154999921 | L49: 961 | M49: 3869 | N49: 4121 | O49: 4279 | P49: 4.288241415 | Q49: 4.452653486 | R49: 1.105970535 | S49: 2.886365174 | T49: 2.594830494 | U49: 0.9575503119 | V49: 0.2025847528 | W49: 1.021224844 | Y49: 11.3 | AA49: 5.2
B50: TULANCINGO | C50: MEXICO | E50: 70782 | F50: 193638 | G50: 204708 | H50: 239579 | I50: 2.735695516 | J50: 3.384744709 | K50: 1.237251986 | L50: 278 | M50: 5050 | N50: 5718 | O50: 6479 | P50: 20.56834532 | Q50: 23.3057554 | R50: 1.282970297 | S50: 7.518506795 | T50: 6.885528274 | U50: 1.036951496 | V50: -1.942764137 | W50: 0.9815242522 | Y50: 19.3 | AA50: 3.9
B51: LA PIEDAD | C51: MEXICO | E51: 168713 | F51: 229372 | G51: 229289 | H51: 249512 | I51: 1.359539573 | J51: 1.478913895 | K51: 1.087804963 | L51: 442 | M51: 3063 | N51: 3282 | O51: 3309 | P51: 7.425339367 | Q51: 7.486425339 | R51: 1.080313418 | S51: 5.461657397 | T51: 5.062110353 | U51: 0.9931131543 | V51: =1-(T51-$V$11)/($W$11-$V$11) -> -1.031055176 | W51: 1.003443423 | Y51: 17 | AA51: 6.7
B52: ZAMORA | C52: MEXICO | E52: 148721 | F52: 216048 | G52: 230777 | H52: 250113 | I52: 1.452706746 | J52: 1.681759805 | K52: 1.157673295 | L52: 660 | M52: 3096 | N52: 3141 | O52: 3405 | P52: 4.759090909 | Q52: 5.159090909 | R52: 1.099806202 | S52: 3.276016251 | T52: 3.067674048 | U52: 0.9500143145 | V52: -0.03383702385 | W52: 1.024992843 | Y52: 17 | AA52: 5.2
B53: LOS MOCHIS | C53: MEXICO | E53: 122531 | F53: 200906 | G53: 231997 | H53: 256613 | I53: 1.639634052 | J53: 2.094270021 | K53: 1.277278926 | L53: 878 | M53: 2587 | N53: 2994 | O53: 3273 | P53: 3.410022779 | Q53: 3.727790433 | R53: 1.265172014 | S53: 2.079746255 | T53: 1.779995127 | U53: 0.9905213244 | V53: 0.6100024365 | W53: 1.004739338 | Y53: 21.4 | AA53: 2.9
B54: URUAPAN | C54: MEXICO | E54: 122828 | F54: 229819 | G54: 243478 | H54: 269575 | I54: 1.871063601 | J54: 2.194735728 | K54: 1.172988308 | L54: 902 | M54: 3402 | N54: 3529 | O54: 3664 | P54: 3.912416851 | Q54: 4.062084257 | R54: 1.077013521 | S54: 2.091012218 | T54: 1.850830697 | U54: 0.9181792469 | V54: 0.5745846515 | W54: 1.040910377 | Y54: 12.4 | AA54: 3.1
B55: ENSENADA | C55: MEXICO | E55: 120483 | F55: 231241 | G55: 268716 | H55: 288597 | I55: 1.919283218 | J55: 2.395333782 | K55: 1.248035599 | L55: 1689 | M55: 5389 | N55: 5865 | O55: 6323 | P55: 3.472468917 | Q55: 3.743635287 | R55: 1.173316014 | S55: 1.809252998 | T55: 1.562886691 | U55: 0.9401302453 | V55: 0.7185566546 | W55: 1.029934877 | Y55: 14 | AA55: 5.7
B56: TEHUACAN | C56: MEXICO | E56: 113107 | F56: 240507 | G56: 279409 | H56: 296899 | I56: 2.126367068 | J56: 2.624939217 | K56: 1.234471346 | L56: 718 | M56: 6140 | N56: 6262 | O56: 6469 | P56: 8.721448468 | Q56: 9.009749304 | R56: 1.053583062 | S56: 4.101572394 | T56: 3.432364927 | U56: 0.8534690298 | V56: -0.2161824635 | W56: 1.073265485 | Y56: 14.3 | AA56: 4.4
B57: ZACATECAS | C57: MEXICO | E57: 140166 | F57: 232965 | G57: 261422 | H57: 298167 | I57: 1.66206498 | J57: 2.127241985 | K57: 1.279878952 | L57: 445 | M57: 2501 | N57: 3094 | O57: 3592 | P57: 6.952808989 | Q57: 8.071910112 | R57: 1.43622551 | S57: 4.183235356 | T57: 3.794542497 | U57: 1.122157301 | V57: -0.3972712487 | W57: 0.9389213496 | Y57: 15.4 | AA57: 6.6
B58: CIUDAD OBREGON | C58: MEXICO | E58: 165572 | F58: 255425 | G58: 275502 | H58: 303126 | I58: 1.542682338 | J58: 1.830780567 | K58: 1.186751493 | L58: 1020 | M58: 3369 | N58: 3800 | O58: 4100 | P58: 3.725490196 | Q58: 4.019607843 | R58: 1.216978332 | S58: 2.414943184 | T58: 2.195570521 | U58: 1.025470235 | V58: 0.4022147394 | W58: 0.9872648826 | Y58: 3.4 | AA58: 18.4
B59: CIUDAD VICTORIA | C59: MEXICO | E59: 140161 | F59: 249029 | G59: 278455 | H59: 305155 | I59: 1.776735326 | J59: 2.17717482 | K59: 1.225379373 | L59: 709 | M59: 4063 | N59: 4274 | O59: 4444 | P59: 6.028208745 | Q59: 6.267983075 | R59: 1.093773074 | S59: 3.39285692 | T59: 2.878952584 | U59: 0.8925995473 | V59: 0.06052370805 | W59: 1.053700226 | Y59: 11.1 | AA59: 5.2
B60: CORDOBA | C60: MEXICO | E60: 156076 | F60: 276553 | G60: 293768 | H60: 316032 | I60: 1.771912402 | J60: 2.024859684 | K60: 1.14275383 | L60: 901 | M60: 3801 | N60: 3835 | O60: 4298 | P60: 4.256381798 | Q60: 4.770255272 | R60: 1.130755064 | S60: 2.40214008 | T60: 2.355844857 | U60: 0.9895001308 | V60: 0.3220775715 | W60: 1.005249935 | Y60: 11.8 | AA60: 3.3
B61: MONCLOVA | C61: MEXICO | E61: 170478 | F61: 282853 | G61: 294191 | H61: 317313 | I61: 1.659175964 | J61: 1.861313483 | K61: 1.121830067 | L61: 1589 | M61: 8124 | N61: 8536 | O61: 8690 | P61: 5.371932033 | Q61: 5.468848332 | R61: 1.069670113 | S61: 3.237710857 | T61: 2.938166183 | U61: 0.9535045855 | V61: 0.03091690856 | W61: 1.023247707 | Y61: 8.5 | AA61: 3.3
B62: COLIMA | C62: MEXICO | E62: 119969 | F62: 275677 | G62: 294828 | H62: 334240 | I62: 2.297901958 | J62: 2.786053064 | K62: 1.212433391 | L62: 920 | M62: 5355 | N62: 5774 | O62: 6369 | P62: 6.276086957 | Q62: 6.922826087 | R62: 1.189355742 | S62: 2.731224861 | T62: 2.484814872 | U62: 0.9809658418 | V62: 0.257592564 | W62: 1.009517079 | Y62: 16.1 | AA62: 6
B63: CELAYA | C63: MEXICO | E63: 141675 | F63: 277750 | G63: 310750 | H63: 340387 | I63: 1.960472913 | J63: 2.402590436 | K63: 1.225515752 | L63: 694 | M63: 3569 | N63: 4194 | O63: 4471 | P63: 6.043227666 | Q63: 6.442363112 | R63: 1.252731858 | S63: 3.08253566 | T63: 2.681423773 | U63: 1.022207879 | V63: 0.1592881133 | W63: 0.9888960603 | Y63: 17.4 | AA63: 4.1
B64: COATZACOALCOS | C64: MEXICO | E64: 207746 | F64: 307724 | G64: 321182 | H64: 347257 | I64: 1.481251143 | J64: 1.671546023 | K64: 1.128469018 | L64: 845 | M64: 6141 | N64: 6356 | O64: 6625 | P64: 7.521893491 | Q64: 7.840236686 | R64: 1.078814525 | S64: 5.078067636 | T64: 4.690410303 | U64: 0.9559983557 | V64: -0.8452051516 | W64: 1.022000822 | Y64: 15.8 | AA64: 4.6
B65: MINATITLAN | C65: MEXICO | E65: 217025 | F65: 323389 | G65: 330781 | H65: 356137 | I65: 1.490100219 | J65: 1.640995277 | K65: 1.10126504 | L65: 2130 | M65: 7631 | N65: 7686 | O65: 8292 | P65: 3.608450704 | Q65: 3.892957746 | R65: 1.086620364 | S65: 2.421616116 | T65: 2.372315022 | U65: 0.9867019518 | V65: 0.3138424891 | W65: 1.006649024 | Y65: 11.4 | AA65: 3.6
B66: PUERTO VALLARTA | C66: MEXICO | E66: 57028 | F66: 244536 | G66: 304107 | H66: 379886 | I66: 4.287998878 | J66: 6.661394403 | K66: 1.553497236 | L66: 285 | M66: 5070 | N66: 5819 | O66: 6242 | P66: 20.41754386 | Q66: 21.90175439 | R66: 1.231163708 | S66: 4.761555318 | T66: 3.28786333 | U66: 0.7925110389 | V66: -0.1439316652 | W66: 1.103744481 | Y66: 19.2 | AA66: 10.6
B67: MAZATLAN | C67: MEXICO | E67: 199830 | F67: 327989 | G67: 352471 | H67: 381583 | I67: 1.641340139 | J67: 1.909538107 | K67: 1.163401821 | L67: 856 | M67: 3908 | N67: 4171 | O67: 4363 | P67: 4.872663551 | Q67: 5.096962617 | R67: 1.11642784 | S67: =P67/I67 -> 2.968710406 | T67: 2.669212307 | U67: 0.9596235968 | V67: 0.1653938465 | W67: 1.020188202 | Y67: 16 | AA67: 5.4
B68: NUEVO LAREDO | C68: MEXICO | E68: 203286 | F68: 310915 | G68: 355827 | H68: 384033 | I68: 1.529446199 | J68: 1.889126649 | K68: 1.235170384 | L68: 1967 | M68: 8851 | N68: 9663 | O68: 10041 | P68: 4.912557194 | Q68: 5.104728012 | R68: 1.134448085 | S68: 3.21198431 | T68: 2.702162936 | U68: 0.9184547326 | V68: 0.1489185321 | W68: 1.040772634 | Y68: 21.1 | AA68: 3.3
B69: IRAPUATO | C69: MEXICO | E69: 170138 | F69: 329326 | G69: 354140 | H69: 396975 | I69: 1.93564048 | J69: 2.333253006 | K69: 1.205416517 | L69: 587 | M69: 3902 | N69: 4710 | O69: 5001 | P69: 8.023850085 | Q69: 8.519591141 | R69: 1.281650436 | S69: 4.14532046 | T69: 3.651379048 | U69: 1.063242802 | V69: -0.325689524 | W69: 0.9683785989 | Y69: 14.2 | AA69: 2.9
B70: ORIZABA | C70: MEXICO | E70: 209247 | F70: 367021 | G70: 381086 | H70: 410508 | I70: 1.754008421 | J70: 1.961834578 | K70: 1.118486408 | L70: 1050 | M70: 5946 | N70: 6271 | O70: 6717 | P70: 5.972380952 | Q70: 6.397142857 | R70: 1.129667003 | S70: 3.404989897 | T70: 3.260796261 | U70: 1.009996183 | V70: -0.1303981304 | W70: 0.9950019085 | Y70: 9.9 | AA70: 4.6
B71: TEPIC | C71: MEXICO | E71: 177007 | F71: 342840 | G71: 379296 | H71: 429351 | I71: 1.936872553 | J71: 2.425615936 | K71: 1.252336367 | L71: 876 | M71: 4406 | N71: 4650 | O71: 4620 | P71: 5.308219178 | Q71: 5.273972603 | R71: 1.048570132 | S71: 2.740613558 | T71: 2.174281808 | U71: 0.8372911299 | V71: 0.4128590961 | W71: 1.081354435 | Y71: 15.2 | AA71: 5.2
B72: CUAUTLA | C72: MEXICO | E72: 138127 | F72: 372256 | G72: 383010 | H72: 434147 | I72: 2.69502704 | J72: 3.14310019 | K72: 1.166259241 | L72: 417 | M72: 8294 | N72: 8720 | O72: 9089 | P72: 20.91127098 | Q72: 21.79616307 | R72: 1.095852423 | S72: 7.759206372 | T72: 6.934606519 | U72: 0.9396302168 | V72: -1.967303259 | W72: 1.030184892 | Y72: 16.2 | AA72: 14.2
B73: MATAMOROS | C73: MEXICO | E73: 238840 | F73: 418141 | G73: 462157 | H73: 489193 | I73: 1.75071596 | J73: 2.048203818 | K73: 1.169923543 | L73: 1082 | M73: 7055 | N73: 7720 | O73: 8662 | P73: 7.134935305 | Q73: 8.005545287 | R73: 1.227781715 | S73: 4.075438544 | T73: 3.908568676 | U73: 1.049454661 | V73: -0.4542843379 | W73: 0.9752726693 | Y73: 20.6 | AA73: 3.8
B74: TLAXCALA | C74: MEXICO | E74: 131837 | F74: 408401 | G74: 457655 | H74: 499567 | I74: 3.097772249 | J74: 3.789277669 | K74: 1.223226682 | L74: 431 | M74: 23478 | N74: 23874 | O74: 24630 | P74: 55.39211137 | Q74: 57.14617169 | R74: 1.049067212 | S74: 17.88127303 | T74: 15.08101984 | U74: 0.8576228982 | V74: -6.040509919 | W74: 1.071188551 | Y74: 15 | AA74: 5.9
B75: PACHUCA | C75: MEXICO | E75: 135248 | F75: 375022 | G75: 438692 | H75: 512196 | I75: 2.772846918 | J75: 3.787087425 | K75: 1.365775874 | L75: 595 | M75: 7918 | N75: 10818 | O75: 12582 | P75: 18.18151261 | Q75: 21.14621849 | R75: 1.589037636 | S75: 6.556983902 | T75: 5.583768241 | U75: 1.163468813 | V75: -1.291884121 | W75: 0.9182655934 | Y75: 21 | AA75: 10.4
B76: POZA RICA | C76: MEXICO | E76: 344984 | F76: 467258 | G76: 481389 | H76: 513518 | I76: 1.354433829 | J76: 1.488527004 | K76: 1.09900312 | L76: 1664 | M76: 5379 | N76: 5871 | O76: 6101 | P76: 3.528245192 | Q76: 3.666466346 | R76: 1.134225693 | S76: 2.604959443 | T76: 2.463150709 | U76: 1.032049565 | V76: 0.2684246453 | W76: 0.9839752174 | Y76: 7.8 | AA76: 4.9
B77: DURANGO | C77: MEXICO | E77: 257915 | F77: 427135 | G77: 463830 | H77: 518709 | I77: 1.656107632 | J77: 2.011162592 | K77: 1.214391235 | L77: 984 | M77: 5189 | N77: 5603 | O77: 6049 | P77: 5.694105691 | Q77: 6.147357724 | R77: 1.165735209 | S77: 3.43824615 | T77: 3.056618966 | U77: 0.9599338136 | V77: -0.02830948304 | W77: 1.020033093 | Y77: 13.6 | AA77: 3.7
B78: OAXACA | C78: MEXICO | E78: 175910 | F78: 489562 | G78: 543721 | H78: 593658 | I78: 2.783025411 | J78: 3.374782559 | K78: =H78/F78 -> 1.212630882 | L78: 836 | M78: 10234 | N78: 12368 | O78: 12941 | P78: 14.79425837 | Q78: 15.47966507 | R78: =O78/M78 -> 1.264510455 | S78: 5.315890511 | T78: 4.586862946 | U78: 1.042782659 | V78: -0.793431473 | W78: 0.9786086707 | Y78: 13.9 | AA78: 6.2
B79: TUXTLA GUTIERREZ | C79: MEXICO | E79: 196785 | F79: 494763 | G79: 576872 | H79: 640977 | I79: 2.514231268 | J79: 3.257245217 | K79: 1.295523311 | L79: 798 | M79: 12408 | N79: 13187 | O79: 13529 | P79: 16.52506266 | Q79: 16.95363409 | R79: 1.090344939 | S79: 6.572610431 | T79: 5.204899526 | U79: 0.8416251019 | V79: -1.102449763 | W79: 1.079187449 | Y79: 10.7 | AA79: 5.3
B80: XALAPA | C80: MEXICO | E80: 263400 | F80: 554990 | G80: 595043 | H80: 666535 | I80: 2.107023538 | J80: 2.530504935 | K80: 1.200985603 | L80: 917 | M80: 6749 | N80: 7161 | O80: 7927 | P80: 7.809160305 | Q80: 8.644492912 | R80: 1.174544377 | S80: 3.706252049 | T80: 3.416113832 | U80: 0.9779837274 | V80: -0.2080569159 | W80: 1.011008136 | Y80: 13 | AA80: 5.1
B81: CULIACAN | C81: MEXICO | E81: 304826 | F81: 540823 | G81: 605304 | H81: 675773 | I81: 1.774202332 | J81: 2.216913912 | K81: 1.24952711 | L81: 1833 | M81: 7118 | N81: 8049 | O81: 8312 | P81: 4.391162029 | Q81: 4.534642662 | R81: 1.167743748 | S81: 2.475006345 | T81: 2.045475306 | U81: 0.9345485498 | V81: 0.4772623468 | W81: 1.032725725 | Y81: 16.2 | AA81: 4
B82: CANCUN | C82: MEXICO | E82: 37190 | F82: 431128 | G82: 586288 | H82: 677379 | I82: 11.59257865 | J82: 18.21400914 | K82: 1.571178397 | L82: 478 | M82: 4341 | N82: 5835 | O82: 12340 | P82: 12.20711297 | Q82: 25.81589958 | R82: 2.842662981 | S82: 1.053011012 | T82: 1.417365028 | U82: 1.809255388 | V82: 0.7913174859 | W82: 0.5953723059 | Y82: 18.6 | AA82: 5.2
B83: HERMOSILLO | C83: MEXICO | E83: 297175 | F83: 545928 | G83: 641791 | H83: 715061 | I83: 1.837058972 | J83: 2.406195003 | K83: 1.309808253 | L83: 2118 | M83: 8960 | N83: 10412 | O83: 11161 | P83: 4.915958451 | Q83: 5.269593957 | R83: 1.245647321 | S83: 2.675993817 | T83: 2.19001118 | U83: 0.9510150195 | V83: =1-(T83-$V$11)/($W$11-$V$11) -> 0.4049944102 | W83: 1.02449249 | Y83: 16.3 | AA83: 3.5
B84: REYNOSA | C84: MEXICO | E84: 294934 | F84: 524692 | G84: 633730 | H84: 727150 | I84: 1.779014966 | J84: 2.46546685 | K84: 1.385860657 | L84: 2291 | M84: 10579 | N84: 12131 | O84: 14001 | P84: 5.295067656 | Q84: 6.111305107 | R84: 1.323471028 | S84: 2.976404222 | T84: 2.478761824 | U84: 0.9549813111 | V84: 0.2606190879 | W84: 1.022509344 | Y84: 14.2 | AA84: 4.1
B85: VILLAHERMOSA | C85: MEXICO | E85: 250903 | F85: 600580 | G85: 644629 | H85: 755425 | I85: 2.393674049 | J85: 3.0108249 | K85: 1.257825768 | L85: 319 | M85: 7697 | N85: 9092 | O85: 9610 | P85: 28.5015674 | Q85: 30.12539185 | R85: 1.248538392 | S85: 11.9070378 | T85: 10.00569374 | U85: 0.9926163249 | V85: -3.502846868 | W85: 1.003691838 | Y85: 13.1 | AA85: 4.6
B86: VILLAHERMOSA | C86: MEXICO | E86: 250903 | F86: 600580 | G86: 644629 | H86: 755425 | I86: 2.393674049 | J86: 3.0108249 | K86: 1.257825768 | L86: 319 | M86: 7697 | N86: 9092 | O86: 9610 | P86: 28.5015674 | Q86: 30.12539185 | R86: 1.248538392 | S86: 11.9070378 | T86: 10.00569374 | U86: 0.9926163249 | V86: -3.502846868 | W86: 1.003691838
B87: VERACRUZ | C87: MEXICO | E87: 413411 | F87: 677851 | G87: 741234 | H87: 801295 | I87: 1.639654 | J87: 1.938252732 | K87: 1.182110818 | L87: 1786 | M87: 6168 | N87: 6757 | O87: 7633 | P87: 3.78331467 | Q87: 4.273796193 | R87: 1.237516213 | S87: 2.30738599 | T87: 2.204973646 | U87: 1.046869882 | V87: 0.3975131769 | W87: 0.9765650589 | Y87: 18.2 | AA87: 8.7
B88: MORELIA | C88: MEXICO | E88: 353055 | F88: 659940 | G88: 735624 | H88: 807902 | I88: 1.869227174 | J88: 2.288317684 | K88: 1.224205231 | L88: 1581 | M88: 8102 | N88: 8951 | O88: 9831 | P88: 5.661606578 | Q88: 6.218216319 | R88: 1.213404098 | S88: 3.028848851 | T88: 2.717374586 | U88: 0.9911770243 | V88: 0.1413127072 | W88: 1.004411488 | Y88: 21.4 | AA88: 6.7
B89: SALTILLO | C89: MEXICO | E89: 344850 | F89: 637273 | G89: 725259 | H89: 823128 | I89: 1.847971582 | J89: 2.38691605 | K89: 1.291641102 | L89: 1497 | M89: 18171 | N89: 18804 | O89: 19177 | P89: 12.56112224 | Q89: 12.81028724 | R89: 1.055362941 | S89: 6.797248598 | T89: 5.366878001 | U89: 0.8170713516 | V89: -1.183439 | W89: 1.091464324 | Y89: 14.2 | AA89: 4.2
B90: CHIHUAHUA | C90: MEXICO | E90: 406830 | F90: 696495 | G90: 784882 | H90: 852533 | I90: 1.712005014 | J90: 2.095550967 | K90: 1.224033195 | L90: 2589 | M90: 13136 | N90: 16112 | O90: 19441 | P90: 6.223252221 | Q90: 7.509076864 | R90: 1.479978685 | S90: 3.635066585 | T90: 3.58334251 | U90: 1.209100121 | V90: -0.2916712552 | W90: 0.8954499393 | Y90: 16.8 | AA90: 4.3
B91: TAMPICO | C91: MEXICO | E91: 436900 | F91: 746417 | G91: 803196 | H91: 859419 | I91: 1.708439002 | J91: 1.967084001 | K91: 1.151392586 | L91: 2906 | M91: 14385 | N91: 14905 | O91: 15471 | P91: 5.129043359 | Q91: 5.323812801 | R91: 1.075495308 | S91: 3.002181145 | T91: 2.706449139 | U91: 0.9340821893 | V91: 0.1467754304 | W91: 1.032958905 | Y91: 16.4 | AA91: 3.8
B92: ACAPULCO | C92: MEXICO | E92: 409336 | F92: 791558 | G92: 786830 | H92: 863431 | I92: 1.933761018 | J92: 2.109345379 | K92: 1.090799411 | L92: 1389 | M92: 9755 | N92: 12750 | O92: 13036 | P92: 9.179265659 | Q92: 9.385169186 | R92: 1.336340338 | S92: 4.746845952 | T92: 4.449327872 | U92: 1.225101815 | V92: -0.7246639362 | W92: 0.8874490923 | Y92: 15.4 | AA92: 14
B93: CUERNAVACA | C93: MEXICO | E93: 368166 | F93: 753510 | G93: 802371 | H93: 876083 | I93: 2.046658301 | J93: 2.379586925 | K93: 1.162669374 | L93: 2471 | M93: 15529 | N93: 16219 | O93: 16340 | P93: 6.563739377 | Q93: 6.612707406 | R93: 1.05222487 | S93: 3.207051892 | T93: 2.778930803 | U93: 0.9050078149 | V93: 0.1105345984 | W93: 1.047496093 | Y93: 14.8 | AA93: 14.3
B94: AGUASCALIENTES | C94: MEXICO | E94: 359454 | F94: 727582 | G94: 834498 | H94: 932369 | I94: 2.024131043 | J94: 2.593847892 | K94: 1.281462433 | L94: 1587 | M94: 7768 | N94: 8615 | O94: 9750 | P94: 5.428481411 | Q94: 6.143667297 | R94: 1.255149331 | S94: 2.681882396 | T94: 2.368553421 | U94: 0.9794663489 | V94: 0.3157232895 | W94: 1.010266826 | Y94: 16.4 | AA94: 3.5
B95: MEXICALI | C95: MEXICO | E95: 510664 | F95: 764602 | G95: 855962 | H95: 936826 | I95: 1.497270221 | J95: 1.834525246 | K95: 1.225246599 | L95: 4763 | M95: 13424 | N95: 15295 | O95: 17782 | P95: 3.211211421 | Q95: 3.733361327 | R95: 1.324642431 | S95: 2.144710672 | T95: 2.035055847 | U95: 1.081123125 | V95: 0.4824720767 | W95: 0.9594384377 | Y95: 19 | AA95: 4.7
B96: MERIDA | C96: MEXICO | E96: 443918 | F96: 803920 | G96: 897740 | H96: 973046 | I96: 1.810965088 | J96: 2.191949865 | K96: 1.210376654 | L96: 4775 | M96: 18757 | N96: 19687 | O96: 22598 | P96: 4.122931937 | Q96: 4.732565445 | R96: 1.204776883 | S96: 2.276649044 | T96: 2.159066465 | U96: 0.9953735302 | V96: 0.4204667676 | W96: 1.002313235 | Y96: 14.9 | AA96: 6
B97: SAN LUIS POTOSI | C97: MEXICO | E97: 471047 | F97: 850828 | G97: 957753 | H97: 1040443 | I97: 1.806248633 | J97: 2.21 | K97: 1.22 | L97: 2000 | M97: 12859 | N97: 13681 | O97: 14863 | P97: 6.8405 | Q97: 7.4315 | R97: 1.155844156 | S97: 3.787130893 | T97: 3.362669683 | U97: 0.9474132425 | V97: -0.1813348416 | W97: 1.026293379 | Y97: 15.7 | AA97: 3.3
B98: QUERETARO | C98: MEXICO | E98: 323275 | F98: 816481 | G98: 950828 | H98: 1097025 | I98: 2.525654628 | J98: =H98/E98 -> 3.393473049 | K98: =H98/F98 -> 1.343601382 | L98: 782 | M98: 9231 | N98: 11075 | O98: 12612 | P98: 14.16240409 | Q98: 16.12787724 | R98: 1.366265843 | S98: 5.607419135 | T98: 4.752616863 | U98: 1.016868442 | V98: -0.8763084315 | W98: 0.9915657792 | Y98: 15.4 | AA98: 5.5
B99: LA LAGUNA | C99: MEXICO | E99: 689195 | F99: 1007291 | G99: 1110890 | H99: 1215817 | I99: =F99/E99 -> 1.461547167 | J99: 1.76 | K99: 0.82 | L99: 2364 | M99: 14904 | N99: 16976 | O99: 18993 | P99: =N99/L99 -> 7.181049069 | Q99: =O99/L99 -> 8.034263959 | R99: 1.274355878 | S99: =P99/I99 -> 4.913320097 | T99: 4.564922704 | U99: 1.554092534 | V99: -0.7824613521 | W99: 0.7229537332 | Y99: 19.4 | AA99: 3.1
B100: JUAREZ | C100: MEXICO | E100: 567365 | F100: 1218817 | G100: 1313338 | H100: 1332131 | I100: 2.148206181 | J100: =H100/E100 -> 2.347925938 | K100: =H100/F100 -> 1.092970479 | L100: 4125 | M100: 19661 | N100: 22184 | O100: 25828 | P100: 5.377939394 | Q100: 6.261333333 | R100: 1.31366665 | S100: 2.503455879 | T100: 2.666750783 | U100: 1.201923268 | V100: 0.1666246087 | W100: 0.899038366 | Y100: 23.8 | AA100: 2.8
B101: LEON | C101: MEXICO | E101: 732845 | F101: 1269179 | G101: 1425210 | H101: 1609504 | I101: 1.731851892 | J101: 2.196240678 | K101: 1.268145786 | L101: 2502 | M101: 12327 | N101: 14999 | O101: 17031 | P101: 5.994804157 | Q101: 6.806954436 | R101: 1.381601363 | S101: 3.461499325 | T101: 3.099366341 | U101: 1.089465721 | V101: -0.04968317071 | W101: 0.9552671394 | Y101: 13.9 | AA101: 2.9
B102: TIJUANA | C102: MEXICO | E102: 491797 | F102: 1352035 | G102: 1575026 | H102: 1751430 | I102: 2.749172931 | J102: 3.561286466 | K102: 1.295402856 | L102: 6101 | M102: 22380 | N102: 24485 | O102: 26672 | P102: 4.013276512 | Q102: 4.371742337 | R102: 1.191778374 | S102: 1.459812319 | T102: 1.227573906 | U102: 0.9200059798 | V102: 0.886213047 | W102: 1 | Y102: 20 | AA102: 4.3
B103: TOLUCA | C103: MEXICO | E103: 568004 | F103: 1471146 | G103: 1633052 | H103: 1846116 | I103: 2.590027535 | J103: 3.250181337 | K103: 1.254882928 | L103: 1295 | M103: 28977 | N103: 29743 | O103: 34024 | P103: 22.96756757 | Q103: 26.27335907 | R103: 1.17417262 | S103: 8.867692431 | T103: 8.083659449 | U103: 0.9356829976 | V103: 0 | W103: 1 | Y103: 12.4 | AA103: 4.7
B104: PUEBLA TLAXCALA | C104: MEXICO | E104: 1111266 | F104: 2220533 | G104: 2470206 | H104: 2668437 | I104: 1.998201151 | J104: 2.401258565 | K104: 1.20171013 | L104: 4661 | M104: 55072 | N104: 56435 | O104: 57799 | P104: 12.10791676 | Q104: 12.40055782 | R104: 1.049516996 | S104: 6.059408359 | T104: 5.16419098 | U104: 0.8733528742 | V104: 0 | W104: 1 | Y104: 14.4 | AA104: 5
B105: MONTERREY | C105: MEXICO | E105: 2061744 | F105: 3374361 | G105: 3738077 | H105: 4089962 | I105: 1.636653726 | J105: 1.983739009 | K105: 1.212070078 | L105: 12590 | M105: 54478 | N105: 58278 | O105: 62381 | P105: 4.628911835 | Q105: 4.954805401 | R105: 1.145067734 | S105: 2.828278066 | T105: 2.497710323 | U105: 0.9447207341 | V105: =1-(T105-$V$11)/($W$11-$V$11) -> 0.2511448386 | W105: 1 | Y105: 14.6 | AA105: 4.1
B106: GUADALAJARA | C106: MEXICO | E106: 2244715 | F106: 3699136 | G106: 4095853 | H106: 4434878 | I106: 1.647931252 | J106: 1.975697583 | K106: 1.198895634 | L106: 12726 | M106: 39795 | N106: 43045 | O106: 48585 | P106: 3.382445387 | Q106: 3.817774635 | R106: 1.22088202 | S106: 2.052540349 | T106: 1.932367923 | U106: 1.018338866 | V106: =1-(T106-$V$11)/($W$11-$V$11) -> 0.5338160386 | W106: =1-(U106-$V$11)/($W$11-$V$11) -> 0.990830567 | Y106: 15.6 | AA106: 3.4
B107: ZM Valle de Mexico | C107: MEXICO | E107: 14122991 | F107: 18396677 | G107: 19239910 | H107: 20116842 | I107: 1.30260488 | J107: 1.424403797 | K107: 1.093504115 | L107: 51908 | M107: 167081 | N107: 174616 | O107: 185291 | P107: 3.363951607 | Q107: 3.569603915 | R107: 1.108989053 | S107: 2.582480427 | T107: 2.506033699 | U107: 1.014160841 | V107: =1-(T107-$V$11)/($W$11-$V$11) -> 0.2469831507 | W107: =1-(U107-$V$11)/($W$11-$V$11) -> 0.9929195793 | Y107: 10.4 | AA107: 3.7
B109: AVERAGE | I109: =AVERAGE(I89:I107) -> 1.90417375 | J109: =AVERAGE(J89:J107) -> 2.319105934 | K109: =AVERAGE(K89:K107) -> 1.191516039 | P109: =AVERAGE(P14:P107) -> 10.37483438 | Q109: 11.47834238 | R109: 1.256256653 | S109: 4.870879198 | T109: 4.307373685 | U109: 1.000351563 | Y109: =AVERAGE(Y14:Y107) -> 14.90967742 | AA109: =AVERAGE(AA14:AA107) -> 5.380645161
